Workbook

Sheet Main page
D7: MAIN PAGE | Q7: General Information
D24: ! Recommendation for users: please note that this tool must be used only for academic and research activities
D26: DISCLAIMER ELISA TOOL This License Agreement is a legal agreement for ELISA. By installing, copying or otherwise using the tool, you agree to be bound by the terms of this Agreement. This tool is not intended to provide specific advice or recommendations in any circumstances. It may not cover aspects of your particular situation and an investigation with different tools could generate a different result. The Members of IEA Task 53 assume no responsibility for any errors or omissions within the tool. The Members of IEA Task 53 make no warranty of any kind with respect to ELISA tool. Under no circumstances shall the Members of IEA Task 53 be held liable for any loss or damage (including any type of damage), which may be attributable to the reliance on and use of the tool. This License Agreement authorizes the use of the ELISA tool only for teaching and non-commercial research activities. A research activity is considered non-commercial only if its results are not intended primarily for the benefit of a third party, are made available to anyone without restriction on use, copying, and further distribution, and are furnished at no more than the cost of reproduction and shipping.

Sheet Library (2) (hidden)
C2: Global Energy Requirement (Ger) | F2: Global Warming Potential (Gwp)
B3: COMPONENTS | C3: Manufacturing Step | D3: End-Of-Life Step | E3: U.M. | F3: Manufacturing Step | G3: End-Of-Life Step | H3: U.M.
B4: <Chiller (ad/ab-sorption)> | E4: MJ/unit | H4: kgCO2eq/unit
B5: Absorption chiller (12 kW) | C5: 26005.37 | D5: 3.127 | E5: MJ/unit | F5: 1382.338 | G5: 12.554 | H5: kgCO2eq/unit
B6: Absorption chiller (19 kW) | C6: 42850.54 | D6: 4.69 | E6: MJ/unit | F6: 1996 | G6: 18.831 | H6: kgCO2eq/unit
B10: <Ammonia>
B11: Ammonia | C11: 41.953 | D11: 0 | E11: MJ/kg | F11: 2.096 | G11: 0 | H11: kgCO2eq/kg
B12: <Auxiliary Sistem>
B13: a | C13: a | D13: a | F13: a | G13: a
B14: Auxiliary conventional chiller (10 kW) | C14: 8131.097 | D14: 7.833 | E14: MJ/unit | F14: 1550.461 | G14: 25.818 | H14: kgCO2eq/unit
B15: Auxiliary gas boiler (10 kW) | C15: 6781.86 | D15: 61.51 | E15: MJ/unit | F15: 365.71 | G15: 12.04 | H15: kgCO2eq/unit
B19: <Battery>
B20: Battery lead-acid | C20: 17 | D20: 12 | E20: MJ/kg | F20: 0.9 | G20: 0.932 | H20: kgCO2eq/kg
B21: Battery lithium-ion-manganate | C21: 108.588 | D21: 12 | E21: MJ/kg | F21: 5.851 | G21: 0.932 | H21: kgCO2eq/kg
B22: Battery lithium-iron-phosphate | C22: 192.592 | D22: 12 | E22: MJ/kg | F22: 22 | G22: 0.932 | H22: kgCO2eq/kg
B23: Battery nickel cadmium | C23: 37 | D23: 12 | E23: MJ/kg | F23: 2.1 | G23: 0.932 | H23: kgCO2eq/kg
B24: Battery nickel cobalt manganese | C24: 196.779 | D24: 12 | E24: MJ/kg | F24: 22 | G24: 0.932 | H24: kgCO2eq/kg
B25: Battery nickel metal hydride | C25: 226.087 | D25: 12 | E25: MJ/kg | F25: 20 | G25: 0.932 | H25: kgCO2eq/kg
B26: Battery sodium-nickel-chloride | C26: 234.3 | D26: 11.04 | E26: MJ/kg | F26: 14.324 | G26: 0.771 | H26: kgCO2eq/kg
B27: Battery v-redox | C27: 67.786 | D27: 9.883 | E27: MJ/kg | F27: 6.803 | G27: 1.173 | H27: kgCO2eq/unit
B31: <Chiller (conventional)>
B32: Conventional chiller (10 kW) | C32: 8131.097 | D32: 7.833 | E32: MJ/unit | F32: 1550.461 | G32: 25.818 | H32: kgCO2eq/unit
B36: <Cooling tower>
B37: Cooling tower (32 kW) | C37: 2950.693 | D37: 10.739 | E37: MJ/unit | F37: 149.976 | G37: 3.134 | H37: kgCO2eq/unit
B39: <Electric installation>
B40: Electric installation (PV system) | C40: 2221.35 | D40: 11.159 | E40: MJ/unit | F40: 79.744 | G40: 60.154 | H40: kgCO2eq/unit
B42: <Solar collector>
B43: Evacuated tube collector | C43: 1579.694 | D43: 12.982 | E43: MJ/m2 | F43: 86.967 | G43: 3.941 | H43: kgCO2eq/m2
B44: Flat plate collector | C44: 1742.094 | D44: 10.182 | E44: MJ/m2 | F44: 99.031 | G44: 4.241 | H44: kgCO2eq/m2
B46: <Gas boiler >
B47: Gas boiler (10 kW) | C47: 6781.86 | D47: 61.51 | E47: MJ/unit | F47: 365.71 | G47: 12.04 | H47: kgCO2eq/unit
B49: <Glycol>
B50: Glycol | C50: 52.165 | D50: 0.183 | E50: MJ/kg | F50: 1.591 | G50: 1.434 | H50: kgCO2eq/l
B52: <Heat rejection system>
B53: Heat rejection system (24 kW) | C53: 14348 | D53: 9 | E53: MJ/unit | F53: 770 | G53: 105 | H53: kgCO2eq/unit
B55: <Heat storage>
B56: Heat storage (2000 l) | C56: 14811.72 | D56: 21.316 | E56: MJ/unit | F56: 783.31 | G56: 12.711 | H56: kgCO2eq/unit
B58: <Inverter >
B59: Inverter (2500 W) | C59: 3212.397 | D59: 3.723 | E59: MJ/unit | F59: 173.72 | G59: 1.373 | H59: kgCO2eq/unit
B60: Inverter (500 W) | C60: 685.252 | D60: 1.675 | E60: MJ/unit | F60: 36.311 | G60: 1.281 | H60: kgCO2eq/unit
B63: <Photovoltaic panel>
B64: Photovoltaic panel, a-Si | C64: 1181.696 | D64: 1.548 | E64: MJ/m2 | F64: 72.961 | G64: 4.228 | H64: kgCO2eq/m2
B65: Photovoltaic panel, CdTe | C65: 1515.689 | D65: 1.548 | E65: MJ/m2 | F65: 96.281 | G65: 4.228 | H65: kgCO2eq/m2
B66: Photovoltaic panel, CIS | C66: 2029.435 | D66: 1.548 | E66: MJ/m2 | F66: 121.68 | G66: 4.228 | H66: kgCO2eq/m2
B67: Photovoltaic panel, multi-Si | C67: 3060.768 | D67: 1.548 | E67: MJ/m2 | F67: 156.667 | G67: 4.228 | H67: kgCO2eq/m2
B68: Photovoltaic panel, ribbon-Si | C68: 2414.699 | D68: 1.548 | E68: MJ/m2 | F68: 126.671 | G68: 4.228 | H68: kgCO2eq/m2
B69: Photovoltaic panel, single-Si | C69: 3854.796 | D69: 1.548 | E69: MJ/m2 | F69: 196.056 | G69: 4.228 | H69: kgCO2eq/m2
B73: <Pipes>
B74: Pipes (m2) | C74: 65.483 | D74: 0.332 | E74: MJ/m | F74: 2.633 | G74: 0.097 | H74: kgCO2eq/m
B77: <Pump>
B78: Pump (40 W) | C78: 118.176 | D78: 0.374 | E78: MJ/unit | F78: 6.913 | G78: 0.08 | H78: kgCO2eq/unit
B81: <Water> | E81: MJ/kg | G81: ca | H81: kgCO2eq/kg
B82: ciao | C82: 1 | D82: 1 | F82: 1 | G82: 1
B83: 1 | C83: 1 | D83: 1 | F83: 1 | G83: 1
B85: c | C85: c | D85: c | E85: c | F85: c | G85: c | H85: c
B86: c | C86: c | D86: c | E86: c | F86: c | G86: c | H86: c
C88: Global Energy Requirement (Ger) | F88: Global Warming Potential (Gwp)
B89: <Electricity>
B90: Electricity, low voltage, Europe | C90: 12.28866887 | D90: MJ/kWh | F90: 0.5640665788 | G90: kg CO2eq/kWh
B91: Electricity, low voltage, Austria (excluding import) | C91: 8.065892773 | D91: MJ/kWh | F91: 0.3578227779 | G91: kg CO2eq/kWh
B92: Electricity, low voltage, Belgium (excluding import) | C92: 12.51215442 | D92: MJ/kWh | F92: 0.3641448709 | G92: kg CO2eq/kWh
B93: Electricity, low voltage, Bulgaria (excluding import) | C93: 15.52384735 | D93: MJ/kWh | F93: 0.7889234174 | G93: kg CO2eq/kWh
B94: Electricity, low voltage, Croatia (excluding import) | C94: 10.83779343 | D94: MJ/kWh | F94: 0.4249616269 | G94: kg CO2eq/kWh
B95: Electricity, low voltage, Czech Republic (excluding import) | C95: 13.19066786 | D95: MJ/kWh | F95: 0.8846638945 | G95: kg CO2eq/kWh
B96: Electricity, low voltage, Denmark (excluding import) | C96: 10.7354402 | D96: MJ/kWh | F96: 0.6975155547 | G96: kg CO2eq/kWh
B97: Electricity, low voltage, Finland (excluding import) | C97: 12.49084408 | D97: MJ/kWh | F97: 0.4382064223 | G97: kg CO2eq/kWh
B98: Electricity, low voltage, France (excluding import) | C98: 13.62717208 | D98: MJ/kWh | F98: 0.1054395272 | G98: kg CO2eq/kWh
B99: Electricity, low voltage, Germany (excluding import) | C99: 12.66241133 | D99: MJ/kWh | F99: 0.7481108403 | G99: kg CO2eq/kWh
B100: Electricity, low voltage, Greece (excluding import) | C100: 18.65884985 | D100: MJ/kWh | F100: 1.17721272 | G100: kg CO2eq/kWh
B101: Electricity, low voltage, Hungary (excluding import) | C101: 17.05185052 | D101: MJ/kWh | F101: 0.8354697178 | G101: kg CO2eq/kWh
B102: Electricity, low voltage, Ireland (excluding import) | C102: 13.05973284 | D102: MJ/kWh | F102: 0.9022051618 | G102: kg CO2eq/kWh
B103: Electricity, low voltage, Italy (excluding import) | C103: 10.70503494 | D103: MJ/kWh | F103: 0.7188987941 | G103: kg CO2eq/kWh
B104: Electricity, low voltage, Luxembourg (excluding import) | C104: 10.81616834 | D104: MJ/kWh | F104: 0.6030163955 | G104: kg CO2eq/kWh
B105: Electricity, low voltage, Netherlands (excluding import) | C105: 11.84516358 | D105: MJ/kWh | F105: 0.743479531 | G105: kg CO2eq/kWh
B106: Electricity, low voltage, Poland (excluding import) | C106: 16.05050144 | D106: MJ/kWh | F106: 1.374102821 | G106: kg CO2eq/kWh
B107: Electricity, low voltage, Portugal (excluding import) | C107: 11.51905165 | D107: MJ/kWh | F107: 0.7132401271 | G107: kg CO2eq/kWh
B108: Electricity, low voltage, Romania (excluding import) | C108: 12.42029563 | D108: MJ/kWh | F108: 0.8071359201 | G108: kg CO2eq/kWh
B109: Electricity, low voltage, Slovakia (excluding import) | C109: 12.80976724 | D109: MJ/kWh | F109: 0.4137281157 | G109: kg CO2eq/kWh
B110: Electricity, low voltage, Slovenia (excluding import) | C110: 10.38529687 | D110: MJ/kWh | F110: 0.5586197479 | G110: kg CO2eq/kWh
B111: Electricity, low voltage, Spain (excluding import) | C111: 12.1682834 | D111: MJ/kWh | F111: 0.6062698433 | G111: kg CO2eq/kWh
B112: Electricity, low voltage, Sweden (excluding import) | C112: 10.54736614 | D112: MJ/kWh | F112: 0.05101340983 | G112: kg CO2eq/kWh
B113: Electricity, low voltage, Switzerland (excluding import) | C113: 8.677570643 | D113: MJ/kWh | F113: 0.02975758488 | G113: kg CO2eq/kWh
B114: Electricity, low voltage, United Kingdom (excluding import) | C114: 12.36890628 | D114: MJ/kWh | F114: 0.7024891603 | G114: kg CO2eq/kWh
B115: Electricity, low voltage, Austria (including import) | C115: 9.057 | D115: MJ/kWh | F115: 0.4462826418 | G115: kg CO2eq/kWh
B116: Electricity, low voltage, Belgium (including import) | C116: 12.48750833 | D116: MJ/kWh | F116: 0.3669882834 | G116: kg CO2eq/kWh
B117: Electricity, low voltage, Bulgaria (including import) | C117: 15.48451095 | D117: MJ/kWh | F117: 0.7904981377 | G117: kg CO2eq/kWh
B118: Electricity, low voltage, Croatia (including import) | C118: 12.46667463 | D118: MJ/kWh | F118: 0.5973368031 | G118: kg CO2eq/kWh
B119: Electricity, low voltage, Czech Republic (including import) | C119: 13.41394009 | D119: MJ/kWh | F119: 0.9266083201 | G119: kg CO2eq/kWh
B120: Electricity, low voltage, Denmark (including import) | C120: 10.61101267 | D120: MJ/kWh | F120: 0.6263149933 | G120: kg CO2eq/kWh
B121: Electricity, low voltage, Finland (including import) | C121: 12.66443829 | D121: MJ/kWh | F121: 0.501755054 | G121: kg CO2eq/kWh
B122: Electricity, low voltage, France (including import) | C122: 13.57079917 | D122: MJ/kWh | F122: 0.1078530138 | G122: kg CO2eq/kWh
B123: Electricity, low voltage, Germany (including import) | C123: 12.57985978 | D123: MJ/kWh | F123: 0.7229270489 | G123: kg CO2eq/kWh
B124: Electricity, low voltage, Greece (including import) | C124: 18.26773758 | D124: MJ/kWh | F124: 1.145754652 | G124: kg CO2eq/kWh
B125: Electricity, low voltage, Hungary (including import) | C125: 16.17590436 | D125: MJ/kWh | F125: 0.7519943704 | G125: kg CO2eq/kWh
B126: Electricity, low voltage, Ireland (including import) | C126: 13.01229893 | D126: MJ/kWh | F126: 0.8898533137 | G126: kg CO2eq/kWh
B127: Electricity, low voltage, Italy (including import) | C127: 10.73717685 | D127: MJ/kWh | F127: 0.6435143438 | G127: kg CO2eq/kWh
B128: Electricity, low voltage, Luxembourg (including import) | C128: 12.10916183 | D128: MJ/kWh | F128: 0.642895459 | G128: kg CO2eq/kWh
B129: Electricity, low voltage, Netherlands (including import) | C129: 11.91850634 | D129: MJ/kWh | F129: 0.7271305232 | G129: kg CO2eq/kWh
B130: Electricity, low voltage, Poland (including import) | C130: 14.18296269 | D130: MJ/kWh | F130: 1.199821241 | G130: kg CO2eq/kWh
B131: Electricity, low voltage, Portugal (including import) | C131: 11.61752427 | D131: MJ/kWh | F131: 0.6959640109 | G131: kg CO2eq/kWh
B132: Electricity, low voltage, Romania (including import) | C132: 12.49960206 | D132: MJ/kWh | F132: 0.8098158494 | G132: kg CO2eq/kWh
B133: Electricity, low voltage, Slovakia (including import) | C133: 11.93273677 | D133: MJ/kWh | F133: 0.5057963089 | G133: kg CO2eq/kWh
B134: Electricity, low voltage, Slovenia (including import) | C134: 9.950388204 | D134: MJ/kWh | F134: 0.4872858881 | G134: kg CO2eq/kWh
B135: Electricity, low voltage, Spain (including import) | C135: 12.20832956 | D135: MJ/kWh | F135: 0.5964692099 | G135: kg CO2eq/kWh
B136: Electricity, low voltage, Sweden (including import) | C136: 10.65593737 | D136: MJ/kWh | F136: 0.101958328 | G136: kg CO2eq/kWh
B137: Electricity, low voltage, Switzerland (including import) | C137: 10.98361304 | D137: MJ/kWh | F137: 0.1489153098 | G137: kg CO2eq/kWh
B138: Electricity, low voltage, United Kingdom (including import) | C138: 12.41007064 | D138: MJ/kWh | F138: 0.6875218589 | G138: kg CO2eq/kWh
B139: <Natural gas>
B140: Natural gas, burned in boiler atmosferic low-NOx condensing non-modulating, <100 kW, Europe | C140: 4.609985627 | D140: MJ/kWh | F140: 0.2730136082 | G140: kg CO2eq/kWh
B141: Natural gas, burned in boiler atmosferic burner non-modulating, <100 kW, Europe | C141: 4.443906725 | D141: MJ/kWh | F141: 0.2652379739 | G141: kg CO2eq/kWh
B142: Natural gas, burned in boiler condensing modulating, <100 kW, Europe | C142: 4.482444366 | D142: MJ/kWh | F142: 0.2670422647 | G142: kg CO2eq/kWh
B143: Natural gas, burned in boiler condensing modulating, >100 kW, Europe | C143: 4.30422532 | D143: MJ/kWh | F143: 0.2475105773 | G143: kg CO2eq/kWh
B144: Natural gas, burned in boiler fan burner low-Nox non-modulating, <100 kW, Europe | C144: 4.7370681 | D144: MJ/kWh | F144: 0.2789634725 | G144: kg CO2eq/kWh
B145: Natural gas, burned in boiler fan burner non-modulating, <100 kW, Europe | C145: 4.482444366 | D145: MJ/kWh | F145: 0.2670422647 | G145: kg CO2eq/kWh
B146: Natural gas, burned in boiler modulating, <100 kW, Europe | C146: 4.482444366 | D146: MJ/kWh | F146: 0.2670422647 | G146: kg CO2eq/kWh
B147: Natural gas, burned in boiler modulating, >100 kW, Europe | C147: 4.304225321 | D147: MJ/kWh | F147: 0.2475105777 | G147: kg CO2eq/kWh
B148: Natural gas, burned in industrial furnace, >100 kW, Europe | C148: 4.304225374 | D148: MJ/kWh | F148: 0.2471289784 | G148: kg CO2eq/kWh
B149: Natural gas, burned in industrial furnace low-NOx, >100 kW, Europe | C149: 4.444612529 | D149: MJ/kWh | F149: 0.2537017524 | G149: kg CO2eq/kWh
B150: Natural gas, burned in boiler atmosferic low-NOx condensing non-modulating, <100 kW, Europe | C150: 4.609985627 | D150: MJ/kWh | F150: 0.2730136082 | G150: kg CO2eq/kWh
B151: Natural gas, burned in boiler atmosferic burner non-modulating, <100 kW, Europe | C151: 4.443906725 | D151: MJ/kWh | F151: 0.2652379739 | G151: kg CO2eq/kWh
B152: Natural gas, burned in boiler condensing modulating, <100 kW, Europe | C152: 4.482444366 | D152: MJ/kWh | F152: 0.2670422647 | G152: kg CO2eq/kWh
B153: Natural gas, burned in boiler condensing modulating, >100 kW, Europe | C153: 4.30422532 | D153: MJ/kWh | F153: 0.2475105773 | G153: kg CO2eq/kWh
B154: Natural gas, burned in boiler fan burner low-Nox non-modulating, <100 kW, Europe | C154: 4.7370681 | D154: MJ/kWh | F154: 0.2789634725 | G154: kg CO2eq/kWh
B155: Natural gas, burned in boiler fan burner non-modulating, <100 kW, Europe | C155: 4.482444366 | D155: MJ/kWh | F155: 0.2670422647 | G155: kg CO2eq/kWh
B156: Natural gas, burned in boiler modulating, <100 kW, Europe | C156: 4.482444366 | D156: MJ/kWh | F156: 0.2670422647 | G156: kg CO2eq/kWh
B157: Natural gas, burned in boiler modulating, >100 kW, Europe | C157: 4.304225321 | D157: MJ/kWh | F157: 0.2475105777 | G157: kg CO2eq/kWh
B158: Natural gas, burned in industrial furnace, >100 kW, Europe | C158: 4.304225374 | D158: MJ/kWh | F158: 0.2471289784 | G158: kg CO2eq/kWh
B159: Natural gas, burned in industrial furnace low-NOx, >100 kW, Europe | C159: 4.444612529 | D159: MJ/kWh | F159: 0.2537017524 | G159: kg CO2eq/kWh

Sheet Foglio2 (hidden)
A1: <Chiller (ad/ab-sorption)> | B1: <Ammonia> | C1: <Auxiliary Conventional Chiller> | D1: <Auxiliary Gas Boiler> | E1: <Battery> | F1: <Chiller (conventional)> | G1: <Cooling tower> | H1: <Electric installation> | I1: <Solar collector> | J1: <Gas boiler > | K1: <Glycol> | L1: <Heat rejection system> | M1: <Heat-pump> | N1: <Heat storage> | O1: <Inverter > | P1: <Photovoltaic panel> | Q1: <Pipes> | R1: <Pump> | S1: <Water> | T1: <Electricity> | U1: <Natural gas>
A2: Absorption chiller 100 kW and air cooler | Q2: A

Sheet SHC system (hidden)
AB6: Notes
T7: General Information
C11: COMPONENTS OF THE SHC SYSTEM
C12: Category | E12: U.M. | F12: Quantity | H12: n°REPLACEMENT
C13: <Ammonia> | E13: kg | L13: <Ammonia>
C14: <Auxiliary Conventional Chiller> | E14: unit | L14: <Auxiliary Conventional Chiller>
C15: <Auxiliary Gas Boiler> | E15: unit | L15: <Auxiliary Gas Boiler>
C16: <Chiller (ad/ab-sorption)> | E16: unit | L16: <Chiller (ad/ab-sorption)>
C17: <Cooling tower> | E17: unit | L17: <Cooling tower>
C18: <Glycol> | E18: kg | L18: <Glycol>
C19: <Heat rejection system> | E19: unit | L19: <Heat rejection system>
C20: <Heat storage> | E20: unit | L20: <Heat storage>
C21: <Heat-pump> | E21: unit | L21: <Heat-pump>
C22: <Pipes> | E22: m | L22: <Pipes>
C23: <Pump> | E23: unit | L23: <Pump> | T23: LCA Results
C24: <Solar thermal collectors> | E24: m2 | L24: <Solar thermal collectors>
C25: <Water> | E25: kg | L25: <Water>
C30: ENERGY SOURCES
C31: Category | E31: U.M. | F31: Quantity
C32: <Electricity> | E32: kWh/year | L32: <Electricity>
C33: <Natural gas> | E33: kWh/year | L33: <Natural gas>
C35: OTHER INFORMATION
C36: Category | E36: U.M. | F36: Quantity
C37: Useful life of the system | E37: year
S47: <Ammonia>
S48: <Auxiliary Conventional Chiller>
B49: 2 | C49: Ammonia | F49: 15 | S49: <Auxiliary Gas Boiler>
B50: 1 | C50: Auxiliary conventional chiller (10 kW) | F50: 1 | S50: <Chiller (ad/ab-sorption)>
C51: Auxiliary gas boiler (10 kW) | F51: 1 | S51: <Cooling tower>
C52: Absorption chiller (12 kW) | F52: 1 | S52: <Glycol>
C53: Cooling tower (32 kW) | F53: 1 | S53: <Heat rejection system>
C54: <Glycol> | S54: <Heat storage>
C55: <Heat rejection system> | S55: <Heat-pump>
C56: Heat storage (2000 l) | F56: 1 | S56: <Pipes>
C57: <Heat-pump> | S57: <Pump>
C58: Pipes | F58: 60 | S58: <Solar collector>
C59: Pump (40 W) | F59: 8.25 | S59: <Water>
C60: Evacuated tube collector | F60: 35
C61: Water | F61: 10
C69: Electricity, low voltage, Italy (including import) | E69: kWh/year | F69: 1117
C70: Natural gas, burned in boiler atmosferic low-NOx condensing non-modulating, <100 kW, Europe | E70: kWh/year | F70: 414
C73: Category | E73: U.M. | F73: Quantity
C74: Useful life of the system | E74: year | F74: 25

Sheet SHC system with PV (hidden)
AB6: Notes
T7: General Information
C11: COMPONENTS OF THE SHC SYSTEM WITH PV
C12: Category | E12: U.M. | F12: Quantity | H12: n°REPLACEMENT
C13: <Ammonia> | E13: kg | L13: <Ammonia>
C14: <Auxiliary Conventional Chiller> | E14: unit | L14: <Auxiliary Conventional Chiller>
C15: <Auxiliary Gas Boiler> | E15: unit | L15: <Auxiliary Gas Boiler>
C16: <Battery> | E16: kg | L16: <Battery>
C17: <Chiller (ad/ab-sorption)> | E17: unit | L17: <Chiller (ad/ab-sorption)>
C18: <Cooling tower> | E18: unit | L18: <Cooling tower>
C19: <Electric installation> | E19: unit | L19: <Electric installation>
C20: <Glycol> | E20: kg | L20: <Glycol>
C21: <Heat rejection system> | E21: unit | L21: <Heat rejection system>
C22: <Heat storage> | E22: unit | L22: <Heat storage>
C23: <Heat-pump> | E23: unit | L23: <Heat-pump> | T23: LCA Results
C24: <Inverter > | E24: unit | L24: <Inverter >
C25: <Photovoltaic panel> | E25: m2 | L25: <Photovoltaic panel>
C26: <Pipes> | E26: m | L26: <Pipes>
C27: <Pump> | E27: unit | L27: <Pump>
C28: <Solar thermal collectors> | E28: m2 | L28: <Solar thermal collectors>
C29: <Water> | E29: kg | L29: <Water>
C30: ENERGY SOURCES
C31: Category | E31: U.M. | F31: Quantity
C32: <Electricity> | E32: kWh/year | L32: <Electricity>
C33: <Natural gas> | E33: kWh/year | L33: <Natural gas>
C35: OTHER INFORMATION
C36: Category | E36: U.M. | F36: Quantity
C37: Useful life of the system | E37: year
C49: Ammonia | F49: 15
C50: Auxiliary conventional chiller (10 kW) | F50: 1
C51: Auxiliary gas boiler (10 kW) | F51: 1
C52: Battery lithium-ion-manganate | F52: 135 | H52: 1
C53: Absorption chiller (12 kW) | F53: 1
C54: Electric installation (PV system) | F54: 1
C55: Cooling tower (32 kW) | F55: 1
C56: <Glycol>
C57: <Heat rejection system>
C58: Heat storage (2000 l) | F58: 1
C59: <Heat-pump>
C60: Inverter (500 W) | F60: 0.5 | H60: 1
C61: Photovoltaic panel, multi-Si | F61: 8.12
C62: Pipes | F62: 60
C63: Pump (40 W) | F63: 8.25
C64: Evacuated tube collector | F64: 35
C65: Water | F65: 10
C69: <Electricity> | E69: kWh/year
C70: Natural gas, burned in boiler atmosferic low-NOx condensing non-modulating, <100 kW, Europe | E70: kWh/year | F70: 414
C73: Category | E73: U.M. | F73: Quantity
C74: Useful life of the system | E74: year | F74: 25

Sheet Conventional System (hidden)
AB6: Notes
T7: General Information
C11: COMPONENTS OF THE CONVENTIONAL SYSTEM
C12: Category | E12: U.M. | F12: Quantity | H12: n°REPLACEMENT
C13: <Chiller (conventional)> | E13: unit | L13: <Chiller (conventional)>
C14: <Gas boiler > | E14: unit | L14: <Gas boiler >
C15: <Heat-pump> | E15: unit | L15: <Heat-pump>
C16: <Pipes> | E16: m | L16: <Pipes>
C17: <Pump> | E17: unit | L17: <Pump> | T17: LCA Results
T18: OPTION OUTPUT
C30: ENERGY SOURCES
C31: Category | E31: U.M. | F31: Quantity
C32: <Electricity> | E32: kWh/year | L32: <Electricity>
C33: <Natural gas> | E33: kWh/year | L33: <Natural gas>
C35: OTHER INFORMATION
C36: Category | E36: U.M. | F36: Quantity
C37: Useful life of the system | E37: year
C49: Conventional chiller (10 kW) | F49: 1
C50: Gas boiler (10 kW) | F50: 1
C51: <Heat-pump>
C52: <Pipes>
C53: <Pump>
C67: ENERGY SOURCES
C68: Category | E68: U.M. | F68: Quantity
C69: Electricity, low voltage, Italy (including import) | E69: kWh/year | F69: 1995
C70: Natural gas, burned in boiler modulating, <100 kW, Europe | E70: kWh/year | F70: 2882
C72: OTHER INFORMATION
C73: Category | E73: U.M. | F73: Quantity
C74: Useful life of the system | E74: year | F74: 25

Sheet Conventional System with PV (hidden)
AB6: Notes
T7: General Information
C11: COMPONENTS OF THE CONVENTIONAL SYSTEM WITH PV
C12: Category | E12: U.M. | F12: Quantity | H12: n°REPLACEMENT
C13: <Battery> | E13: kg | L13: <Battery>
C14: <Chiller (conventional)> | E14: unit | L14: <Chiller (conventional)>
C15: <Electric installation> | E15: unit | L15: <Electric installation>
C16: <Gas boiler > | E16: unit | L16: <Gas boiler >
C17: <Heat-pump> | E17: unit | L17: <Heat-pump>
C18: <Inverter > | E18: unit | L18: <Inverter >
C19: <Photovoltaic panel> | E19: m2 | L19: <Photovoltaic panel>
C20: <Pipes> | E20: m | L20: <Pipes> | T20: LCA Results
C21: <Pump> | E21: unit | L21: <Pump>
C30: ENERGY SOURCES
C31: Category | E31: U.M. | F31: Quantity
C32: <Electricity> | E32: kWh/year | L32: <Electricity>
C33: <Natural gas> | E33: kWh/year | L33: <Natural gas>
C35: OTHER INFORMATION
C36: Category | E36: U.M. | F36: Quantity
C37: Useful life of the system | E37: year
C49: Battery lithium-ion-manganate | F49: =450/2 -> 225 | H49: 1
C50: Conventional chiller (10 kW) | F50: 1
C51: Electric installation (PV system) | F51: 1
C52: Gas boiler (10 kW) | F52: 1
C53: <Heat-pump>
C54: Inverter (500 W) | F54: 1.5 | H54: 1
C55: Photovoltaic panel, multi-Si | F55: 14.5
C56: <Pipes>
C57: <Pump>
C67: ENERGY SOURCES
C68: Category | E68: U.M. | F68: Quantity
C69: Electricity, low voltage, Italy (including import) | E69: kWh/year
C70: Natural gas, burned in boiler modulating, <100 kW, Europe | E70: kWh/year | F70: 2882
C72: OTHER INFORMATION
C73: Category | E73: U.M. | F73: Quantity
C74: Useful life of the system | E74: year | F74: 25

Sheet Library (hidden)
B1: COMPONENTS | C1: Manufacturing Step | D1: End-Of-Life Step | E1: U.M. | F1: Manufacturing Step | G1: End-Of-Life Step | H1: U.M.
B2: <Chiller (ad/ab-sorption)> | E2: MJ/unit | H2: kgCO2eq/unit
B3: Absorption chiller (100 kW) and air cooler | C3: 332434.99 | D3: 67239.27 | E3: MJ/unit | F3: 18811.1 | G3: 5468.48 | H3: kgCO2eq/unit | K3: =+ROUND(C3,2) -> 332434.99 | L3: =+ROUND(D3,2) -> 67239.27 | M3: =+ROUND(E3,2) ->  | N3: =+ROUND(F3,2) -> 18811.1 | O3: =+ROUND(G3,2) -> 5468.48
B4: Absorption chiller (12 kW) | C4: 26005.37 | D4: 3.13 | E4: MJ/unit | F4: 1382.34 | G4: 12.55 | H4: kgCO2eq/unit | K4: 26005.37 | L4: 3.13 | N4: 1382.34 | O4: 12.55 | AA4: Adsorption chiller (8 kW) | AB4: Absorption chiller (12 kW) | AC4: Absorption chiller (19 kW)
B5: Absorption chiller (19 kW) | C5: 42850.54 | D5: 4.69 | E5: MJ/unit | F5: 1996 | G5: 18.83 | H5: kgCO2eq/unit | K5: 42850.54 | L5: 4.69 | N5: 1996 | O5: 18.83 | AA5: Ammonia
B6: Adsorption chiller (8 kW) | C6: 24187 | D6: 12 | E6: MJ/unit | F6: 1380 | G6: 21 | H6: kgCO2eq/unit | K6: 24187 | L6: 12 | N6: 1380 | O6: 21 | AA6: Auxiliary conventional chiller (10 kW) | AB6: Auxiliary gas boiler (10 kW)
B7: <Ammonia> | C7: 0 | D7: 0 | E7: MJ/kg | F7: 0 | G7: 0 | H7: kgCO2eq/kg | K7: 0 | L7: 0 | N7: 0 | O7: 0 | AA7: Battery lead-acid | AB7: Battery lithium-ion-manganate | AC7: Battery lithium-iron-phosphate | AD7: Battery nickel cadmium | AE7: Battery nickel cobalt manganese | AF7: Battery nickel metal hydride | AG7: Battery sodium-nickel-chloride | AH7: Battery v-redox
B8: Ammonia | C8: 41.95 | D8: 0 | E8: MJ/kg | F8: 2.1 | G8: 0 | H8: kgCO2eq/kg | K8: 41.95 | L8: 0 | N8: 2.1 | O8: 0 | AA8: Conventional chiller (10 kW)
B9: <Auxiliary Conventional Chiller> | C9: 0 | D9: 0 | E9: MJ/unit | F9: 0 | G9: 0 | H9: kgCO2eq/unit | K9: 0 | L9: 0 | N9: 0 | O9: 0 | AA9: Cooling tower (32 kW)
B10: Auxiliary conventional chiller (10 kW) | C10: 8131.1 | D10: 7.83 | E10: MJ/unit | F10: 1550.46 | G10: 25.82 | H10: kgCO2eq/unit | K10: 8131.1 | L10: 7.83 | N10: 1550.46 | O10: 25.82 | AA10: Electric installation (PV system)
B11: <Auxiliary Gas Boiler> | C11: 0 | D11: 0 | E11: MJ/unit | F11: 0 | G11: 0 | H11: kgCO2eq/unit | K11: 0 | L11: 0 | N11: 0 | O11: 0 | AA11: Cooling tower (32 kW)
B12: Auxiliary gas boiler (10 kW) | C12: 6781.86 | D12: 61.51 | E12: MJ/unit | F12: 365.71 | G12: 12.04 | H12: kgCO2eq/unit | K12: 6781.86 | L12: 61.51 | N12: 365.71 | O12: 12.04 | AA12: Evacuated tube collector | AB12: Flat plate collector
B13: <Battery> | C13: 0 | D13: 0 | E13: MJ/kg | F13: 0 | G13: 0 | H13: kgCO2eq/kg | K13: 0 | L13: 0 | N13: 0 | O13: 0 | AA13: Gas boiler (10 kW)
B14: Battery lead-acid | C14: 17 | D14: 12 | E14: MJ/kg | F14: 0.9 | G14: 0.93 | H14: kgCO2eq/kg | K14: 17 | L14: 12 | N14: 0.9 | O14: 0.93 | AA14: Glycol
B15: Battery lithium-ion-manganate | C15: 104 | D15: 12 | E15: MJ/kg | F15: 6 | G15: 0.93 | H15: kgCO2eq/kg | K15: 104 | L15: 12 | N15: 6 | O15: 0.93 | AA15: Heat rejection system (24 kW)
B16: Battery lithium-iron-phosphate | C16: 192.59 | D16: 12 | E16: MJ/kg | F16: 22 | G16: 0.93 | H16: kgCO2eq/kg | K16: 192.59 | L16: 12 | N16: 22 | O16: 0.93 | AA16: Heat storage (2000 l)
B17: Battery nickel cadmium | C17: 37 | D17: 12 | E17: MJ/kg | F17: 2.1 | G17: 0.93 | H17: kgCO2eq/kg | K17: 37 | L17: 12 | N17: 2.1 | O17: 0.93 | AA17: Inverter (2500 W) | AB17: Inverter (500 W)
B18: Battery nickel cobalt manganese | C18: 196.78 | D18: 12 | E18: MJ/kg | F18: 22 | G18: 0.93 | H18: kgCO2eq/kg | K18: 196.78 | L18: 12 | N18: 22 | O18: 0.93 | AA18: Photovoltaic panel, a-Si | AB18: Photovoltaic panel, CdTe | AC18: Photovoltaic panel, CIS | AD18: Photovoltaic panel, multi-Si | AE18: Photovoltaic panel, ribbon-Si | AF18: Photovoltaic panel, single-Si
B19: Battery nickel metal hydride | C19: 226.09 | D19: 12 | E19: MJ/kg | F19: 20 | G19: 0.93 | H19: kgCO2eq/kg | K19: 226.09 | L19: 12 | N19: 20 | O19: 0.93 | AA19: Pipes (m)
B20: Battery sodium-nickel-chloride | C20: 234.3 | D20: 11.04 | E20: MJ/kg | F20: 14.32 | G20: 0.77 | H20: kgCO2eq/kg | K20: 234.3 | L20: 11.04 | N20: 14.32 | O20: 0.77 | AA20: Pump (40 W)
B21: Battery v-redox | C21: 67.79 | D21: 9.88 | E21: MJ/kg | F21: 6.8 | G21: 1.17 | H21: kgCO2eq/unit | K21: 67.79 | L21: 9.88 | N21: 6.8 | O21: 1.17 | AA21: Water
B22: <Chiller (conventional)> | C22: 0 | D22: 0 | E22: MJ/unit | F22: 0 | G22: 0 | H22: kgCO2eq/unit | K22: 0 | L22: 0 | N22: 0 | O22: 0
B23: Conventional chiller (10 kW) | C23: 8131.1 | D23: 7.83 | E23: MJ/unit | F23: 1550.46 | G23: 25.82 | H23: kgCO2eq/unit | K23: =+ROUND(C23,2) -> 8131.1 | L23: =+ROUND(D23,2) -> 7.83 | M23: =+ROUND(E23,2) ->  | N23: =+ROUND(F23,2) -> 1550.46 | O23: =+ROUND(G23,2) -> 25.82 | P23: =+ROUND(H23,2) -> 
B24: <Cooling tower> | C24: 0 | D24: 0 | E24: MJ/unit | F24: 0 | G24: 0 | H24: kgCO2eq/unit | K24: 0 | L24: 0 | N24: 0 | O24: 0
B25: Cooling tower (32 kW) | C25: 2950.69 | D25: 10.74 | E25: MJ/unit | F25: 149.98 | G25: 3.13 | H25: kgCO2eq/unit | K25: 2950.69 | L25: 10.74 | N25: 149.98 | O25: 3.13
B26: <Electric installation> | C26: 0 | D26: 0 | E26: MJ/unit | F26: 0 | G26: 0 | H26: kgCO2eq/unit | K26: 0 | L26: 0 | N26: 0 | O26: 0
B27: Electric installation (PV system) | C27: 2221.35 | D27: 11.16 | E27: MJ/unit | F27: 79.74 | G27: 60.15 | H27: kgCO2eq/unit | K27: 2221.35 | L27: 11.16 | N27: 79.74 | O27: 60.15
B28: <Solar thermal collectors> | C28: 0 | D28: 0 | E28: MJ/m2 | F28: 0 | G28: 0 | H28: kgCO2eq/m2 | K28: 0 | L28: 0 | N28: 0 | O28: 0
B29: Evacuated tube collector | C29: 1579.69 | D29: 12.98 | E29: MJ/m2 | F29: 86.97 | G29: 3.94 | H29: kgCO2eq/m2 | K29: 1579.69 | L29: 12.98 | N29: 86.97 | O29: 3.94
B30: Flat plate collector | C30: 1742.09 | D30: 10.18 | E30: MJ/m2 | F30: 99.03 | G30: 4.24 | H30: kgCO2eq/m2 | K30: 1742.09 | L30: 10.18 | N30: 99.03 | O30: 4.24
B31: <Gas boiler > | C31: 0 | D31: 0 | E31: MJ/unit | F31: 0 | G31: 0 | H31: kgCO2eq/unit | K31: 0 | L31: 0 | N31: 0 | O31: 0
B32: Gas boiler (10 kW) | C32: 6781.86 | D32: 61.51 | E32: MJ/unit | F32: 365.71 | G32: 12.04 | H32: kgCO2eq/unit | K32: 6781.86 | L32: 61.51 | N32: 365.71 | O32: 12.04
B33: <Glycol> | C33: 0 | D33: 0 | E33: MJ/kg | F33: 0 | G33: 0 | H33: kgCO2eq/kg | K33: 0 | L33: 0 | N33: 0 | O33: 0
B34: Glycol | C34: 52.17 | D34: 0.18 | E34: MJ/kg | F34: 1.59 | G34: 1.43 | H34: kgCO2eq/l | K34: 52.17 | L34: 0.18 | N34: 1.59 | O34: 1.43
B35: <Heat rejection system> | C35: 0 | D35: 0 | E35: MJ/unit | F35: 0 | G35: 0 | H35: kgCO2eq/unit | K35: 0 | L35: 0 | N35: 0 | O35: 0
B36: Heat rejection system (24 kW) | C36: 14348 | D36: 9 | E36: MJ/unit | F36: 770 | G36: 105 | H36: kgCO2eq/unit | K36: 14348 | L36: 9 | N36: 770 | O36: 105
B37: <Heat-pump> | C37: 0 | D37: 0 | E37: MJ/unit | F37: 0 | G37: 0 | H37: kgCO2eq/unit | K37: 0 | L37: 0 | N37: 0 | O37: 0
B38: Heat-pump, brine water (10 kW) | C38: 8131.1 | D38: 1992.4 | E38: MJ/unit | F38: 1656.87 | G38: 167.66 | H38: kgCO2eq/unit | K38: 8131.1 | L38: 1992.4 | N38: 1656.87 | O38: 167.66
B39: Heat pump (30 kW) | C39: 24393.29 | D39: 5977.2 | E39: MJ/unit | F39: 4970.61 | G39: 502.99 | H39: kgCO2eq/unit | K39: 24393.29 | L39: 5977.2 | N39: 4970.61 | O39: 502.99
B40: <Heat storage> | C40: 0 | D40: 0 | E40: MJ/unit | F40: 0 | G40: 0 | H40: kgCO2eq/unit | K40: 0 | L40: 0 | N40: 0 | O40: 0
B41: Heat storage (2000 l) | C41: 14811.72 | D41: 21.32 | E41: MJ/unit | F41: 783.31 | G41: 12.71 | H41: kgCO2eq/unit | K41: 14811.72 | L41: 21.32 | N41: 783.31 | O41: 12.71
B42: <Inverter > | C42: 0 | D42: 0 | E42: MJ/unit | F42: 0 | G42: 0 | H42: kgCO2eq/unit | K42: 0 | L42: 0 | N42: 0 | O42: 0
B43: Inverter (2500 W) | C43: 3212.4 | D43: 3.72 | E43: MJ/unit | F43: 173.72 | G43: 1.37 | H43: kgCO2eq/unit | K43: 3212.4 | L43: 3.72 | N43: 173.72 | O43: 1.37
B44: Inverter (500 W) | C44: 685.25 | D44: 1.68 | E44: MJ/unit | F44: 36.31 | G44: 1.28 | H44: kgCO2eq/unit | K44: 685.25 | L44: 1.68 | N44: 36.31 | O44: 1.28
B45: <Photovoltaic panel> | C45: 0 | D45: 0 | E45: MJ/m2 | F45: 0 | G45: 0 | H45: kgCO2eq/m2 | K45: 0 | L45: 0 | N45: 0 | O45: 0
B46: Photovoltaic panel, a-Si | C46: 1181.7 | D46: 1.55 | E46: MJ/m2 | F46: 72.96 | G46: 4.23 | H46: kgCO2eq/m2 | K46: 1181.7 | L46: 1.55 | N46: 72.96 | O46: 4.23
B47: Photovoltaic panel, CdTe | C47: 1515.69 | D47: 1.55 | E47: MJ/m2 | F47: 96.28 | G47: 4.23 | H47: kgCO2eq/m2 | K47: 1515.69 | L47: 1.55 | N47: 96.28 | O47: 4.23
B48: Photovoltaic panel, CIS | C48: 2029.44 | D48: 1.55 | E48: MJ/m2 | F48: 121.68 | G48: 4.23 | H48: kgCO2eq/m2 | K48: 2029.44 | L48: 1.55 | N48: 121.68 | O48: 4.23
B49: Photovoltaic panel, multi-Si | C49: 3060.77 | D49: 1.55 | E49: MJ/m2 | F49: 156.67 | G49: 4.23 | H49: kgCO2eq/m2 | K49: 3060.77 | L49: 1.55 | N49: 156.67 | O49: 4.23
B50: Photovoltaic panel, ribbon-Si | C50: 2414.7 | D50: 1.55 | E50: MJ/m2 | F50: 126.67 | G50: 4.23 | H50: kgCO2eq/m2 | K50: 2414.7 | L50: 1.55 | N50: 126.67 | O50: 4.23
B51: Photovoltaic panel, single-Si | C51: 3854.8 | D51: 1.55 | E51: MJ/m2 | F51: 196.06 | G51: 4.23 | H51: kgCO2eq/m2 | K51: 3854.8 | L51: 1.55 | N51: 196.06 | O51: 4.23
B52: <Pipes> | C52: 0 | D52: 0 | E52: MJ/m | F52: 0 | G52: 0 | H52: kgCO2eq/m | K52: 0 | L52: 0 | N52: 0 | O52: 0
B53: Pipes | C53: 65.48 | D53: 0.33 | E53: MJ/m | F53: 2.63 | G53: 0.1 | H53: kgCO2eq/m | K53: 65.48 | L53: 0.33 | N53: 2.63 | O53: 0.1
B54: <Pump> | C54: 0 | D54: 0 | E54: MJ/unit | F54: 0 | G54: 0 | H54: kgCO2eq/unit | K54: 0 | L54: 0 | N54: 0 | O54: 0
B55: Pump (40 W) | C55: 118.18 | D55: 0.37 | E55: MJ/unit | F55: 6.91 | G55: 0.08 | H55: kgCO2eq/unit | K55: 118.18 | L55: 0.37 | N55: 6.91 | O55: 0.08
B56: <Water> | C56: 0 | D56: 0 | E56: MJ/kg | F56: 0 | G56: 0 | H56: kgCO2eq/kg | K56: 0 | L56: 0 | N56: 0 | O56: 0
B57: Water | C57: 0.02 | D57: 0 | E57: MJ/kg | F57: 0 | G57: 0 | H57: kgCO2eq/kg | K57: =+ROUND(C57,2) -> 0.02 | L57: =+ROUND(D57,2) -> 0 | N57: 0 | O57: 0
B58: <Electricity> | E58: MJ/kWh | H58: kg CO2eq/kWh
B59: Electricity, low voltage, Austria (excluding import) | C59: 8.07 | E59: MJ/kWh | F59: 0.36 | H59: kg CO2eq/kWh | K59: =+ROUND(C59,2) -> 8.07 | N59: =+ROUND(F59,2) -> 0.36
B60: Electricity, low voltage, Austria (including import) | C60: 9.06 | E60: MJ/kWh | F60: 0.45 | H60: kg CO2eq/kWh | K60: =+ROUND(C60,2) -> 9.06 | N60: =+ROUND(F60,2) -> 0.45
B61: Electricity, low voltage, Belgium (excluding import) | C61: 12.51 | E61: MJ/kWh | F61: 0.36 | H61: kg CO2eq/kWh | K61: 12.51 | N61: 0.36
B62: Electricity, low voltage, Belgium (including import) | C62: 12.49 | E62: MJ/kWh | F62: 0.37 | H62: kg CO2eq/kWh | K62: 12.49 | N62: 0.37
B63: Electricity, low voltage, Bulgaria (excluding import) | C63: 15.52 | E63: MJ/kWh | F63: 0.79 | H63: kg CO2eq/kWh | K63: 15.52 | N63: 0.79
B64: Electricity, low voltage, Bulgaria (including import) | C64: 15.48 | E64: MJ/kWh | F64: 0.79 | H64: kg CO2eq/kWh | K64: 15.48 | N64: 0.79
B65: Electricity, low voltage, Croatia (excluding import) | C65: 10.84 | E65: MJ/kWh | F65: 0.42 | H65: kg CO2eq/kWh | K65: 10.84 | N65: 0.42
B66: Electricity, low voltage, Croatia (including import) | C66: 12.47 | E66: MJ/kWh | F66: 0.6 | H66: kg CO2eq/kWh | K66: 12.47 | N66: 0.6
B67: Electricity, low voltage, Czech Republic (excluding import) | C67: 13.19 | E67: MJ/kWh | F67: 0.88 | H67: kg CO2eq/kWh | K67: 13.19 | N67: 0.88
B68: Electricity, low voltage, Czech Republic (including import) | C68: 13.41 | E68: MJ/kWh | F68: 0.93 | H68: kg CO2eq/kWh | K68: 13.41 | N68: 0.93
B69: Electricity, low voltage, Denmark (excluding import) | C69: 10.74 | E69: MJ/kWh | F69: 0.7 | H69: kg CO2eq/kWh | K69: 10.74 | N69: 0.7
B70: Electricity, low voltage, Denmark (including import) | C70: 10.61 | E70: MJ/kWh | F70: 0.63 | H70: kg CO2eq/kWh | K70: 10.61 | N70: 0.63
B71: Electricity, low voltage, Europe | C71: 12.29 | E71: MJ/kWh | F71: 0.56 | H71: kg CO2eq/kWh | K71: 12.29 | N71: 0.56
B72: Electricity, low voltage, Finland (excluding import) | C72: 12.49 | E72: MJ/kWh | F72: 0.44 | H72: kg CO2eq/kWh | K72: 12.49 | N72: 0.44
B73: Electricity, low voltage, Finland (including import) | C73: 12.66 | E73: MJ/kWh | F73: 0.5 | H73: kg CO2eq/kWh | K73: 12.66 | N73: 0.5
B74: Electricity, low voltage, France (excluding import) | C74: 13.63 | E74: MJ/kWh | F74: 0.11 | H74: kg CO2eq/kWh | K74: 13.63 | N74: 0.11
B75: Electricity, low voltage, France (including import) | C75: 13.57 | E75: MJ/kWh | F75: 0.11 | H75: kg CO2eq/kWh | K75: 13.57 | N75: 0.11
B76: Electricity, low voltage, Germany (excluding import) | C76: 12.66 | E76: MJ/kWh | F76: 0.75 | H76: kg CO2eq/kWh | K76: 12.66 | N76: 0.75
B77: Electricity, low voltage, Germany (including import) | C77: 12.58 | E77: MJ/kWh | F77: 0.72 | H77: kg CO2eq/kWh | K77: 12.58 | N77: 0.72
B78: Electricity, low voltage, Greece (excluding import) | C78: 18.66 | E78: MJ/kWh | F78: 1.18 | H78: kg CO2eq/kWh | K78: 18.66 | N78: 1.18
B79: Electricity, low voltage, Greece (including import) | C79: 18.27 | E79: MJ/kWh | F79: 1.15 | H79: kg CO2eq/kWh | K79: 18.27 | N79: 1.15
B80: Electricity, low voltage, Hungary (excluding import) | C80: 17.05 | E80: MJ/kWh | F80: 0.84 | H80: kg CO2eq/kWh | K80: 17.05 | N80: 0.84
B81: Electricity, low voltage, Hungary (including import) | C81: 16.18 | E81: MJ/kWh | F81: 0.75 | H81: kg CO2eq/kWh | K81: 16.18 | N81: 0.75
B82: Electricity, low voltage, Ireland (excluding import) | C82: 13.06 | E82: MJ/kWh | F82: 0.9 | H82: kg CO2eq/kWh | K82: 13.06 | N82: 0.9
B83: Electricity, low voltage, Ireland (including import) | C83: 13.01 | E83: MJ/kWh | F83: 0.89 | H83: kg CO2eq/kWh | K83: 13.01 | N83: 0.89
B84: Electricity, low voltage, Italy (excluding import) | C84: 10.71 | E84: MJ/kWh | F84: 0.72 | H84: kg CO2eq/kWh | K84: 10.71 | N84: 0.72
B85: Electricity, low voltage, Italy (including import) | C85: 10.74 | E85: MJ/kWh | F85: 0.64 | H85: kg CO2eq/kWh | K85: 10.74 | N85: 0.64
B86: Electricity, low voltage, Luxembourg (excluding import) | C86: 10.82 | E86: MJ/kWh | F86: 0.6 | H86: kg CO2eq/kWh | K86: 10.82 | N86: 0.6
B87: Electricity, low voltage, Luxembourg (including import) | C87: 12.11 | E87: MJ/kWh | F87: 0.64 | H87: kg CO2eq/kWh | K87: 12.11 | N87: 0.64
B88: Electricity, low voltage, Netherlands (excluding import) | C88: 11.85 | E88: MJ/kWh | F88: 0.74 | H88: kg CO2eq/kWh | K88: 11.85 | N88: 0.74
B89: Electricity, low voltage, Netherlands (including import) | C89: 11.92 | E89: MJ/kWh | F89: 0.73 | H89: kg CO2eq/kWh | K89: 11.92 | N89: 0.73
B90: Electricity, low voltage, Poland (excluding import) | C90: 16.05 | E90: MJ/kWh | F90: 1.37 | H90: kg CO2eq/kWh | K90: 16.05 | N90: 1.37
B91: Electricity, low voltage, Poland (including import) | C91: 14.18 | E91: MJ/kWh | F91: 1.2 | H91: kg CO2eq/kWh | K91: 14.18 | N91: 1.2
B92: Electricity, low voltage, Portugal (excluding import) | C92: 11.52 | E92: MJ/kWh | F92: 0.71 | H92: kg CO2eq/kWh | K92: 11.52 | N92: 0.71
B93: Electricity, low voltage, Portugal (including import) | C93: 11.62 | E93: MJ/kWh | F93: 0.7 | H93: kg CO2eq/kWh | K93: 11.62 | N93: 0.7
B94: Electricity, low voltage, Romania (excluding import) | C94: 12.42 | E94: MJ/kWh | F94: 0.81 | H94: kg CO2eq/kWh | K94: 12.42 | N94: 0.81
B95: Electricity, low voltage, Romania (including import) | C95: 12.5 | E95: MJ/kWh | F95: 0.81 | H95: kg CO2eq/kWh | K95: 12.5 | N95: 0.81
B96: Electricity, low voltage, Slovakia (excluding import) | C96: 12.81 | E96: MJ/kWh | F96: 0.41 | H96: kg CO2eq/kWh | K96: 12.81 | N96: 0.41
B97: Electricity, low voltage, Slovakia (including import) | C97: 11.93 | E97: MJ/kWh | F97: 0.51 | H97: kg CO2eq/kWh | K97: 11.93 | N97: 0.51
B98: Electricity, low voltage, Slovenia (excluding import) | C98: 10.39 | E98: MJ/kWh | F98: 0.56 | H98: kg CO2eq/kWh | K98: 10.39 | N98: 0.56
B99: Electricity, low voltage, Slovenia (including import) | C99: 9.95 | E99: MJ/kWh | F99: 0.49 | H99: kg CO2eq/kWh | K99: 9.95 | N99: 0.49
B100: Electricity, low voltage, Spain (excluding import) | C100: 12.17 | E100: MJ/kWh | F100: 0.61 | H100: kg CO2eq/kWh | K100: 12.17 | N100: 0.61
B101: Electricity, low voltage, Spain (including import) | C101: 12.21 | E101: MJ/kWh | F101: 0.6 | H101: kg CO2eq/kWh | K101: 12.21 | N101: 0.6
B102: Electricity, low voltage, Sweden (excluding import) | C102: 10.55 | E102: MJ/kWh | F102: 0.05 | H102: kg CO2eq/kWh | K102: 10.55 | N102: 0.05
B103: Electricity, low voltage, Sweden (including import) | C103: 10.66 | E103: MJ/kWh | F103: 0.1 | H103: kg CO2eq/kWh | K103: 10.66 | N103: 0.1
B104: Electricity, low voltage, Switzerland (excluding import) | C104: 8.68 | E104: MJ/kWh | F104: 0.03 | H104: kg CO2eq/kWh | K104: 8.68 | N104: 0.03
B105: Electricity, low voltage, Switzerland (including import) | C105: 10.98 | E105: MJ/kWh | F105: 0.15 | H105: kg CO2eq/kWh | K105: 10.98 | N105: 0.15
B106: Electricity, low voltage, United Kingdom (excluding import) | C106: 12.37 | E106: MJ/kWh | F106: 0.7 | H106: kg CO2eq/kWh | K106: 12.37 | N106: 0.7
B107: Electricity, low voltage, United Kingdom (including import) | C107: 12.41 | E107: MJ/kWh | F107: 0.69 | H107: kg CO2eq/kWh | K107: 12.41 | N107: 0.69
B108: <Natural gas> | C108: 0 | F108: 0 | K108: 0 | N108: 0
B109: Natural gas, burned in boiler atmosferic burner non-modulating, <100 kW, Europe | C109: 4.44 | E109: MJ/kWh | F109: 0.27 | H109: kg CO2eq/kWh | K109: 4.44 | N109: 0.27
B110: Natural gas, burned in boiler atmosferic low-NOx condensing non-modulating, <100 kW, Europe | C110: 4.61 | E110: MJ/kWh | F110: 0.27 | H110: kg CO2eq/kWh | K110: 4.61 | N110: 0.27
B111: Natural gas, burned in boiler condensing modulating, <100 kW, Europe | C111: 4.48 | E111: MJ/kWh | F111: 0.27 | H111: kg CO2eq/kWh | K111: 4.48 | N111: 0.27
B112: Natural gas, burned in boiler condensing modulating, >100 kW, Europe | C112: 4.3 | E112: MJ/kWh | F112: 0.25 | H112: kg CO2eq/kWh | K112: 4.3 | N112: 0.25
B113: Natural gas, burned in boiler fan burner low-Nox non-modulating, <100 kW, Europe | C113: 4.74 | E113: MJ/kWh | F113: 0.28 | H113: kg CO2eq/kWh | K113: 4.74 | N113: 0.28
B114: Natural gas, burned in boiler fan burner non-modulating, <100 kW, Europe | C114: 4.48 | E114: MJ/kWh | F114: 0.27 | H114: kg CO2eq/kWh | K114: 4.48 | N114: 0.27
B115: Natural gas, burned in boiler modulating, <100 kW, Europe | C115: 4.48 | E115: MJ/kWh | F115: 0.27 | H115: kg CO2eq/kWh | K115: 4.48 | N115: 0.27
B116: Natural gas, burned in boiler modulating, >100 kW, Europe | C116: 4.3 | E116: MJ/kWh | F116: 0.25 | H116: kg CO2eq/kWh | K116: 4.3 | N116: 0.25
B117: Natural gas, burned in industrial furnace low-NOx, >100 kW, Europe | C117: 4.44 | E117: MJ/kWh | F117: 0.25 | H117: kg CO2eq/kWh | K117: 4.44 | N117: 0.25
B118: Natural gas, burned in industrial furnace, >100 kW, Europe | C118: 4.3 | E118: MJ/kWh | F118: 0.25 | H118: kg CO2eq/kWh | K118: 4.3 | N118: 0.25

Sheet Calcolo a (hidden)
B1: =+'SHC system'!C11 -> COMPONENTS OF THE SHC SYSTEM | C1: Global Energy Requirement (Ger) | E1: Global Warming Potential (Gwp) | H1: Calcolo xxx | J1: tabella1 | P1: Tabella 2
B2: =+'SHC system'!C12 -> Category | C2: Manufacturing Step | D2: End-Of-Life Step | E2: Manufacturing Step | F2: End-Of-Life Step | H2: Manufacturing Step | I2: Use phase | J2: End-Of-Life Step | K2: Manufacturing Step | L2: Use phase | M2: End-Of-Life Step | P2: Type | Q2: Global Energy Requirement (Ger) | R2: Global Warming Potential (Gwp)
B3: =+IF('SHC system'!C13=0,"",'SHC system'!C13) -> <Ammonia> | C3: =+IFERROR(IF(VLOOKUP('Calcolo a'!$B3,Library!$B$2:$H$57,2,FALSE)=0,"",VLOOKUP('Calcolo a'!$B3,Library!$B$2:$H$57,2,FALSE)),"") ->  | D3: =+IFERROR(IF(VLOOKUP('Calcolo a'!$B3,Library!$B$2:$H$57,3,FALSE)=0,"",VLOOKUP('Calcolo a'!$B3,Library!$B$2:$H$57,3,FALSE)),"") ->  | E3: =+IFERROR(IF(VLOOKUP('Calcolo a'!$B3,Library!$B$2:$H$57,5,FALSE)=0,"",VLOOKUP('Calcolo a'!$B3,Library!$B$2:$H$57,5,FALSE)),"") ->  | F3: =+IFERROR(IF(VLOOKUP('Calcolo a'!$B3,Library!$B$2:$H$57,6,FALSE)=0,"",VLOOKUP('Calcolo a'!$B3,Library!$B$2:$H$57,6,FALSE)),"") ->  | G3: =+IF(H3="","",'SHC system'!C13) ->  | H3: =+IF(C3=0,"",IFERROR(C3*'SHC system'!$F13*('SHC system'!$H13+1),"")) ->  | J3: =+IFERROR(D3*'SHC system'!$F13*('SHC system'!$H13+1),"") ->  | K3: =+IFERROR(E3*'SHC system'!$F13*('SHC system'!$H13+1),"") ->  | M3: =+IFERROR(F3*'SHC system'!$F13*('SHC system'!$H13+1),"") ->  | P3: =+PROPER(B1) -> Components Of The Shc System | Q3: =+SUM(H3:J19) -> 0 | R3: =+SUM(K3:M19) -> 0
B4: =+IF('SHC system'!C14=0,"",'SHC system'!C14) -> <Auxiliary Conventional Chiller> | C4: =+IFERROR(IF(VLOOKUP('Calcolo a'!$B4,Library!$B$2:$H$57,2,FALSE)=0,"",VLOOKUP('Calcolo a'!$B4,Library!$B$2:$H$57,2,FALSE)),"") ->  | D4: =+IFERROR(IF(VLOOKUP('Calcolo a'!$B4,Library!$B$2:$H$57,3,FALSE)=0,"",VLOOKUP('Calcolo a'!$B4,Library!$B$2:$H$57,3,FALSE)),"") ->  | E4: =+IFERROR(IF(VLOOKUP('Calcolo a'!$B4,Library!$B$2:$H$57,5,FALSE)=0,"",VLOOKUP('Calcolo a'!$B4,Library!$B$2:$H$57,5,FALSE)),"") ->  | F4: =+IFERROR(IF(VLOOKUP('Calcolo a'!$B4,Library!$B$2:$H$57,6,FALSE)=0,"",VLOOKUP('Calcolo a'!$B4,Library!$B$2:$H$57,6,FALSE)),"") ->  | G4: =+IF(H4="","",'SHC system'!C14) ->  | H4: =+IF(C4=0,"",IFERROR(C4*'SHC system'!$F14*('SHC system'!$H14+1),"")) ->  | J4: =+IFERROR(D4*'SHC system'!$F14*('SHC system'!$H14+1),"") ->  | K4: =+IFERROR(E4*'SHC system'!$F14*('SHC system'!$H14+1),"") ->  | M4: =+IFERROR(F4*'SHC system'!$F14*('SHC system'!$H14+1),"") ->  | P4: =+CONCATENATE(PROPER(B20)," ","(",'Calcolo a'!F21," years)") -> Energy Sources (0 years) | Q4: =+SUM(I22:I23) -> 0 | R4: =+SUM(L22:L23) -> 0
B5: =+IF('SHC system'!C15=0,"",'SHC system'!C15) -> <Auxiliary Gas Boiler> | C5: =+IFERROR(IF(VLOOKUP('Calcolo a'!$B5,Library!$B$2:$H$57,2,FALSE)=0,"",VLOOKUP('Calcolo a'!$B5,Library!$B$2:$H$57,2,FALSE)),"") ->  | D5: =+IFERROR(IF(VLOOKUP('Calcolo a'!$B5,Library!$B$2:$H$57,3,FALSE)=0,"",VLOOKUP('Calcolo a'!$B5,Library!$B$2:$H$57,3,FALSE)),"") ->  | E5: =+IFERROR(IF(VLOOKUP('Calcolo a'!$B5,Library!$B$2:$H$57,5,FALSE)=0,"",VLOOKUP('Calcolo a'!$B5,Library!$B$2:$H$57,5,FALSE)),"") ->  | F5: =+IFERROR(IF(VLOOKUP('Calcolo a'!$B5,Library!$B$2:$H$57,6,FALSE)=0,"",VLOOKUP('Calcolo a'!$B5,Library!$B$2:$H$57,6,FALSE)),"") ->  | G5: =+IF(H5="","",'SHC system'!C15) ->  | H5: =+IF(C5=0,"",IFERROR(C5*'SHC system'!$F15*('SHC system'!$H15+1),"")) ->  | J5: =+IFERROR(D5*'SHC system'!$F15*('SHC system'!$H15+1),"") ->  | K5: =+IFERROR(E5*'SHC system'!$F15*('SHC system'!$H15+1),"") ->  | M5: =+IFERROR(F5*'SHC system'!$F15*('SHC system'!$H15+1),"") -> 
B6: =+IF('SHC system'!C16=0,"",'SHC system'!C16) -> <Chiller (ad/ab-sorption)> | C6: =+IFERROR(IF(VLOOKUP('Calcolo a'!$B6,Library!$B$2:$H$57,2,FALSE)=0,"",VLOOKUP('Calcolo a'!$B6,Library!$B$2:$H$57,2,FALSE)),"") ->  | D6: =+IFERROR(IF(VLOOKUP('Calcolo a'!$B6,Library!$B$2:$H$57,3,FALSE)=0,"",VLOOKUP('Calcolo a'!$B6,Library!$B$2:$H$57,3,FALSE)),"") ->  | E6: =+IFERROR(IF(VLOOKUP('Calcolo a'!$B6,Library!$B$2:$H$57,5,FALSE)=0,"",VLOOKUP('Calcolo a'!$B6,Library!$B$2:$H$57,5,FALSE)),"") ->  | F6: =+IFERROR(IF(VLOOKUP('Calcolo a'!$B6,Library!$B$2:$H$57,6,FALSE)=0,"",VLOOKUP('Calcolo a'!$B6,Library!$B$2:$H$57,6,FALSE)),"") ->  | G6: =+IF(H6="","",'SHC system'!C16) ->  | H6: =+IF(C6=0,"",IFERROR(C6*'SHC system'!$F16*('SHC system'!$H16+1),"")) ->  | J6: =+IFERROR(D6*'SHC system'!$F16*('SHC system'!$H16+1),"") ->  | K6: =+IFERROR(E6*'SHC system'!$F16*('SHC system'!$H16+1),"") ->  | M6: =+IFERROR(F6*'SHC system'!$F16*('SHC system'!$H16+1),"") -> 
B7: =+IF('SHC system'!C17=0,"",'SHC system'!C17) -> <Cooling tower> | C7: =+IFERROR(IF(VLOOKUP('Calcolo a'!$B7,Library!$B$2:$H$57,2,FALSE)=0,"",VLOOKUP('Calcolo a'!$B7,Library!$B$2:$H$57,2,FALSE)),"") ->  | D7: =+IFERROR(IF(VLOOKUP('Calcolo a'!$B7,Library!$B$2:$H$57,3,FALSE)=0,"",VLOOKUP('Calcolo a'!$B7,Library!$B$2:$H$57,3,FALSE)),"") ->  | E7: =+IFERROR(IF(VLOOKUP('Calcolo a'!$B7,Library!$B$2:$H$57,5,FALSE)=0,"",VLOOKUP('Calcolo a'!$B7,Library!$B$2:$H$57,5,FALSE)),"") ->  | F7: =+IFERROR(IF(VLOOKUP('Calcolo a'!$B7,Library!$B$2:$H$57,6,FALSE)=0,"",VLOOKUP('Calcolo a'!$B7,Library!$B$2:$H$57,6,FALSE)),"") ->  | G7: =+IF(H7="","",'SHC system'!C17) ->  | H7: =+IF(C7=0,"",IFERROR(C7*'SHC system'!$F17*('SHC system'!$H17+1),"")) ->  | J7: =+IFERROR(D7*'SHC system'!$F17*('SHC system'!$H17+1),"") ->  | K7: =+IFERROR(E7*'SHC system'!$F17*('SHC system'!$H17+1),"") ->  | M7: =+IFERROR(F7*'SHC system'!$F17*('SHC system'!$H17+1),"") -> 
B8: =+IF('SHC system'!C18=0,"",'SHC system'!C18) -> <Glycol> | C8: =+IFERROR(IF(VLOOKUP('Calcolo a'!$B8,Library!$B$2:$H$57,2,FALSE)=0,"",VLOOKUP('Calcolo a'!$B8,Library!$B$2:$H$57,2,FALSE)),"") ->  | D8: =+IFERROR(IF(VLOOKUP('Calcolo a'!$B8,Library!$B$2:$H$57,3,FALSE)=0,"",VLOOKUP('Calcolo a'!$B8,Library!$B$2:$H$57,3,FALSE)),"") ->  | E8: =+IFERROR(IF(VLOOKUP('Calcolo a'!$B8,Library!$B$2:$H$57,5,FALSE)=0,"",VLOOKUP('Calcolo a'!$B8,Library!$B$2:$H$57,5,FALSE)),"") ->  | F8: =+IFERROR(IF(VLOOKUP('Calcolo a'!$B8,Library!$B$2:$H$57,6,FALSE)=0,"",VLOOKUP('Calcolo a'!$B8,Library!$B$2:$H$57,6,FALSE)),"") ->  | G8: =+IF(H8="","",'SHC system'!C18) ->  | H8: =+IF(C8=0,"",IFERROR(C8*'SHC system'!$F18*('SHC system'!$H18+1),"")) ->  | J8: =+IFERROR(D8*'SHC system'!$F18*('SHC system'!$H18+1),"") ->  | K8: =+IFERROR(E8*'SHC system'!$F18*('SHC system'!$H18+1),"") ->  | M8: =+IFERROR(F8*'SHC system'!$F18*('SHC system'!$H18+1),"") -> 
B9: =+IF('SHC system'!C19=0,"",'SHC system'!C19) -> <Heat rejection system> | C9: =+IFERROR(IF(VLOOKUP('Calcolo a'!$B9,Library!$B$2:$H$57,2,FALSE)=0,"",VLOOKUP('Calcolo a'!$B9,Library!$B$2:$H$57,2,FALSE)),"") ->  | D9: =+IFERROR(IF(VLOOKUP('Calcolo a'!$B9,Library!$B$2:$H$57,3,FALSE)=0,"",VLOOKUP('Calcolo a'!$B9,Library!$B$2:$H$57,3,FALSE)),"") ->  | E9: =+IFERROR(IF(VLOOKUP('Calcolo a'!$B9,Library!$B$2:$H$57,5,FALSE)=0,"",VLOOKUP('Calcolo a'!$B9,Library!$B$2:$H$57,5,FALSE)),"") ->  | F9: =+IFERROR(IF(VLOOKUP('Calcolo a'!$B9,Library!$B$2:$H$57,6,FALSE)=0,"",VLOOKUP('Calcolo a'!$B9,Library!$B$2:$H$57,6,FALSE)),"") ->  | G9: =+IF(H9="","",'SHC system'!C19) ->  | H9: =+IF(C9=0,"",IFERROR(C9*'SHC system'!$F19*('SHC system'!$H19+1),"")) ->  | J9: =+IFERROR(D9*'SHC system'!$F19*('SHC system'!$H19+1),"") ->  | K9: =+IFERROR(E9*'SHC system'!$F19*('SHC system'!$H19+1),"") ->  | M9: =+IFERROR(F9*'SHC system'!$F19*('SHC system'!$H19+1),"") -> 
B10: =+IF('SHC system'!C20=0,"",'SHC system'!C20) -> <Heat storage> | C10: =+IFERROR(IF(VLOOKUP('Calcolo a'!$B10,Library!$B$2:$H$57,2,FALSE)=0,"",VLOOKUP('Calcolo a'!$B10,Library!$B$2:$H$57,2,FALSE)),"") ->  | D10: =+IFERROR(IF(VLOOKUP('Calcolo a'!$B10,Library!$B$2:$H$57,3,FALSE)=0,"",VLOOKUP('Calcolo a'!$B10,Library!$B$2:$H$57,3,FALSE)),"") ->  | E10: =+IFERROR(IF(VLOOKUP('Calcolo a'!$B10,Library!$B$2:$H$57,5,FALSE)=0,"",VLOOKUP('Calcolo a'!$B10,Library!$B$2:$H$57,5,FALSE)),"") ->  | F10: =+IFERROR(IF(VLOOKUP('Calcolo a'!$B10,Library!$B$2:$H$57,6,FALSE)=0,"",VLOOKUP('Calcolo a'!$B10,Library!$B$2:$H$57,6,FALSE)),"") ->  | G10: =+IF(H10="","",'SHC system'!C20) ->  | H10: =+IF(C10=0,"",IFERROR(C10*'SHC system'!$F20*('SHC system'!$H20+1),"")) ->  | J10: =+IFERROR(D10*'SHC system'!$F20*('SHC system'!$H20+1),"") ->  | K10: =+IFERROR(E10*'SHC system'!$F20*('SHC system'!$H20+1),"") ->  | M10: =+IFERROR(F10*'SHC system'!$F20*('SHC system'!$H20+1),"") -> 
B11: =+IF('SHC system'!C21=0,"",'SHC system'!C21) -> <Heat-pump> | C11: =+IFERROR(IF(VLOOKUP('Calcolo a'!$B11,Library!$B$2:$H$57,2,FALSE)=0,"",VLOOKUP('Calcolo a'!$B11,Library!$B$2:$H$57,2,FALSE)),"") ->  | D11: =+IFERROR(IF(VLOOKUP('Calcolo a'!$B11,Library!$B$2:$H$57,3,FALSE)=0,"",VLOOKUP('Calcolo a'!$B11,Library!$B$2:$H$57,3,FALSE)),"") ->  | E11: =+IFERROR(IF(VLOOKUP('Calcolo a'!$B11,Library!$B$2:$H$57,5,FALSE)=0,"",VLOOKUP('Calcolo a'!$B11,Library!$B$2:$H$57,5,FALSE)),"") ->  | F11: =+IFERROR(IF(VLOOKUP('Calcolo a'!$B11,Library!$B$2:$H$57,6,FALSE)=0,"",VLOOKUP('Calcolo a'!$B11,Library!$B$2:$H$57,6,FALSE)),"") ->  | G11: =+IF(H11="","",'SHC system'!C21) ->  | H11: =+IF(C11=0,"",IFERROR(C11*'SHC system'!$F21*('SHC system'!$H21+1),"")) ->  | J11: =+IFERROR(D11*'SHC system'!$F21*('SHC system'!$H21+1),"") ->  | K11: =+IFERROR(E11*'SHC system'!$F21*('SHC system'!$H21+1),"") ->  | M11: =+IFERROR(F11*'SHC system'!$F21*('SHC system'!$H21+1),"") -> 
B12: =+IF('SHC system'!C22=0,"",'SHC system'!C22) -> <Pipes> | C12: =+IFERROR(IF(VLOOKUP('Calcolo a'!$B12,Library!$B$2:$H$57,2,FALSE)=0,"",VLOOKUP('Calcolo a'!$B12,Library!$B$2:$H$57,2,FALSE)),"") ->  | D12: =+IFERROR(IF(VLOOKUP('Calcolo a'!$B12,Library!$B$2:$H$57,3,FALSE)=0,"",VLOOKUP('Calcolo a'!$B12,Library!$B$2:$H$57,3,FALSE)),"") ->  | E12: =+IFERROR(IF(VLOOKUP('Calcolo a'!$B12,Library!$B$2:$H$57,5,FALSE)=0,"",VLOOKUP('Calcolo a'!$B12,Library!$B$2:$H$57,5,FALSE)),"") ->  | F12: =+IFERROR(IF(VLOOKUP('Calcolo a'!$B12,Library!$B$2:$H$57,6,FALSE)=0,"",VLOOKUP('Calcolo a'!$B12,Library!$B$2:$H$57,6,FALSE)),"") ->  | G12: =+IF(H12="","",'SHC system'!C22) ->  | H12: =+IF(C12=0,"",IFERROR(C12*'SHC system'!$F22*('SHC system'!$H22+1),"")) ->  | J12: =+IFERROR(D12*'SHC system'!$F22*('SHC system'!$H22+1),"") ->  | K12: =+IFERROR(E12*'SHC system'!$F22*('SHC system'!$H22+1),"") ->  | M12: =+IFERROR(F12*'SHC system'!$F22*('SHC system'!$H22+1),"") -> 
B13: =+IF('SHC system'!C23=0,"",'SHC system'!C23) -> <Pump> | C13: =+IFERROR(IF(VLOOKUP('Calcolo a'!$B13,Library!$B$2:$H$57,2,FALSE)=0,"",VLOOKUP('Calcolo a'!$B13,Library!$B$2:$H$57,2,FALSE)),"") ->  | D13: =+IFERROR(IF(VLOOKUP('Calcolo a'!$B13,Library!$B$2:$H$57,3,FALSE)=0,"",VLOOKUP('Calcolo a'!$B13,Library!$B$2:$H$57,3,FALSE)),"") ->  | E13: =+IFERROR(IF(VLOOKUP('Calcolo a'!$B13,Library!$B$2:$H$57,5,FALSE)=0,"",VLOOKUP('Calcolo a'!$B13,Library!$B$2:$H$57,5,FALSE)),"") ->  | F13: =+IFERROR(IF(VLOOKUP('Calcolo a'!$B13,Library!$B$2:$H$57,6,FALSE)=0,"",VLOOKUP('Calcolo a'!$B13,Library!$B$2:$H$57,6,FALSE)),"") ->  | G13: =+IF(H13="","",'SHC system'!C23) ->  | H13: =+IF(C13=0,"",IFERROR(C13*'SHC system'!$F23*('SHC system'!$H23+1),"")) ->  | J13: =+IFERROR(D13*'SHC system'!$F23*('SHC system'!$H23+1),"") ->  | K13: =+IFERROR(E13*'SHC system'!$F23*('SHC system'!$H23+1),"") ->  | M13: =+IFERROR(F13*'SHC system'!$F23*('SHC system'!$H23+1),"") -> 
B14: =+IF('SHC system'!C24=0,"",'SHC system'!C24) -> <Solar thermal collectors> | C14: =+IFERROR(IF(VLOOKUP('Calcolo a'!$B14,Library!$B$2:$H$57,2,FALSE)=0,"",VLOOKUP('Calcolo a'!$B14,Library!$B$2:$H$57,2,FALSE)),"") ->  | D14: =+IFERROR(IF(VLOOKUP('Calcolo a'!$B14,Library!$B$2:$H$57,3,FALSE)=0,"",VLOOKUP('Calcolo a'!$B14,Library!$B$2:$H$57,3,FALSE)),"") ->  | E14: =+IFERROR(IF(VLOOKUP('Calcolo a'!$B14,Library!$B$2:$H$57,5,FALSE)=0,"",VLOOKUP('Calcolo a'!$B14,Library!$B$2:$H$57,5,FALSE)),"") ->  | F14: =+IFERROR(IF(VLOOKUP('Calcolo a'!$B14,Library!$B$2:$H$57,6,FALSE)=0,"",VLOOKUP('Calcolo a'!$B14,Library!$B$2:$H$57,6,FALSE)),"") ->  | G14: =+IF(H14="","",'SHC system'!C24) ->  | H14: =+IF(C14=0,"",IFERROR(C14*'SHC system'!$F24*('SHC system'!$H24+1),"")) ->  | J14: =+IFERROR(D14*'SHC system'!$F24*('SHC system'!$H24+1),"") ->  | K14: =+IFERROR(E14*'SHC system'!$F24*('SHC system'!$H24+1),"") ->  | M14: =+IFERROR(F14*'SHC system'!$F24*('SHC system'!$H24+1),"") -> 
B15: =+IF('SHC system'!C25=0,"",'SHC system'!C25) -> <Water> | C15: =+IFERROR(IF(VLOOKUP('Calcolo a'!$B15,Library!$B$2:$H$57,2,FALSE)=0,"",VLOOKUP('Calcolo a'!$B15,Library!$B$2:$H$57,2,FALSE)),"") ->  | D15: =+IFERROR(IF(VLOOKUP('Calcolo a'!$B15,Library!$B$2:$H$57,3,FALSE)=0,"",VLOOKUP('Calcolo a'!$B15,Library!$B$2:$H$57,3,FALSE)),"") ->  | E15: =+IFERROR(IF(VLOOKUP('Calcolo a'!$B15,Library!$B$2:$H$57,5,FALSE)=0,"",VLOOKUP('Calcolo a'!$B15,Library!$B$2:$H$57,5,FALSE)),"") ->  | F15: =+IFERROR(IF(VLOOKUP('Calcolo a'!$B15,Library!$B$2:$H$57,6,FALSE)=0,"",VLOOKUP('Calcolo a'!$B15,Library!$B$2:$H$57,6,FALSE)),"") ->  | G15: =+IF(H15="","",'SHC system'!C25) ->  | H15: =+IF(C15=0,"",IFERROR(C15*'SHC system'!$F$13,"")) ->  | J15: =+IFERROR(D15*'SHC system'!$F25*('SHC system'!$H25+1),"") ->  | K15: =+IFERROR(E15*'SHC system'!$F25*('SHC system'!$H25+1),"") ->  | M15: =+IFERROR(F15*'SHC system'!$F25*('SHC system'!$H25+1),"") -> 
B16: =+IF('SHC system'!C26=0,"",'SHC system'!C26) ->  | C16: =+IFERROR(IF(VLOOKUP('Calcolo a'!$B16,Library!$B$2:$H$57,2,FALSE)=0,"",VLOOKUP('Calcolo a'!$B16,Library!$B$2:$H$57,2,FALSE)),"") ->  | D16: =+IFERROR(IF(VLOOKUP('Calcolo a'!$B16,Library!$B$2:$H$57,3,FALSE)=0,"",VLOOKUP('Calcolo a'!$B16,Library!$B$2:$H$57,3,FALSE)),"") ->  | E16: =+IFERROR(IF(VLOOKUP('Calcolo a'!$B16,Library!$B$2:$H$57,5,FALSE)=0,"",VLOOKUP('Calcolo a'!$B16,Library!$B$2:$H$57,5,FALSE)),"") ->  | F16: =+IFERROR(IF(VLOOKUP('Calcolo a'!$B16,Library!$B$2:$H$57,6,FALSE)=0,"",VLOOKUP('Calcolo a'!$B16,Library!$B$2:$H$57,6,FALSE)),"") ->  | G16: =+IF(H16="","",'SHC system'!C26) ->  | H16: =+IF(C16=0,"",IFERROR(C16*'SHC system'!$F$13,"")) ->  | J16: =+IFERROR(D16*'SHC system'!$F$13,"") ->  | K16: =+IFERROR(E16*'SHC system'!$F26*('SHC system'!$H26+1),"") ->  | M16: =+IFERROR(F16*'SHC system'!$F26*('SHC system'!$H26+1),"") -> 
B17: =+IF('SHC system'!C27=0,"",'SHC system'!C27) ->  | C17: =+IFERROR(IF(VLOOKUP('Calcolo a'!$B17,Library!$B$2:$H$57,2,FALSE)=0,"",VLOOKUP('Calcolo a'!$B17,Library!$B$2:$H$57,2,FALSE)),"") ->  | D17: =+IFERROR(IF(VLOOKUP('Calcolo a'!$B17,Library!$B$2:$H$57,3,FALSE)=0,"",VLOOKUP('Calcolo a'!$B17,Library!$B$2:$H$57,3,FALSE)),"") ->  | E17: =+IFERROR(IF(VLOOKUP('Calcolo a'!$B17,Library!$B$2:$H$57,5,FALSE)=0,"",VLOOKUP('Calcolo a'!$B17,Library!$B$2:$H$57,5,FALSE)),"") ->  | F17: =+IFERROR(IF(VLOOKUP('Calcolo a'!$B17,Library!$B$2:$H$57,6,FALSE)=0,"",VLOOKUP('Calcolo a'!$B17,Library!$B$2:$H$57,6,FALSE)),"") ->  | G17: =+IF(H17="","",'SHC system'!C27) ->  | H17: =+IF(C17=0,"",IFERROR(C17*'SHC system'!$F$13,"")) ->  | J17: =+IFERROR(D17*'SHC system'!$F$13,"") ->  | K17: =+IFERROR(E17*'SHC system'!$F$13,"") ->  | M17: =+IFERROR(F17*'SHC system'!$F27*('SHC system'!$H27+1),"") -> 
B18: =+IF('SHC system'!C28=0,"",'SHC system'!C28) ->  | C18: =+IFERROR(IF(VLOOKUP('Calcolo a'!$B18,Library!$B$2:$H$57,2,FALSE)=0,"",VLOOKUP('Calcolo a'!$B18,Library!$B$2:$H$57,2,FALSE)),"") ->  | D18: =+IFERROR(IF(VLOOKUP('Calcolo a'!$B18,Library!$B$2:$H$57,3,FALSE)=0,"",VLOOKUP('Calcolo a'!$B18,Library!$B$2:$H$57,3,FALSE)),"") ->  | E18: =+IFERROR(IF(VLOOKUP('Calcolo a'!$B18,Library!$B$2:$H$57,5,FALSE)=0,"",VLOOKUP('Calcolo a'!$B18,Library!$B$2:$H$57,5,FALSE)),"") ->  | F18: =+IFERROR(IF(VLOOKUP('Calcolo a'!$B18,Library!$B$2:$H$57,6,FALSE)=0,"",VLOOKUP('Calcolo a'!$B18,Library!$B$2:$H$57,6,FALSE)),"") ->  | G18: =+IF(H18="","",'SHC system'!C28) ->  | H18: =+IF(C18=0,"",IFERROR(C18*'SHC system'!$F$13,"")) ->  | J18: =+IFERROR(D18*'SHC system'!$F$13,"") ->  | K18: =+IFERROR(E18*'SHC system'!$F$13,"") ->  | M18: =+IFERROR(F18*'SHC system'!$F$13,"") -> 
B19: =+IF('SHC system'!C29=0,"",'SHC system'!C29) ->  | C19: =+IFERROR(IF(VLOOKUP('Calcolo a'!$B19,Library!$B$2:$H$57,2,FALSE)=0,"",VLOOKUP('Calcolo a'!$B19,Library!$B$2:$H$57,2,FALSE)),"") ->  | D19: =+IFERROR(IF(VLOOKUP('Calcolo a'!$B19,Library!$B$2:$H$57,3,FALSE)=0,"",VLOOKUP('Calcolo a'!$B19,Library!$B$2:$H$57,3,FALSE)),"") ->  | E19: =+IFERROR(IF(VLOOKUP('Calcolo a'!$B19,Library!$B$2:$H$57,5,FALSE)=0,"",VLOOKUP('Calcolo a'!$B19,Library!$B$2:$H$57,5,FALSE)),"") ->  | F19: =+IFERROR(IF(VLOOKUP('Calcolo a'!$B19,Library!$B$2:$H$57,6,FALSE)=0,"",VLOOKUP('Calcolo a'!$B19,Library!$B$2:$H$57,6,FALSE)),"") ->  | G19: =+IF(H19="","",'SHC system'!C29) ->  | H19: =+IFERROR(C19*'SHC system'!$F$13,"") ->  | J19: =+IFERROR(D19*'SHC system'!$F$13,"") ->  | K19: =+IFERROR(E19*'SHC system'!$F$13,"") ->  | M19: =+IFERROR(F19*'SHC system'!$F$13,"") -> 
B20: =+'SHC system'!C30 -> ENERGY SOURCES | C20: Global Energy Requirement (Ger) | E20: Global Warming Potential (Gwp) | F20: numbers years | H20: =+IFERROR(C20*'SHC system'!$F$13,"") ->  | K20: =+IFERROR(E20*'SHC system'!$F$13,"") ->  | M20: =+IFERROR(F20*'SHC system'!$F$13,"") -> 
C21: =+IFERROR(IF(VLOOKUP('Calcolo a'!$B21,Library!$B$2:$H$57,2,FALSE)=0,"",VLOOKUP('Calcolo a'!$B21,Library!$B$2:$H$57,2,FALSE)),"") ->  | D21: =+IFERROR(IF(VLOOKUP('Calcolo a'!$B21,Library!$B$2:$H$57,3,FALSE)=0,"",VLOOKUP('Calcolo a'!$B21,Library!$B$2:$H$57,3,FALSE)),"") ->  | E21: =+IFERROR(IF(VLOOKUP('Calcolo a'!$B21,Library!$B$2:$H$57,5,FALSE)=0,"",VLOOKUP('Calcolo a'!$B21,Library!$B$2:$H$57,5,FALSE)),"") ->  | F21: =+'SHC system'!F37 -> 0 | G21: =+IF(H21="","",'SHC system'!C31) ->  | J21: =+IFERROR(D21*'SHC system'!$F$13,"") ->  | K21: =+IFERROR(E21*'SHC system'!$F$13,"") ->  | M21: =+IFERROR(#REF!*'SHC system'!$F$13,"") ->  | O21: =+PROPER(A19) ->  | P21: =+PROPER(B19) -> 
B22: =+'SHC system'!C32 -> <Electricity> | C22: =+IFERROR(IF(VLOOKUP('Calcolo a'!$B22,Library!$B$58:$H$118,2,FALSE)=0,"",VLOOKUP('Calcolo a'!$B22,Library!$B$58:$H$118,2,FALSE)),"") ->  | E22: =+IFERROR(IF(VLOOKUP('Calcolo a'!$B22,Library!$B$58:$H$118,5,FALSE)=0,"",VLOOKUP('Calcolo a'!$B22,Library!$B$58:$H$118,5,FALSE)),"") ->  | G22: =+IF(I22="","",'SHC system'!C32) ->  | I22: =+IFERROR(C22*'SHC system'!$F$32*'SHC system'!$F$37,"") ->  | L22: =+IFERROR(E22*'SHC system'!$F$32*'SHC system'!$F$37,"") -> 
B23: =+'SHC system'!C33 -> <Natural gas> | C23: =+IFERROR(IF(VLOOKUP('Calcolo a'!$B23,Library!$B$58:$H$118,2,FALSE)=0,"",VLOOKUP('Calcolo a'!$B23,Library!$B$58:$H$118,2,FALSE)),"") ->  | E23: =+IFERROR(IF(VLOOKUP('Calcolo a'!$B23,Library!$B$58:$H$118,5,FALSE)=0,"",VLOOKUP('Calcolo a'!$B23,Library!$B$58:$H$118,5,FALSE)),"") ->  | G23: =+IF(I23="","",'SHC system'!C33) ->  | I23: =+IFERROR(C23*'SHC system'!$F$33*'SHC system'!$F$37,"") ->  | L23: =+IFERROR(E23*'SHC system'!$F$33*'SHC system'!$F$37,"") -> 
B24: =+'SHC system'!C34 -> 0 | C24: =+IFERROR(IF(VLOOKUP('Calcolo a'!$B24,Library!$B$2:$H$57,2,FALSE)=0,"",VLOOKUP('Calcolo a'!$B24,Library!$B$2:$H$57,2,FALSE)),"") ->  | E24: =+IFERROR(IF(VLOOKUP('Calcolo a'!$B24,Library!$B$2:$H$57,5,FALSE)=0,"",VLOOKUP('Calcolo a'!$B24,Library!$B$2:$H$57,5,FALSE)),"") -> 

Sheet Calcolo b (hidden)
B1: =+'SHC system with PV'!C11 -> COMPONENTS OF THE SHC SYSTEM WITH PV | C1: Global Energy Requirement (Ger) | E1: Global Warming Potential (Gwp) | H1: Calcolo xxx | J1: tabella1 | P1: Tabella 2
B2: =+'SHC system with PV'!C12 -> Category | C2: Manufacturing Step | D2: End-Of-Life Step | E2: Manufacturing Step | F2: End-Of-Life Step | H2: Manufacturing Step | I2: Use phase | J2: End-Of-Life Step | K2: Manufacturing Step | L2: Use phase | M2: End-Of-Life Step | P2: Type | Q2: Global Energy Requirement (Ger) | R2: Global Warming Potential (Gwp)
B3: =+IF('SHC system with PV'!C13=0,"",'SHC system with PV'!C13) -> <Ammonia> | C3: =+IFERROR(IF(VLOOKUP('Calcolo b'!$B3,Library!$B$2:$H$57,2,FALSE)=0,"",VLOOKUP('Calcolo b'!$B3,Library!$B$2:$H$57,2,FALSE)),"") ->  | D3: =+IFERROR(IF(VLOOKUP('Calcolo b'!$B3,Library!$B$2:$H$57,3,FALSE)=0,"",VLOOKUP('Calcolo b'!$B3,Library!$B$2:$H$57,3,FALSE)),"") ->  | E3: =+IFERROR(IF(VLOOKUP('Calcolo b'!$B3,Library!$B$2:$H$57,5,FALSE)=0,"",VLOOKUP('Calcolo b'!$B3,Library!$B$2:$H$57,5,FALSE)),"") ->  | F3: =+IFERROR(IF(VLOOKUP('Calcolo b'!$B3,Library!$B$2:$H$57,6,FALSE)=0,"",VLOOKUP('Calcolo b'!$B3,Library!$B$2:$H$57,6,FALSE)),"") ->  | G3: =+IF(H3="","",'SHC system with PV'!C13) ->  | H3: =+IFERROR(C3*'SHC system with PV'!$F13*('SHC system with PV'!$H13+1),"") ->  | J3: =+IFERROR(D3*'SHC system with PV'!$F13*('SHC system with PV'!$H13+1),"") ->  | K3: =+IFERROR(E3*'SHC system with PV'!$F13*('SHC system with PV'!$H13+1),"") ->  | M3: =+IFERROR(F3*'SHC system with PV'!$F13*('SHC system with PV'!$H13+1),"") ->  | P3: =+PROPER(B1) -> Components Of The Shc System With Pv | Q3: =+SUM(H3:J19) -> 0 | R3: =+SUM(K3:M19) -> 0
B4: =+IF('SHC system with PV'!C14=0,"",'SHC system with PV'!C14) -> <Auxiliary Conventional Chiller> | C4: =+IFERROR(IF(VLOOKUP('Calcolo b'!$B4,Library!$B$2:$H$57,2,FALSE)=0,"",VLOOKUP('Calcolo b'!$B4,Library!$B$2:$H$57,2,FALSE)),"") ->  | D4: =+IFERROR(IF(VLOOKUP('Calcolo b'!$B4,Library!$B$2:$H$57,3,FALSE)=0,"",VLOOKUP('Calcolo b'!$B4,Library!$B$2:$H$57,3,FALSE)),"") ->  | E4: =+IFERROR(IF(VLOOKUP('Calcolo b'!$B4,Library!$B$2:$H$57,5,FALSE)=0,"",VLOOKUP('Calcolo b'!$B4,Library!$B$2:$H$57,5,FALSE)),"") ->  | F4: =+IFERROR(IF(VLOOKUP('Calcolo b'!$B4,Library!$B$2:$H$57,6,FALSE)=0,"",VLOOKUP('Calcolo b'!$B4,Library!$B$2:$H$57,6,FALSE)),"") ->  | G4: =+IF(H4="","",'SHC system with PV'!C14) ->  | H4: =+IFERROR(C4*'SHC system with PV'!$F14*('SHC system with PV'!$H14+1),"") ->  | J4: =+IFERROR(D4*'SHC system with PV'!$F14*('SHC system with PV'!$H14+1),"") ->  | K4: =+IFERROR(E4*'SHC system with PV'!$F14*('SHC system with PV'!$H14+1),"") ->  | M4: =+IFERROR(F4*'SHC system with PV'!$F14*('SHC system with PV'!$H14+1),"") ->  | P4: =+CONCATENATE(PROPER(B20)," ","(",'Calcolo b'!F21," years)") -> Energy Sources (0 years) | Q4: =+SUM(I22:I23) -> 0 | R4: =+SUM(L22:L23) -> 0
B5: =+IF('SHC system with PV'!C15=0,"",'SHC system with PV'!C15) -> <Auxiliary Gas Boiler> | C5: =+IFERROR(IF(VLOOKUP('Calcolo b'!$B5,Library!$B$2:$H$57,2,FALSE)=0,"",VLOOKUP('Calcolo b'!$B5,Library!$B$2:$H$57,2,FALSE)),"") ->  | D5: =+IFERROR(IF(VLOOKUP('Calcolo b'!$B5,Library!$B$2:$H$57,3,FALSE)=0,"",VLOOKUP('Calcolo b'!$B5,Library!$B$2:$H$57,3,FALSE)),"") ->  | E5: =+IFERROR(IF(VLOOKUP('Calcolo b'!$B5,Library!$B$2:$H$57,5,FALSE)=0,"",VLOOKUP('Calcolo b'!$B5,Library!$B$2:$H$57,5,FALSE)),"") ->  | F5: =+IFERROR(IF(VLOOKUP('Calcolo b'!$B5,Library!$B$2:$H$57,6,FALSE)=0,"",VLOOKUP('Calcolo b'!$B5,Library!$B$2:$H$57,6,FALSE)),"") ->  | G5: =+IF(H5="","",'SHC system with PV'!C15) ->  | H5: =+IFERROR(C5*'SHC system with PV'!$F15*('SHC system with PV'!$H15+1),"") ->  | J5: =+IFERROR(D5*'SHC system with PV'!$F15*('SHC system with PV'!$H15+1),"") ->  | K5: =+IFERROR(E5*'SHC system with PV'!$F15*('SHC system with PV'!$H15+1),"") ->  | M5: =+IFERROR(F5*'SHC system with PV'!$F15*('SHC system with PV'!$H15+1),"") -> 
B6: =+IF('SHC system with PV'!C16=0,"",'SHC system with PV'!C16) -> <Battery> | C6: =+IFERROR(IF(VLOOKUP('Calcolo b'!$B6,Library!$B$2:$H$57,2,FALSE)=0,"",VLOOKUP('Calcolo b'!$B6,Library!$B$2:$H$57,2,FALSE)),"") ->  | D6: =+IFERROR(IF(VLOOKUP('Calcolo b'!$B6,Library!$B$2:$H$57,3,FALSE)=0,"",VLOOKUP('Calcolo b'!$B6,Library!$B$2:$H$57,3,FALSE)),"") ->  | E6: =+IFERROR(IF(VLOOKUP('Calcolo b'!$B6,Library!$B$2:$H$57,5,FALSE)=0,"",VLOOKUP('Calcolo b'!$B6,Library!$B$2:$H$57,5,FALSE)),"") ->  | F6: =+IFERROR(IF(VLOOKUP('Calcolo b'!$B6,Library!$B$2:$H$57,6,FALSE)=0,"",VLOOKUP('Calcolo b'!$B6,Library!$B$2:$H$57,6,FALSE)),"") ->  | G6: =+IF(H6="","",'SHC system with PV'!C16) ->  | H6: =+IFERROR(C6*'SHC system with PV'!$F16*('SHC system with PV'!$H16+1),"") ->  | J6: =+IFERROR(D6*'SHC system with PV'!$F16*('SHC system with PV'!$H16+1),"") ->  | K6: =+IFERROR(E6*'SHC system with PV'!$F16*('SHC system with PV'!$H16+1),"") ->  | M6: =+IFERROR(F6*'SHC system with PV'!$F16*('SHC system with PV'!$H16+1),"") -> 
B7: =+IF('SHC system with PV'!C17=0,"",'SHC system with PV'!C17) -> <Chiller (ad/ab-sorption)> | C7: =+IFERROR(IF(VLOOKUP('Calcolo b'!$B7,Library!$B$2:$H$57,2,FALSE)=0,"",VLOOKUP('Calcolo b'!$B7,Library!$B$2:$H$57,2,FALSE)),"") ->  | D7: =+IFERROR(IF(VLOOKUP('Calcolo b'!$B7,Library!$B$2:$H$57,3,FALSE)=0,"",VLOOKUP('Calcolo b'!$B7,Library!$B$2:$H$57,3,FALSE)),"") ->  | E7: =+IFERROR(IF(VLOOKUP('Calcolo b'!$B7,Library!$B$2:$H$57,5,FALSE)=0,"",VLOOKUP('Calcolo b'!$B7,Library!$B$2:$H$57,5,FALSE)),"") ->  | F7: =+IFERROR(IF(VLOOKUP('Calcolo b'!$B7,Library!$B$2:$H$57,6,FALSE)=0,"",VLOOKUP('Calcolo b'!$B7,Library!$B$2:$H$57,6,FALSE)),"") ->  | G7: =+IF(H7="","",'SHC system with PV'!C17) ->  | H7: =+IFERROR(C7*'SHC system with PV'!$F17*('SHC system with PV'!$H17+1),"") ->  | J7: =+IFERROR(D7*'SHC system with PV'!$F17*('SHC system with PV'!$H17+1),"") ->  | K7: =+IFERROR(E7*'SHC system with PV'!$F17*('SHC system with PV'!$H17+1),"") ->  | M7: =+IFERROR(F7*'SHC system with PV'!$F17*('SHC system with PV'!$H17+1),"") -> 
B8: =+IF('SHC system with PV'!C18=0,"",'SHC system with PV'!C18) -> <Cooling tower> | C8: =+IFERROR(IF(VLOOKUP('Calcolo b'!$B8,Library!$B$2:$H$57,2,FALSE)=0,"",VLOOKUP('Calcolo b'!$B8,Library!$B$2:$H$57,2,FALSE)),"") ->  | D8: =+IFERROR(IF(VLOOKUP('Calcolo b'!$B8,Library!$B$2:$H$57,3,FALSE)=0,"",VLOOKUP('Calcolo b'!$B8,Library!$B$2:$H$57,3,FALSE)),"") ->  | E8: =+IFERROR(IF(VLOOKUP('Calcolo b'!$B8,Library!$B$2:$H$57,5,FALSE)=0,"",VLOOKUP('Calcolo b'!$B8,Library!$B$2:$H$57,5,FALSE)),"") ->  | F8: =+IFERROR(IF(VLOOKUP('Calcolo b'!$B8,Library!$B$2:$H$57,6,FALSE)=0,"",VLOOKUP('Calcolo b'!$B8,Library!$B$2:$H$57,6,FALSE)),"") ->  | G8: =+IF(H8="","",'SHC system with PV'!C18) ->  | H8: =+IFERROR(C8*'SHC system with PV'!$F18*('SHC system with PV'!$H18+1),"") ->  | J8: =+IFERROR(D8*'SHC system with PV'!$F18*('SHC system with PV'!$H18+1),"") ->  | K8: =+IFERROR(E8*'SHC system with PV'!$F18*('SHC system with PV'!$H18+1),"") ->  | M8: =+IFERROR(F8*'SHC system with PV'!$F18*('SHC system with PV'!$H18+1),"") -> 
B9: =+IF('SHC system with PV'!C19=0,"",'SHC system with PV'!C19) -> <Electric installation> | C9: =+IFERROR(IF(VLOOKUP('Calcolo b'!$B9,Library!$B$2:$H$57,2,FALSE)=0,"",VLOOKUP('Calcolo b'!$B9,Library!$B$2:$H$57,2,FALSE)),"") ->  | D9: =+IFERROR(IF(VLOOKUP('Calcolo b'!$B9,Library!$B$2:$H$57,3,FALSE)=0,"",VLOOKUP('Calcolo b'!$B9,Library!$B$2:$H$57,3,FALSE)),"") ->  | E9: =+IFERROR(IF(VLOOKUP('Calcolo b'!$B9,Library!$B$2:$H$57,5,FALSE)=0,"",VLOOKUP('Calcolo b'!$B9,Library!$B$2:$H$57,5,FALSE)),"") ->  | F9: =+IFERROR(IF(VLOOKUP('Calcolo b'!$B9,Library!$B$2:$H$57,6,FALSE)=0,"",VLOOKUP('Calcolo b'!$B9,Library!$B$2:$H$57,6,FALSE)),"") ->  | G9: =+IF(H9="","",'SHC system with PV'!C19) ->  | H9: =+IFERROR(C9*'SHC system with PV'!$F19*('SHC system with PV'!$H19+1),"") ->  | J9: =+IFERROR(D9*'SHC system with PV'!$F19*('SHC system with PV'!$H19+1),"") ->  | K9: =+IFERROR(E9*'SHC system with PV'!$F19*('SHC system with PV'!$H19+1),"") ->  | M9: =+IFERROR(F9*'SHC system with PV'!$F19*('SHC system with PV'!$H19+1),"") -> 
B10: =+IF('SHC system with PV'!C20=0,"",'SHC system with PV'!C20) -> <Glycol> | C10: =+IFERROR(IF(VLOOKUP('Calcolo b'!$B10,Library!$B$2:$H$57,2,FALSE)=0,"",VLOOKUP('Calcolo b'!$B10,Library!$B$2:$H$57,2,FALSE)),"") ->  | D10: =+IFERROR(IF(VLOOKUP('Calcolo b'!$B10,Library!$B$2:$H$57,3,FALSE)=0,"",VLOOKUP('Calcolo b'!$B10,Library!$B$2:$H$57,3,FALSE)),"") ->  | E10: =+IFERROR(IF(VLOOKUP('Calcolo b'!$B10,Library!$B$2:$H$57,5,FALSE)=0,"",VLOOKUP('Calcolo b'!$B10,Library!$B$2:$H$57,5,FALSE)),"") ->  | F10: =+IFERROR(IF(VLOOKUP('Calcolo b'!$B10,Library!$B$2:$H$57,6,FALSE)=0,"",VLOOKUP('Calcolo b'!$B10,Library!$B$2:$H$57,6,FALSE)),"") ->  | G10: =+IF(H10="","",'SHC system with PV'!C20) ->  | H10: =+IFERROR(C10*'SHC system with PV'!$F20*('SHC system with PV'!$H20+1),"") ->  | J10: =+IFERROR(D10*'SHC system with PV'!$F20*('SHC system with PV'!$H20+1),"") ->  | K10: =+IFERROR(E10*'SHC system with PV'!$F20*('SHC system with PV'!$H20+1),"") ->  | M10: =+IFERROR(F10*'SHC system with PV'!$F20*('SHC system with PV'!$H20+1),"") -> 
B11: =+IF('SHC system with PV'!C21=0,"",'SHC system with PV'!C21) -> <Heat rejection system> | C11: =+IFERROR(IF(VLOOKUP('Calcolo b'!$B11,Library!$B$2:$H$57,2,FALSE)=0,"",VLOOKUP('Calcolo b'!$B11,Library!$B$2:$H$57,2,FALSE)),"") ->  | D11: =+IFERROR(IF(VLOOKUP('Calcolo b'!$B11,Library!$B$2:$H$57,3,FALSE)=0,"",VLOOKUP('Calcolo b'!$B11,Library!$B$2:$H$57,3,FALSE)),"") ->  | E11: =+IFERROR(IF(VLOOKUP('Calcolo b'!$B11,Library!$B$2:$H$57,5,FALSE)=0,"",VLOOKUP('Calcolo b'!$B11,Library!$B$2:$H$57,5,FALSE)),"") ->  | F11: =+IFERROR(IF(VLOOKUP('Calcolo b'!$B11,Library!$B$2:$H$57,6,FALSE)=0,"",VLOOKUP('Calcolo b'!$B11,Library!$B$2:$H$57,6,FALSE)),"") ->  | G11: =+IF(H11="","",'SHC system with PV'!C21) ->  | H11: =+IFERROR(C11*'SHC system with PV'!$F21*('SHC system with PV'!$H21+1),"") ->  | J11: =+IFERROR(D11*'SHC system with PV'!$F21*('SHC system with PV'!$H21+1),"") ->  | K11: =+IFERROR(E11*'SHC system with PV'!$F21*('SHC system with PV'!$H21+1),"") ->  | M11: =+IFERROR(F11*'SHC system with PV'!$F21*('SHC system with PV'!$H21+1),"") -> 
B12: =+IF('SHC system with PV'!C22=0,"",'SHC system with PV'!C22) -> <Heat storage> | C12: =+IFERROR(IF(VLOOKUP('Calcolo b'!$B12,Library!$B$2:$H$57,2,FALSE)=0,"",VLOOKUP('Calcolo b'!$B12,Library!$B$2:$H$57,2,FALSE)),"") ->  | D12: =+IFERROR(IF(VLOOKUP('Calcolo b'!$B12,Library!$B$2:$H$57,3,FALSE)=0,"",VLOOKUP('Calcolo b'!$B12,Library!$B$2:$H$57,3,FALSE)),"") ->  | E12: =+IFERROR(IF(VLOOKUP('Calcolo b'!$B12,Library!$B$2:$H$57,5,FALSE)=0,"",VLOOKUP('Calcolo b'!$B12,Library!$B$2:$H$57,5,FALSE)),"") ->  | F12: =+IFERROR(IF(VLOOKUP('Calcolo b'!$B12,Library!$B$2:$H$57,6,FALSE)=0,"",VLOOKUP('Calcolo b'!$B12,Library!$B$2:$H$57,6,FALSE)),"") ->  | G12: =+IF(H12="","",'SHC system with PV'!C22) ->  | H12: =+IFERROR(C12*'SHC system with PV'!$F22*('SHC system with PV'!$H22+1),"") ->  | J12: =+IFERROR(D12*'SHC system with PV'!$F22*('SHC system with PV'!$H22+1),"") ->  | K12: =+IFERROR(E12*'SHC system with PV'!$F22*('SHC system with PV'!$H22+1),"") ->  | M12: =+IFERROR(F12*'SHC system with PV'!$F22*('SHC system with PV'!$H22+1),"") -> 
B13: =+IF('SHC system with PV'!C23=0,"",'SHC system with PV'!C23) -> <Heat-pump> | C13: =+IFERROR(IF(VLOOKUP('Calcolo b'!$B13,Library!$B$2:$H$57,2,FALSE)=0,"",VLOOKUP('Calcolo b'!$B13,Library!$B$2:$H$57,2,FALSE)),"") ->  | D13: =+IFERROR(IF(VLOOKUP('Calcolo b'!$B13,Library!$B$2:$H$57,3,FALSE)=0,"",VLOOKUP('Calcolo b'!$B13,Library!$B$2:$H$57,3,FALSE)),"") ->  | E13: =+IFERROR(IF(VLOOKUP('Calcolo b'!$B13,Library!$B$2:$H$57,5,FALSE)=0,"",VLOOKUP('Calcolo b'!$B13,Library!$B$2:$H$57,5,FALSE)),"") ->  | F13: =+IFERROR(IF(VLOOKUP('Calcolo b'!$B13,Library!$B$2:$H$57,6,FALSE)=0,"",VLOOKUP('Calcolo b'!$B13,Library!$B$2:$H$57,6,FALSE)),"") ->  | G13: =+IF(H13="","",'SHC system with PV'!C23) ->  | H13: =+IFERROR(C13*'SHC system with PV'!$F23*('SHC system with PV'!$H23+1),"") ->  | J13: =+IFERROR(D13*'SHC system with PV'!$F23*('SHC system with PV'!$H23+1),"") ->  | K13: =+IFERROR(E13*'SHC system with PV'!$F23*('SHC system with PV'!$H23+1),"") ->  | M13: =+IFERROR(F13*'SHC system with PV'!$F23*('SHC system with PV'!$H23+1),"") -> 
B14: =+IF('SHC system with PV'!C24=0,"",'SHC system with PV'!C24) -> <Inverter > | C14: =+IFERROR(IF(VLOOKUP('Calcolo b'!$B14,Library!$B$2:$H$57,2,FALSE)=0,"",VLOOKUP('Calcolo b'!$B14,Library!$B$2:$H$57,2,FALSE)),"") ->  | D14: =+IFERROR(IF(VLOOKUP('Calcolo b'!$B14,Library!$B$2:$H$57,3,FALSE)=0,"",VLOOKUP('Calcolo b'!$B14,Library!$B$2:$H$57,3,FALSE)),"") ->  | E14: =+IFERROR(IF(VLOOKUP('Calcolo b'!$B14,Library!$B$2:$H$57,5,FALSE)=0,"",VLOOKUP('Calcolo b'!$B14,Library!$B$2:$H$57,5,FALSE)),"") ->  | F14: =+IFERROR(IF(VLOOKUP('Calcolo b'!$B14,Library!$B$2:$H$57,6,FALSE)=0,"",VLOOKUP('Calcolo b'!$B14,Library!$B$2:$H$57,6,FALSE)),"") ->  | G14: =+IF(H14="","",'SHC system with PV'!C24) ->  | H14: =+IFERROR(C14*'SHC system with PV'!$F24*('SHC system with PV'!$H24+1),"") ->  | J14: =+IFERROR(D14*'SHC system with PV'!$F24*('SHC system with PV'!$H24+1),"") ->  | K14: =+IFERROR(E14*'SHC system with PV'!$F24*('SHC system with PV'!$H24+1),"") ->  | M14: =+IFERROR(F14*'SHC system with PV'!$F24*('SHC system with PV'!$H24+1),"") -> 
B15: =+IF('SHC system with PV'!C25=0,"",'SHC system with PV'!C25) -> <Photovoltaic panel> | C15: =+IFERROR(IF(VLOOKUP('Calcolo b'!$B15,Library!$B$2:$H$57,2,FALSE)=0,"",VLOOKUP('Calcolo b'!$B15,Library!$B$2:$H$57,2,FALSE)),"") ->  | D15: =+IFERROR(IF(VLOOKUP('Calcolo b'!$B15,Library!$B$2:$H$57,3,FALSE)=0,"",VLOOKUP('Calcolo b'!$B15,Library!$B$2:$H$57,3,FALSE)),"") ->  | E15: =+IFERROR(IF(VLOOKUP('Calcolo b'!$B15,Library!$B$2:$H$57,5,FALSE)=0,"",VLOOKUP('Calcolo b'!$B15,Library!$B$2:$H$57,5,FALSE)),"") ->  | F15: =+IFERROR(IF(VLOOKUP('Calcolo b'!$B15,Library!$B$2:$H$57,6,FALSE)=0,"",VLOOKUP('Calcolo b'!$B15,Library!$B$2:$H$57,6,FALSE)),"") ->  | G15: =+IF(H15="","",'SHC system with PV'!C25) ->  | H15: =+IFERROR(C15*'SHC system with PV'!$F25*('SHC system with PV'!$H25+1),"") ->  | J15: =+IFERROR(D15*'SHC system with PV'!$F25*('SHC system with PV'!$H25+1),"") ->  | K15: =+IFERROR(E15*'SHC system with PV'!$F25*('SHC system with PV'!$H25+1),"") ->  | M15: =+IFERROR(F15*'SHC system with PV'!$F25*('SHC system with PV'!$H25+1),"") -> 
B16: =+IF('SHC system with PV'!C26=0,"",'SHC system with PV'!C26) -> <Pipes> | C16: =+IFERROR(IF(VLOOKUP('Calcolo b'!$B16,Library!$B$2:$H$57,2,FALSE)=0,"",VLOOKUP('Calcolo b'!$B16,Library!$B$2:$H$57,2,FALSE)),"") ->  | D16: =+IFERROR(IF(VLOOKUP('Calcolo b'!$B16,Library!$B$2:$H$57,3,FALSE)=0,"",VLOOKUP('Calcolo b'!$B16,Library!$B$2:$H$57,3,FALSE)),"") ->  | E16: =+IFERROR(IF(VLOOKUP('Calcolo b'!$B16,Library!$B$2:$H$57,5,FALSE)=0,"",VLOOKUP('Calcolo b'!$B16,Library!$B$2:$H$57,5,FALSE)),"") ->  | F16: =+IFERROR(IF(VLOOKUP('Calcolo b'!$B16,Library!$B$2:$H$57,6,FALSE)=0,"",VLOOKUP('Calcolo b'!$B16,Library!$B$2:$H$57,6,FALSE)),"") ->  | G16: =+IF(H16="","",'SHC system with PV'!C26) ->  | H16: =+IFERROR(C16*'SHC system with PV'!$F26*('SHC system with PV'!$H26+1),"") ->  | J16: =+IFERROR(D16*'SHC system with PV'!$F26*('SHC system with PV'!$H26+1),"") ->  | K16: =+IFERROR(E16*'SHC system with PV'!$F26*('SHC system with PV'!$H26+1),"") ->  | M16: =+IFERROR(F16*'SHC system with PV'!$F26*('SHC system with PV'!$H26+1),"") -> 
B17: =+IF('SHC system with PV'!C27=0,"",'SHC system with PV'!C27) -> <Pump> | C17: =+IFERROR(IF(VLOOKUP('Calcolo b'!$B17,Library!$B$2:$H$57,2,FALSE)=0,"",VLOOKUP('Calcolo b'!$B17,Library!$B$2:$H$57,2,FALSE)),"") ->  | D17: =+IFERROR(IF(VLOOKUP('Calcolo b'!$B17,Library!$B$2:$H$57,3,FALSE)=0,"",VLOOKUP('Calcolo b'!$B17,Library!$B$2:$H$57,3,FALSE)),"") ->  | E17: =+IFERROR(IF(VLOOKUP('Calcolo b'!$B17,Library!$B$2:$H$57,5,FALSE)=0,"",VLOOKUP('Calcolo b'!$B17,Library!$B$2:$H$57,5,FALSE)),"") ->  | F17: =+IFERROR(IF(VLOOKUP('Calcolo b'!$B17,Library!$B$2:$H$57,6,FALSE)=0,"",VLOOKUP('Calcolo b'!$B17,Library!$B$2:$H$57,6,FALSE)),"") ->  | G17: =+IF(H17="","",'SHC system with PV'!C27) ->  | H17: =+IFERROR(C17*'SHC system with PV'!$F27*('SHC system with PV'!$H27+1),"") ->  | J17: =+IFERROR(D17*'SHC system with PV'!$F27*('SHC system with PV'!$H27+1),"") ->  | K17: =+IFERROR(E17*'SHC system with PV'!$F27*('SHC system with PV'!$H27+1),"") ->  | M17: =+IFERROR(F17*'SHC system with PV'!$F27*('SHC system with PV'!$H27+1),"") -> 
B18: =+IF('SHC system with PV'!C28=0,"",'SHC system with PV'!C28) -> <Solar thermal collectors> | C18: =+IFERROR(IF(VLOOKUP('Calcolo b'!$B18,Library!$B$2:$H$57,2,FALSE)=0,"",VLOOKUP('Calcolo b'!$B18,Library!$B$2:$H$57,2,FALSE)),"") ->  | D18: =+IFERROR(IF(VLOOKUP('Calcolo b'!$B18,Library!$B$2:$H$57,3,FALSE)=0,"",VLOOKUP('Calcolo b'!$B18,Library!$B$2:$H$57,3,FALSE)),"") ->  | E18: =+IFERROR(IF(VLOOKUP('Calcolo b'!$B18,Library!$B$2:$H$57,5,FALSE)=0,"",VLOOKUP('Calcolo b'!$B18,Library!$B$2:$H$57,5,FALSE)),"") ->  | F18: =+IFERROR(IF(VLOOKUP('Calcolo b'!$B18,Library!$B$2:$H$57,6,FALSE)=0,"",VLOOKUP('Calcolo b'!$B18,Library!$B$2:$H$57,6,FALSE)),"") ->  | G18: =+IF(H18="","",'SHC system with PV'!C28) ->  | H18: =+IFERROR(C18*'SHC system with PV'!$F28*('SHC system with PV'!$H28+1),"") ->  | J18: =+IFERROR(D18*'SHC system with PV'!$F28*('SHC system with PV'!$H28+1),"") ->  | K18: =+IFERROR(E18*'SHC system with PV'!$F28*('SHC system with PV'!$H28+1),"") ->  | M18: =+IFERROR(F18*'SHC system with PV'!$F28*('SHC system with PV'!$H28+1),"") -> 
B19: =+IF('SHC system with PV'!C29=0,"",'SHC system with PV'!C29) -> <Water> | C19: =+IFERROR(IF(VLOOKUP('Calcolo b'!$B19,Library!$B$2:$H$57,2,FALSE)=0,"",VLOOKUP('Calcolo b'!$B19,Library!$B$2:$H$57,2,FALSE)),"") ->  | D19: =+IFERROR(IF(VLOOKUP('Calcolo b'!$B19,Library!$B$2:$H$57,3,FALSE)=0,"",VLOOKUP('Calcolo b'!$B19,Library!$B$2:$H$57,3,FALSE)),"") ->  | E19: =+IFERROR(IF(VLOOKUP('Calcolo b'!$B19,Library!$B$2:$H$57,5,FALSE)=0,"",VLOOKUP('Calcolo b'!$B19,Library!$B$2:$H$57,5,FALSE)),"") ->  | F19: =+IFERROR(IF(VLOOKUP('Calcolo b'!$B19,Library!$B$2:$H$57,6,FALSE)=0,"",VLOOKUP('Calcolo b'!$B19,Library!$B$2:$H$57,6,FALSE)),"") ->  | G19: =+IF(H19="","",'SHC system with PV'!C29) ->  | H19: =+IFERROR(C19*'SHC system with PV'!$F29*('SHC system with PV'!$H29+1),"") ->  | J19: =+IFERROR(D19*'SHC system with PV'!$F$13,"") ->  | K19: =+IFERROR(E19*'SHC system with PV'!$F$13,"") ->  | M19: =+IFERROR(F19*'SHC system with PV'!$F29*('SHC system with PV'!$H29+1),"") -> 
B20: =+'SHC system with PV'!C30 -> ENERGY SOURCES | C20: Global Energy Requirement (Ger) | E20: Global Warming Potential (Gwp) | F20: numbers years | H20: =+IFERROR(C20*'SHC system with PV'!$F$13,"") ->  | K20: =+IFERROR(E20*'SHC system with PV'!$F$13,"") ->  | M20: =+IFERROR(F20*'SHC system with PV'!$F$13,"") -> 
C21: =+IFERROR(IF(VLOOKUP('Calcolo b'!$B21,Library!$B$2:$H$57,2,FALSE)=0,"",VLOOKUP('Calcolo b'!$B21,Library!$B$2:$H$57,2,FALSE)),"") ->  | D21: =+IFERROR(IF(VLOOKUP('Calcolo b'!$B21,Library!$B$2:$H$57,3,FALSE)=0,"",VLOOKUP('Calcolo b'!$B21,Library!$B$2:$H$57,3,FALSE)),"") ->  | E21: =+IFERROR(IF(VLOOKUP('Calcolo b'!$B21,Library!$B$2:$H$57,5,FALSE)=0,"",VLOOKUP('Calcolo b'!$B21,Library!$B$2:$H$57,5,FALSE)),"") ->  | F21: =+'SHC system with PV'!F37 -> 0 | G21: =+IF(H21="","",'SHC system with PV'!C31) ->  | H21: =+IFERROR(C21*'SHC system with PV'!$F$13,"") ->  | J21: =+IFERROR(D21*'SHC system with PV'!$F$13,"") ->  | K21: =+IFERROR(E21*'SHC system with PV'!$F$13,"") ->  | M21: =+IFERROR(#REF!*'SHC system with PV'!$F$13,"") ->  | O21: =+PROPER(A19) ->  | P21: =+PROPER(B19) -> <Water>
B22: =+'SHC system with PV'!C32 -> <Electricity> | C22: =+IFERROR(IF(VLOOKUP('Calcolo b'!$B22,Library!$B$58:$H$118,2,FALSE)=0,"",VLOOKUP('Calcolo b'!$B22,Library!$B$58:$H$118,2,FALSE)),"") ->  | E22: =+IFERROR(IF(VLOOKUP('Calcolo b'!$B22,Library!$B$58:$H$118,5,FALSE)=0,"",VLOOKUP('Calcolo b'!$B22,Library!$B$58:$H$118,5,FALSE)),"") ->  | G22: =+IF(I22="","",'SHC system with PV'!C32) ->  | I22: =+IFERROR(C22*'SHC system with PV'!$F$32*'SHC system with PV'!$F$37,"") ->  | L22: =+IFERROR(E22*'SHC system with PV'!$F$32*'SHC system with PV'!$F$37,"") -> 
B23: =+'SHC system with PV'!C33 -> <Natural gas> | C23: =+IFERROR(IF(VLOOKUP('Calcolo b'!$B23,Library!$B$58:$H$118,2,FALSE)=0,"",VLOOKUP('Calcolo b'!$B23,Library!$B$58:$H$118,2,FALSE)),"") ->  | E23: =+IFERROR(IF(VLOOKUP('Calcolo b'!$B23,Library!$B$58:$H$118,5,FALSE)=0,"",VLOOKUP('Calcolo b'!$B23,Library!$B$58:$H$118,5,FALSE)),"") ->  | G23: =+IF(I23="","",'SHC system with PV'!C33) ->  | I23: =+IFERROR(C23*'SHC system with PV'!$F$33*'SHC system with PV'!$F$37,"") ->  | L23: =+IFERROR(E23*'SHC system with PV'!$F$33*'SHC system with PV'!$F$37,"") -> 
B24: =+'SHC system with PV'!C34 -> 0 | C24: =+IFERROR(IF(VLOOKUP('Calcolo b'!$B24,Library!$B$2:$H$57,2,FALSE)=0,"",VLOOKUP('Calcolo b'!$B24,Library!$B$2:$H$57,2,FALSE)),"") ->  | E24: =+IFERROR(IF(VLOOKUP('Calcolo b'!$B24,Library!$B$2:$H$57,5,FALSE)=0,"",VLOOKUP('Calcolo b'!$B24,Library!$B$2:$H$57,5,FALSE)),"") -> 

Sheet Calcolo c (hidden)
B1: =+'Conventional System with PV'!C11 -> COMPONENTS OF THE CONVENTIONAL SYSTEM WITH PV | C1: Global Energy Requirement (Ger) | E1: Global Warming Potential (Gwp) | H1: Calcolo xxx | J1: tabella1 | P1: Tabella 2
B2: =+'Conventional System with PV'!C12 -> Category | C2: Manufacturing Step | D2: End-Of-Life Step | E2: Manufacturing Step | F2: End-Of-Life Step | H2: Manufacturing Step | I2: Use phase | J2: End-Of-Life Step | K2: Manufacturing Step | L2: Use phase | M2: End-Of-Life Step | P2: Type | Q2: Global Energy Requirement (Ger) | R2: Global Warming Potential (Gwp)
B3: =+IF('Conventional System with PV'!C13=0,"",'Conventional System with PV'!C13) -> <Battery> | C3: =+IFERROR(IF(VLOOKUP('Calcolo c'!$B3,Library!$B$2:$H$57,2,FALSE)=0,"",VLOOKUP('Calcolo c'!$B3,Library!$B$2:$H$57,2,FALSE)),"") ->  | D3: =+IFERROR(IF(VLOOKUP('Calcolo c'!$B3,Library!$B$2:$H$57,3,FALSE)=0,"",VLOOKUP('Calcolo c'!$B3,Library!$B$2:$H$57,3,FALSE)),"") ->  | E3: =+IFERROR(IF(VLOOKUP('Calcolo c'!$B3,Library!$B$2:$H$57,5,FALSE)=0,"",VLOOKUP('Calcolo c'!$B3,Library!$B$2:$H$57,5,FALSE)),"") ->  | F3: =+IFERROR(IF(VLOOKUP('Calcolo c'!$B3,Library!$B$2:$H$57,6,FALSE)=0,"",VLOOKUP('Calcolo c'!$B3,Library!$B$2:$H$57,6,FALSE)),"") ->  | G3: =+IF(H3="","",'Conventional System with PV'!C13) ->  | H3: =+IFERROR(C3*'Conventional System with PV'!$F13*('Conventional System with PV'!$H13+1),"") ->  | J3: =+IFERROR(D3*'Conventional System with PV'!$F13*('Conventional System with PV'!$H13+1),"") ->  | K3: =+IFERROR(E3*'Conventional System with PV'!$F13*('Conventional System with PV'!$H13+1),"") ->  | M3: =+IFERROR(F3*'Conventional System with PV'!$F13*('Conventional System with PV'!$H13+1),"") ->  | P3: =+PROPER(B1) -> Components Of The Conventional System With Pv | Q3: =+SUM(H3:J19) -> 0 | R3: =+SUM(K3:M19) -> 0
B4: =+IF('Conventional System with PV'!C14=0,"",'Conventional System with PV'!C14) -> <Chiller (conventional)> | C4: =+IFERROR(IF(VLOOKUP('Calcolo c'!$B4,Library!$B$2:$H$57,2,FALSE)=0,"",VLOOKUP('Calcolo c'!$B4,Library!$B$2:$H$57,2,FALSE)),"") ->  | D4: =+IFERROR(IF(VLOOKUP('Calcolo c'!$B4,Library!$B$2:$H$57,3,FALSE)=0,"",VLOOKUP('Calcolo c'!$B4,Library!$B$2:$H$57,3,FALSE)),"") ->  | E4: =+IFERROR(IF(VLOOKUP('Calcolo c'!$B4,Library!$B$2:$H$57,5,FALSE)=0,"",VLOOKUP('Calcolo c'!$B4,Library!$B$2:$H$57,5,FALSE)),"") ->  | F4: =+IFERROR(IF(VLOOKUP('Calcolo c'!$B4,Library!$B$2:$H$57,6,FALSE)=0,"",VLOOKUP('Calcolo c'!$B4,Library!$B$2:$H$57,6,FALSE)),"") ->  | G4: =+IF(H4="","",'Conventional System with PV'!C14) ->  | H4: =+IFERROR(C4*'Conventional System with PV'!$F14*('Conventional System with PV'!$H14+1),"") ->  | J4: =+IFERROR(D4*'Conventional System with PV'!$F14*('Conventional System with PV'!$H14+1),"") ->  | K4: =+IFERROR(E4*'Conventional System with PV'!$F14*('Conventional System with PV'!$H14+1),"") ->  | M4: =+IFERROR(F4*'Conventional System with PV'!$F14*('Conventional System with PV'!$H14+1),"") ->  | P4: =+CONCATENATE(PROPER(B20)," ","(",'Calcolo c'!F21," years)") -> Energy Sources (0 years) | Q4: =+SUM(I22:I23) -> 0 | R4: =+SUM(L22:L23) -> 0
B5: =+IF('Conventional System with PV'!C15=0,"",'Conventional System with PV'!C15) -> <Electric installation> | C5: =+IFERROR(IF(VLOOKUP('Calcolo c'!$B5,Library!$B$2:$H$57,2,FALSE)=0,"",VLOOKUP('Calcolo c'!$B5,Library!$B$2:$H$57,2,FALSE)),"") ->  | D5: =+IFERROR(IF(VLOOKUP('Calcolo c'!$B5,Library!$B$2:$H$57,3,FALSE)=0,"",VLOOKUP('Calcolo c'!$B5,Library!$B$2:$H$57,3,FALSE)),"") ->  | E5: =+IFERROR(IF(VLOOKUP('Calcolo c'!$B5,Library!$B$2:$H$57,5,FALSE)=0,"",VLOOKUP('Calcolo c'!$B5,Library!$B$2:$H$57,5,FALSE)),"") ->  | F5: =+IFERROR(IF(VLOOKUP('Calcolo c'!$B5,Library!$B$2:$H$57,6,FALSE)=0,"",VLOOKUP('Calcolo c'!$B5,Library!$B$2:$H$57,6,FALSE)),"") ->  | G5: =+IF(H5="","",'Conventional System with PV'!C15) ->  | H5: =+IFERROR(C5*'Conventional System with PV'!$F15*('Conventional System with PV'!$H15+1),"") ->  | J5: =+IFERROR(D5*'Conventional System with PV'!$F15*('Conventional System with PV'!$H15+1),"") ->  | K5: =+IFERROR(E5*'Conventional System with PV'!$F15*('Conventional System with PV'!$H15+1),"") ->  | M5: =+IFERROR(F5*'Conventional System with PV'!$F15*('Conventional System with PV'!$H15+1),"") -> 
B6: =+IF('Conventional System with PV'!C16=0,"",'Conventional System with PV'!C16) -> <Gas boiler > | C6: =+IFERROR(IF(VLOOKUP('Calcolo c'!$B6,Library!$B$2:$H$57,2,FALSE)=0,"",VLOOKUP('Calcolo c'!$B6,Library!$B$2:$H$57,2,FALSE)),"") ->  | D6: =+IFERROR(IF(VLOOKUP('Calcolo c'!$B6,Library!$B$2:$H$57,3,FALSE)=0,"",VLOOKUP('Calcolo c'!$B6,Library!$B$2:$H$57,3,FALSE)),"") ->  | E6: =+IFERROR(IF(VLOOKUP('Calcolo c'!$B6,Library!$B$2:$H$57,5,FALSE)=0,"",VLOOKUP('Calcolo c'!$B6,Library!$B$2:$H$57,5,FALSE)),"") ->  | F6: =+IFERROR(IF(VLOOKUP('Calcolo c'!$B6,Library!$B$2:$H$57,6,FALSE)=0,"",VLOOKUP('Calcolo c'!$B6,Library!$B$2:$H$57,6,FALSE)),"") ->  | G6: =+IF(H6="","",'Conventional System with PV'!C16) ->  | H6: =+IFERROR(C6*'Conventional System with PV'!$F16*('Conventional System with PV'!$H16+1),"") ->  | J6: =+IFERROR(D6*'Conventional System with PV'!$F16*('Conventional System with PV'!$H16+1),"") ->  | K6: =+IFERROR(E6*'Conventional System with PV'!$F16*('Conventional System with PV'!$H16+1),"") ->  | M6: =+IFERROR(F6*'Conventional System with PV'!$F16*('Conventional System with PV'!$H16+1),"") -> 
B7: =+IF('Conventional System with PV'!C17=0,"",'Conventional System with PV'!C17) -> <Heat-pump> | C7: =+IFERROR(IF(VLOOKUP('Calcolo c'!$B7,Library!$B$2:$H$57,2,FALSE)=0,"",VLOOKUP('Calcolo c'!$B7,Library!$B$2:$H$57,2,FALSE)),"") ->  | D7: =+IFERROR(IF(VLOOKUP('Calcolo c'!$B7,Library!$B$2:$H$57,3,FALSE)=0,"",VLOOKUP('Calcolo c'!$B7,Library!$B$2:$H$57,3,FALSE)),"") ->  | E7: =+IFERROR(IF(VLOOKUP('Calcolo c'!$B7,Library!$B$2:$H$57,5,FALSE)=0,"",VLOOKUP('Calcolo c'!$B7,Library!$B$2:$H$57,5,FALSE)),"") ->  | F7: =+IFERROR(IF(VLOOKUP('Calcolo c'!$B7,Library!$B$2:$H$57,6,FALSE)=0,"",VLOOKUP('Calcolo c'!$B7,Library!$B$2:$H$57,6,FALSE)),"") ->  | G7: =+IF(H7="","",'Conventional System with PV'!C17) ->  | H7: =+IFERROR(C7*'Conventional System with PV'!$F17*('Conventional System with PV'!$H17+1),"") ->  | J7: =+IFERROR(D7*'Conventional System with PV'!$F17*('Conventional System with PV'!$H17+1),"") ->  | K7: =+IFERROR(E7*'Conventional System with PV'!$F17*('Conventional System with PV'!$H17+1),"") ->  | M7: =+IFERROR(F7*'Conventional System with PV'!$F17*('Conventional System with PV'!$H17+1),"") -> 
B8: =+IF('Conventional System with PV'!C18=0,"",'Conventional System with PV'!C18) -> <Inverter > | C8: =+IFERROR(IF(VLOOKUP('Calcolo c'!$B8,Library!$B$2:$H$57,2,FALSE)=0,"",VLOOKUP('Calcolo c'!$B8,Library!$B$2:$H$57,2,FALSE)),"") ->  | D8: =+IFERROR(IF(VLOOKUP('Calcolo c'!$B8,Library!$B$2:$H$57,3,FALSE)=0,"",VLOOKUP('Calcolo c'!$B8,Library!$B$2:$H$57,3,FALSE)),"") ->  | E8: =+IFERROR(IF(VLOOKUP('Calcolo c'!$B8,Library!$B$2:$H$57,5,FALSE)=0,"",VLOOKUP('Calcolo c'!$B8,Library!$B$2:$H$57,5,FALSE)),"") ->  | F8: =+IFERROR(IF(VLOOKUP('Calcolo c'!$B8,Library!$B$2:$H$57,6,FALSE)=0,"",VLOOKUP('Calcolo c'!$B8,Library!$B$2:$H$57,6,FALSE)),"") ->  | G8: =+IF(H8="","",'Conventional System with PV'!C18) ->  | H8: =+IFERROR(C8*'Conventional System with PV'!$F18*('Conventional System with PV'!$H18+1),"") ->  | J8: =+IFERROR(D8*'Conventional System with PV'!$F18*('Conventional System with PV'!$H18+1),"") ->  | K8: =+IFERROR(E8*'Conventional System with PV'!$F18*('Conventional System with PV'!$H18+1),"") ->  | M8: =+IFERROR(F8*'Conventional System with PV'!$F18*('Conventional System with PV'!$H18+1),"") -> 
B9: =+IF('Conventional System with PV'!C19=0,"",'Conventional System with PV'!C19) -> <Photovoltaic panel> | C9: =+IFERROR(IF(VLOOKUP('Calcolo c'!$B9,Library!$B$2:$H$57,2,FALSE)=0,"",VLOOKUP('Calcolo c'!$B9,Library!$B$2:$H$57,2,FALSE)),"") ->  | D9: =+IFERROR(IF(VLOOKUP('Calcolo c'!$B9,Library!$B$2:$H$57,3,FALSE)=0,"",VLOOKUP('Calcolo c'!$B9,Library!$B$2:$H$57,3,FALSE)),"") ->  | E9: =+IFERROR(IF(VLOOKUP('Calcolo c'!$B9,Library!$B$2:$H$57,5,FALSE)=0,"",VLOOKUP('Calcolo c'!$B9,Library!$B$2:$H$57,5,FALSE)),"") ->  | F9: =+IFERROR(IF(VLOOKUP('Calcolo c'!$B9,Library!$B$2:$H$57,6,FALSE)=0,"",VLOOKUP('Calcolo c'!$B9,Library!$B$2:$H$57,6,FALSE)),"") ->  | G9: =+IF(H9="","",'Conventional System with PV'!C19) ->  | H9: =+IFERROR(C9*'Conventional System with PV'!$F19*('Conventional System with PV'!$H19+1),"") ->  | J9: =+IFERROR(D9*'Conventional System with PV'!$F19*('Conventional System with PV'!$H19+1),"") ->  | K9: =+IFERROR(E9*'Conventional System with PV'!$F19*('Conventional System with PV'!$H19+1),"") ->  | M9: =+IFERROR(F9*'Conventional System with PV'!$F19*('Conventional System with PV'!$H19+1),"") -> 
B10: =+IF('Conventional System with PV'!C20=0,"",'Conventional System with PV'!C20) -> <Pipes> | C10: =+IFERROR(IF(VLOOKUP('Calcolo c'!$B10,Library!$B$2:$H$57,2,FALSE)=0,"",VLOOKUP('Calcolo c'!$B10,Library!$B$2:$H$57,2,FALSE)),"") ->  | D10: =+IFERROR(IF(VLOOKUP('Calcolo c'!$B10,Library!$B$2:$H$57,3,FALSE)=0,"",VLOOKUP('Calcolo c'!$B10,Library!$B$2:$H$57,3,FALSE)),"") ->  | E10: =+IFERROR(IF(VLOOKUP('Calcolo c'!$B10,Library!$B$2:$H$57,5,FALSE)=0,"",VLOOKUP('Calcolo c'!$B10,Library!$B$2:$H$57,5,FALSE)),"") ->  | F10: =+IFERROR(IF(VLOOKUP('Calcolo c'!$B10,Library!$B$2:$H$57,6,FALSE)=0,"",VLOOKUP('Calcolo c'!$B10,Library!$B$2:$H$57,6,FALSE)),"") ->  | G10: =+IF(H10="","",'Conventional System with PV'!C20) ->  | H10: =+IFERROR(C10*'Conventional System with PV'!$F20*('Conventional System with PV'!$H20+1),"") ->  | J10: =+IFERROR(D10*'Conventional System with PV'!$F20*('Conventional System with PV'!$H20+1),"") ->  | K10: =+IFERROR(E10*'Conventional System with PV'!$F20*('Conventional System with PV'!$H20+1),"") ->  | M10: =+IFERROR(F10*'Conventional System with PV'!$F20*('Conventional System with PV'!$H20+1),"") -> 
B11: =+IF('Conventional System with PV'!C21=0,"",'Conventional System with PV'!C21) -> <Pump> | C11: =+IFERROR(IF(VLOOKUP('Calcolo c'!$B11,Library!$B$2:$H$57,2,FALSE)=0,"",VLOOKUP('Calcolo c'!$B11,Library!$B$2:$H$57,2,FALSE)),"") ->  | D11: =+IFERROR(IF(VLOOKUP('Calcolo c'!$B11,Library!$B$2:$H$57,3,FALSE)=0,"",VLOOKUP('Calcolo c'!$B11,Library!$B$2:$H$57,3,FALSE)),"") ->  | E11: =+IFERROR(IF(VLOOKUP('Calcolo c'!$B11,Library!$B$2:$H$57,5,FALSE)=0,"",VLOOKUP('Calcolo c'!$B11,Library!$B$2:$H$57,5,FALSE)),"") ->  | F11: =+IFERROR(IF(VLOOKUP('Calcolo c'!$B11,Library!$B$2:$H$57,6,FALSE)=0,"",VLOOKUP('Calcolo c'!$B11,Library!$B$2:$H$57,6,FALSE)),"") ->  | G11: =+IF(H11="","",'Conventional System with PV'!C21) ->  | H11: =+IFERROR(C11*'Conventional System with PV'!$F21*('Conventional System with PV'!$H21+1),"") ->  | J11: =+IFERROR(D11*'Conventional System with PV'!$F21*('Conventional System with PV'!$H21+1),"") ->  | K11: =+IFERROR(E11*'Conventional System with PV'!$F21*('Conventional System with PV'!$H21+1),"") ->  | M11: =+IFERROR(F11*'Conventional System with PV'!$F21*('Conventional System with PV'!$H21+1),"") -> 
B12: =+IF('Conventional System with PV'!C22=0,"",'Conventional System with PV'!C22) ->  | C12: =+IFERROR(IF(VLOOKUP('Calcolo c'!$B12,Library!$B$2:$H$57,2,FALSE)=0,"",VLOOKUP('Calcolo c'!$B12,Library!$B$2:$H$57,2,FALSE)),"") ->  | D12: =+IFERROR(IF(VLOOKUP('Calcolo c'!$B12,Library!$B$2:$H$57,3,FALSE)=0,"",VLOOKUP('Calcolo c'!$B12,Library!$B$2:$H$57,3,FALSE)),"") ->  | E12: =+IFERROR(IF(VLOOKUP('Calcolo c'!$B12,Library!$B$2:$H$57,5,FALSE)=0,"",VLOOKUP('Calcolo c'!$B12,Library!$B$2:$H$57,5,FALSE)),"") ->  | F12: =+IFERROR(IF(VLOOKUP('Calcolo c'!$B12,Library!$B$2:$H$57,6,FALSE)=0,"",VLOOKUP('Calcolo c'!$B12,Library!$B$2:$H$57,6,FALSE)),"") ->  | G12: =+IF(H12="","",'Conventional System with PV'!C22) ->  | H12: =+IFERROR(C12*'Conventional System with PV'!$F22*('Conventional System with PV'!$H22+1),"") ->  | J12: =+IFERROR(D12*'Conventional System with PV'!$F22*('Conventional System with PV'!$H22+1),"") ->  | K12: =+IFERROR(E12*'Conventional System with PV'!$F22*('Conventional System with PV'!$H22+1),"") ->  | M12: =+IFERROR(F12*'Conventional System with PV'!$F22*('Conventional System with PV'!$H22+1),"") -> 
B13: =+IF('Conventional System with PV'!C23=0,"",'Conventional System with PV'!C23) ->  | C13: =+IFERROR(IF(VLOOKUP('Calcolo c'!$B13,Library!$B$2:$H$57,2,FALSE)=0,"",VLOOKUP('Calcolo c'!$B13,Library!$B$2:$H$57,2,FALSE)),"") ->  | D13: =+IFERROR(IF(VLOOKUP('Calcolo c'!$B13,Library!$B$2:$H$57,3,FALSE)=0,"",VLOOKUP('Calcolo c'!$B13,Library!$B$2:$H$57,3,FALSE)),"") ->  | E13: =+IFERROR(IF(VLOOKUP('Calcolo c'!$B13,Library!$B$2:$H$57,5,FALSE)=0,"",VLOOKUP('Calcolo c'!$B13,Library!$B$2:$H$57,5,FALSE)),"") ->  | F13: =+IFERROR(IF(VLOOKUP('Calcolo c'!$B13,Library!$B$2:$H$57,6,FALSE)=0,"",VLOOKUP('Calcolo c'!$B13,Library!$B$2:$H$57,6,FALSE)),"") ->  | G13: =+IF(H13="","",'Conventional System with PV'!C23) ->  | H13: =+IFERROR(C13*'Conventional System with PV'!$F23*('Conventional System with PV'!$H23+1),"") ->  | J13: =+IFERROR(D13*'Conventional System with PV'!$F23*('Conventional System with PV'!$H23+1),"") ->  | K13: =+IFERROR(E13*'Conventional System with PV'!$F23*('Conventional System with PV'!$H23+1),"") ->  | M13: =+IFERROR(F13*'Conventional System with PV'!$F23*('Conventional System with PV'!$H23+1),"") -> 
B14: =+IF('Conventional System with PV'!C24=0,"",'Conventional System with PV'!C24) ->  | C14: =+IFERROR(IF(VLOOKUP('Calcolo c'!$B14,Library!$B$2:$H$57,2,FALSE)=0,"",VLOOKUP('Calcolo c'!$B14,Library!$B$2:$H$57,2,FALSE)),"") ->  | D14: =+IFERROR(IF(VLOOKUP('Calcolo c'!$B14,Library!$B$2:$H$57,3,FALSE)=0,"",VLOOKUP('Calcolo c'!$B14,Library!$B$2:$H$57,3,FALSE)),"") ->  | E14: =+IFERROR(IF(VLOOKUP('Calcolo c'!$B14,Library!$B$2:$H$57,5,FALSE)=0,"",VLOOKUP('Calcolo c'!$B14,Library!$B$2:$H$57,5,FALSE)),"") ->  | F14: =+IFERROR(IF(VLOOKUP('Calcolo c'!$B14,Library!$B$2:$H$57,6,FALSE)=0,"",VLOOKUP('Calcolo c'!$B14,Library!$B$2:$H$57,6,FALSE)),"") ->  | G14: =+IF(H14="","",'Conventional System with PV'!C24) ->  | H14: =+IFERROR(C14*'Conventional System with PV'!$F$13,"") ->  | J14: =+IFERROR(D14*'Conventional System with PV'!$F$13,"") ->  | K14: =+IFERROR(E14*'Conventional System with PV'!$F$13,"") ->  | M14: =+IFERROR(F14*'Conventional System with PV'!$F$13,"") -> 
B15: =+IF('Conventional System with PV'!C25=0,"",'Conventional System with PV'!C25) ->  | C15: =+IFERROR(IF(VLOOKUP('Calcolo c'!$B15,Library!$B$2:$H$57,2,FALSE)=0,"",VLOOKUP('Calcolo c'!$B15,Library!$B$2:$H$57,2,FALSE)),"") ->  | D15: =+IFERROR(IF(VLOOKUP('Calcolo c'!$B15,Library!$B$2:$H$57,3,FALSE)=0,"",VLOOKUP('Calcolo c'!$B15,Library!$B$2:$H$57,3,FALSE)),"") ->  | E15: =+IFERROR(IF(VLOOKUP('Calcolo c'!$B15,Library!$B$2:$H$57,5,FALSE)=0,"",VLOOKUP('Calcolo c'!$B15,Library!$B$2:$H$57,5,FALSE)),"") ->  | F15: =+IFERROR(IF(VLOOKUP('Calcolo c'!$B15,Library!$B$2:$H$57,6,FALSE)=0,"",VLOOKUP('Calcolo c'!$B15,Library!$B$2:$H$57,6,FALSE)),"") ->  | G15: =+IF(H15="","",'Conventional System with PV'!C25) ->  | H15: =+IFERROR(C15*'Conventional System with PV'!$F$13,"") ->  | J15: =+IFERROR(D15*'Conventional System with PV'!$F$13,"") ->  | K15: =+IFERROR(E15*'Conventional System with PV'!$F$13,"") ->  | M15: =+IFERROR(F15*'Conventional System with PV'!$F$13,"") -> 
B16: =+IF('Conventional System with PV'!C26=0,"",'Conventional System with PV'!C26) ->  | C16: =+IFERROR(IF(VLOOKUP('Calcolo c'!$B16,Library!$B$2:$H$57,2,FALSE)=0,"",VLOOKUP('Calcolo c'!$B16,Library!$B$2:$H$57,2,FALSE)),"") ->  | D16: =+IFERROR(IF(VLOOKUP('Calcolo c'!$B16,Library!$B$2:$H$57,3,FALSE)=0,"",VLOOKUP('Calcolo c'!$B16,Library!$B$2:$H$57,3,FALSE)),"") ->  | E16: =+IFERROR(IF(VLOOKUP('Calcolo c'!$B16,Library!$B$2:$H$57,5,FALSE)=0,"",VLOOKUP('Calcolo c'!$B16,Library!$B$2:$H$57,5,FALSE)),"") ->  | F16: =+IFERROR(IF(VLOOKUP('Calcolo c'!$B16,Library!$B$2:$H$57,6,FALSE)=0,"",VLOOKUP('Calcolo c'!$B16,Library!$B$2:$H$57,6,FALSE)),"") ->  | G16: =+IF(H16="","",'Conventional System with PV'!C26) ->  | H16: =+IFERROR(C16*'Conventional System with PV'!$F$13,"") ->  | J16: =+IFERROR(D16*'Conventional System with PV'!$F$13,"") ->  | K16: =+IFERROR(E16*'Conventional System with PV'!$F$13,"") ->  | M16: =+IFERROR(F16*'Conventional System with PV'!$F$13,"") -> 
B17: =+IF('Conventional System with PV'!C27=0,"",'Conventional System with PV'!C27) ->  | C17: =+IFERROR(IF(VLOOKUP('Calcolo c'!$B17,Library!$B$2:$H$57,2,FALSE)=0,"",VLOOKUP('Calcolo c'!$B17,Library!$B$2:$H$57,2,FALSE)),"") ->  | D17: =+IFERROR(IF(VLOOKUP('Calcolo c'!$B17,Library!$B$2:$H$57,3,FALSE)=0,"",VLOOKUP('Calcolo c'!$B17,Library!$B$2:$H$57,3,FALSE)),"") ->  | E17: =+IFERROR(IF(VLOOKUP('Calcolo c'!$B17,Library!$B$2:$H$57,5,FALSE)=0,"",VLOOKUP('Calcolo c'!$B17,Library!$B$2:$H$57,5,FALSE)),"") ->  | F17: =+IFERROR(IF(VLOOKUP('Calcolo c'!$B17,Library!$B$2:$H$57,6,FALSE)=0,"",VLOOKUP('Calcolo c'!$B17,Library!$B$2:$H$57,6,FALSE)),"") ->  | G17: =+IF(H17="","",'Conventional System with PV'!C27) ->  | H17: =+IFERROR(C17*'Conventional System with PV'!$F$13,"") ->  | J17: =+IFERROR(D17*'Conventional System with PV'!$F$13,"") ->  | K17: =+IFERROR(E17*'Conventional System with PV'!$F$13,"") ->  | M17: =+IFERROR(F17*'Conventional System with PV'!$F$13,"") -> 
B18: =+IF('Conventional System with PV'!C28=0,"",'Conventional System with PV'!C28) ->  | C18: =+IFERROR(IF(VLOOKUP('Calcolo c'!$B18,Library!$B$2:$H$57,2,FALSE)=0,"",VLOOKUP('Calcolo c'!$B18,Library!$B$2:$H$57,2,FALSE)),"") ->  | D18: =+IFERROR(IF(VLOOKUP('Calcolo c'!$B18,Library!$B$2:$H$57,3,FALSE)=0,"",VLOOKUP('Calcolo c'!$B18,Library!$B$2:$H$57,3,FALSE)),"") ->  | E18: =+IFERROR(IF(VLOOKUP('Calcolo c'!$B18,Library!$B$2:$H$57,5,FALSE)=0,"",VLOOKUP('Calcolo c'!$B18,Library!$B$2:$H$57,5,FALSE)),"") ->  | F18: =+IFERROR(IF(VLOOKUP('Calcolo c'!$B18,Library!$B$2:$H$57,6,FALSE)=0,"",VLOOKUP('Calcolo c'!$B18,Library!$B$2:$H$57,6,FALSE)),"") ->  | G18: =+IF(H18="","",'Conventional System with PV'!C28) ->  | H18: =+IFERROR(C18*'Conventional System with PV'!$F$13,"") ->  | J18: =+IFERROR(D18*'Conventional System with PV'!$F$13,"") ->  | K18: =+IFERROR(E18*'Conventional System with PV'!$F$13,"") ->  | M18: =+IFERROR(F18*'Conventional System with PV'!$F$13,"") -> 
B19: =+IF('Conventional System with PV'!C29=0,"",'Conventional System with PV'!C29) ->  | C19: =+IFERROR(IF(VLOOKUP('Calcolo c'!$B19,Library!$B$2:$H$57,2,FALSE)=0,"",VLOOKUP('Calcolo c'!$B19,Library!$B$2:$H$57,2,FALSE)),"") ->  | D19: =+IFERROR(IF(VLOOKUP('Calcolo c'!$B19,Library!$B$2:$H$57,3,FALSE)=0,"",VLOOKUP('Calcolo c'!$B19,Library!$B$2:$H$57,3,FALSE)),"") ->  | E19: =+IFERROR(IF(VLOOKUP('Calcolo c'!$B19,Library!$B$2:$H$57,5,FALSE)=0,"",VLOOKUP('Calcolo c'!$B19,Library!$B$2:$H$57,5,FALSE)),"") ->  | F19: =+IFERROR(IF(VLOOKUP('Calcolo c'!$B19,Library!$B$2:$H$57,6,FALSE)=0,"",VLOOKUP('Calcolo c'!$B19,Library!$B$2:$H$57,6,FALSE)),"") ->  | G19: =+IF(H19="","",'Conventional System with PV'!C29) ->  | H19: =+IFERROR(C19*'Conventional System with PV'!$F$13,"") ->  | J19: =+IFERROR(D19*'Conventional System with PV'!$F$13,"") ->  | K19: =+IFERROR(E19*'Conventional System with PV'!$F$13,"") ->  | M19: =+IFERROR(F19*'Conventional System with PV'!$F$13,"") -> 
B20: =+'Conventional System with PV'!C30 -> ENERGY SOURCES | C20: Global Energy Requirement (Ger) | E20: Global Warming Potential (Gwp) | F20: numbers years | H20: =+IFERROR(C20*'Conventional System with PV'!$F$13,"") ->  | K20: =+IFERROR(E20*'Conventional System with PV'!$F$13,"") ->  | M20: =+IFERROR(F20*'Conventional System with PV'!$F$13,"") -> 
C21: =+IFERROR(IF(VLOOKUP('Calcolo c'!$B21,Library!$B$2:$H$57,2,FALSE)=0,"",VLOOKUP('Calcolo c'!$B21,Library!$B$2:$H$57,2,FALSE)),"") ->  | D21: =+IFERROR(IF(VLOOKUP('Calcolo c'!$B21,Library!$B$2:$H$57,3,FALSE)=0,"",VLOOKUP('Calcolo c'!$B21,Library!$B$2:$H$57,3,FALSE)),"") ->  | E21: =+IFERROR(IF(VLOOKUP('Calcolo c'!$B21,Library!$B$2:$H$57,5,FALSE)=0,"",VLOOKUP('Calcolo c'!$B21,Library!$B$2:$H$57,5,FALSE)),"") ->  | F21: =+'Conventional System with PV'!F37 -> 0 | G21: =+IF(H21="","",'Conventional System with PV'!C31) ->  | H21: =+IFERROR(C21*'Conventional System with PV'!$F$13,"") ->  | J21: =+IFERROR(D21*'Conventional System with PV'!$F$13,"") ->  | K21: =+IFERROR(E21*'Conventional System with PV'!$F$13,"") ->  | M21: =+IFERROR(#REF!*'Conventional System with PV'!$F$13,"") ->  | O21: =+PROPER(A19) ->  | P21: =+PROPER(B19) -> 
B22: =+'Conventional System with PV'!C32 -> <Electricity> | C22: =+IFERROR(IF(VLOOKUP('Calcolo c'!$B22,Library!$B$58:$H$118,2,FALSE)=0,"",VLOOKUP('Calcolo c'!$B22,Library!$B$58:$H$118,2,FALSE)),"") ->  | E22: =+IFERROR(IF(VLOOKUP('Calcolo c'!$B22,Library!$B$58:$H$118,5,FALSE)=0,"",VLOOKUP('Calcolo c'!$B22,Library!$B$58:$H$118,5,FALSE)),"") ->  | G22: =+IF(I22="","",'Conventional System with PV'!C32) ->  | I22: =+IFERROR(C22*'Conventional System with PV'!$F$32*'Conventional System with PV'!$F$37,"") ->  | L22: =+IFERROR(E22*'Conventional System with PV'!$F$32*'Conventional System with PV'!$F$37,"") -> 
B23: =+'Conventional System with PV'!C33 -> <Natural gas> | C23: =+IFERROR(IF(VLOOKUP('Calcolo c'!$B23,Library!$B$58:$H$118,2,FALSE)=0,"",VLOOKUP('Calcolo c'!$B23,Library!$B$58:$H$118,2,FALSE)),"") ->  | E23: =+IFERROR(IF(VLOOKUP('Calcolo c'!$B23,Library!$B$58:$H$118,5,FALSE)=0,"",VLOOKUP('Calcolo c'!$B23,Library!$B$58:$H$118,5,FALSE)),"") ->  | G23: =+IF(I23="","",'Conventional System with PV'!C33) ->  | I23: =+IFERROR(C23*'Conventional System with PV'!$F$33*'Conventional System with PV'!$F$37,"") ->  | L23: =+IFERROR(E23*'Conventional System with PV'!$F$33*'Conventional System with PV'!$F$37,"") -> 
B24: =+'Conventional System with PV'!C34 -> 0 | C24: =+IFERROR(IF(VLOOKUP('Calcolo c'!$B24,Library!$B$2:$H$57,2,FALSE)=0,"",VLOOKUP('Calcolo c'!$B24,Library!$B$2:$H$57,2,FALSE)),"") ->  | E24: =+IFERROR(IF(VLOOKUP('Calcolo c'!$B24,Library!$B$2:$H$57,5,FALSE)=0,"",VLOOKUP('Calcolo c'!$B24,Library!$B$2:$H$57,5,FALSE)),"") -> 

Sheet Calcolo d (hidden)
B1: =+'Conventional System '!C11 -> COMPONENTS OF THE CONVENTIONAL SYSTEM | C1: Global Energy Requirement (Ger) | E1: Global Warming Potential (Gwp) | H1: Calcolo xxx | J1: tabella1 | P1: Tabella 2
B2: =+'Conventional System '!C12 -> Category | C2: Manufacturing Step | D2: End-Of-Life Step | E2: Manufacturing Step | F2: End-Of-Life Step | H2: Manufacturing Step | I2: Use phase | J2: End-Of-Life Step | K2: Manufacturing Step | L2: Use phase | M2: End-Of-Life Step | P2: Type | Q2: Global Energy Requirement (Ger) | R2: Global Warming Potential (Gwp)
B3: =+IF('Conventional System '!C13=0,"",'Conventional System '!C13) -> <Chiller (conventional)> | C3: =+IFERROR(IF(VLOOKUP('Calcolo d'!$B3,Library!$B$2:$H$57,2,FALSE)=0,"",VLOOKUP('Calcolo d'!$B3,Library!$B$2:$H$57,2,FALSE)),"") ->  | D3: =+IFERROR(IF(VLOOKUP('Calcolo d'!$B3,Library!$B$2:$H$57,3,FALSE)=0,"",VLOOKUP('Calcolo d'!$B3,Library!$B$2:$H$57,3,FALSE)),"") ->  | E3: =+IFERROR(IF(VLOOKUP('Calcolo d'!$B3,Library!$B$2:$H$57,5,FALSE)=0,"",VLOOKUP('Calcolo d'!$B3,Library!$B$2:$H$57,5,FALSE)),"") ->  | F3: =+IFERROR(IF(VLOOKUP('Calcolo d'!$B3,Library!$B$2:$H$57,6,FALSE)=0,"",VLOOKUP('Calcolo d'!$B3,Library!$B$2:$H$57,6,FALSE)),"") ->  | G3: =+IF(H3="","",'Conventional System '!C13) ->  | H3: =+IFERROR(C3*'Conventional System '!$F13*('Conventional System '!$H13+1),"") ->  | J3: =+IFERROR(D3*'Conventional System '!$F13*('Conventional System '!$H13+1),"") ->  | K3: =+IFERROR(E3*'Conventional System '!$F13*('Conventional System '!$H13+1),"") ->  | M3: =+IFERROR(F3*'Conventional System '!$F13*('Conventional System '!$H13+1),"") ->  | P3: =+PROPER(B1) -> Components Of The Conventional System | Q3: =+SUM(H3:J19) -> 0 | R3: =+SUM(K3:M19) -> 0
B4: =+IF('Conventional System '!C14=0,"",'Conventional System '!C14) -> <Gas boiler > | C4: =+IFERROR(IF(VLOOKUP('Calcolo d'!$B4,Library!$B$2:$H$57,2,FALSE)=0,"",VLOOKUP('Calcolo d'!$B4,Library!$B$2:$H$57,2,FALSE)),"") ->  | D4: =+IFERROR(IF(VLOOKUP('Calcolo d'!$B4,Library!$B$2:$H$57,3,FALSE)=0,"",VLOOKUP('Calcolo d'!$B4,Library!$B$2:$H$57,3,FALSE)),"") ->  | E4: =+IFERROR(IF(VLOOKUP('Calcolo d'!$B4,Library!$B$2:$H$57,5,FALSE)=0,"",VLOOKUP('Calcolo d'!$B4,Library!$B$2:$H$57,5,FALSE)),"") ->  | F4: =+IFERROR(IF(VLOOKUP('Calcolo d'!$B4,Library!$B$2:$H$57,6,FALSE)=0,"",VLOOKUP('Calcolo d'!$B4,Library!$B$2:$H$57,6,FALSE)),"") ->  | G4: =+IF(H4="","",'Conventional System '!C14) ->  | H4: =+IFERROR(C4*'Conventional System '!$F14*('Conventional System '!$H14+1),"") ->  | J4: =+IFERROR(D4*'Conventional System '!$F14*('Conventional System '!$H14+1),"") ->  | K4: =+IFERROR(E4*'Conventional System '!$F14*('Conventional System '!$H14+1),"") ->  | M4: =+IFERROR(F4*'Conventional System '!$F14*('Conventional System '!$H14+1),"") ->  | P4: =+CONCATENATE(PROPER(B20)," ","(",'Calcolo d'!F21," years)") -> Energy Sources (0 years) | Q4: =+SUM(I22:I23) -> 0 | R4: =+SUM(L22:L23) -> 0
B5: =+IF('Conventional System '!C15=0,"",'Conventional System '!C15) -> <Heat-pump> | C5: =+IFERROR(IF(VLOOKUP('Calcolo d'!$B5,Library!$B$2:$H$57,2,FALSE)=0,"",VLOOKUP('Calcolo d'!$B5,Library!$B$2:$H$57,2,FALSE)),"") ->  | D5: =+IFERROR(IF(VLOOKUP('Calcolo d'!$B5,Library!$B$2:$H$57,3,FALSE)=0,"",VLOOKUP('Calcolo d'!$B5,Library!$B$2:$H$57,3,FALSE)),"") ->  | E5: =+IFERROR(IF(VLOOKUP('Calcolo d'!$B5,Library!$B$2:$H$57,5,FALSE)=0,"",VLOOKUP('Calcolo d'!$B5,Library!$B$2:$H$57,5,FALSE)),"") ->  | F5: =+IFERROR(IF(VLOOKUP('Calcolo d'!$B5,Library!$B$2:$H$57,6,FALSE)=0,"",VLOOKUP('Calcolo d'!$B5,Library!$B$2:$H$57,6,FALSE)),"") ->  | G5: =+IF(H5="","",'Conventional System '!C15) ->  | H5: =+IFERROR(C5*'Conventional System '!$F15*('Conventional System '!$H15+1),"") ->  | J5: =+IFERROR(D5*'Conventional System '!$F15*('Conventional System '!$H15+1),"") ->  | K5: =+IFERROR(E5*'Conventional System '!$F15*('Conventional System '!$H15+1),"") ->  | M5: =+IFERROR(F5*'Conventional System '!$F15*('Conventional System '!$H15+1),"") -> 
B6: =+IF('Conventional System '!C16=0,"",'Conventional System '!C16) -> <Pipes> | C6: =+IFERROR(IF(VLOOKUP('Calcolo d'!$B6,Library!$B$2:$H$57,2,FALSE)=0,"",VLOOKUP('Calcolo d'!$B6,Library!$B$2:$H$57,2,FALSE)),"") ->  | D6: =+IFERROR(IF(VLOOKUP('Calcolo d'!$B6,Library!$B$2:$H$57,3,FALSE)=0,"",VLOOKUP('Calcolo d'!$B6,Library!$B$2:$H$57,3,FALSE)),"") ->  | E6: =+IFERROR(IF(VLOOKUP('Calcolo d'!$B6,Library!$B$2:$H$57,5,FALSE)=0,"",VLOOKUP('Calcolo d'!$B6,Library!$B$2:$H$57,5,FALSE)),"") ->  | F6: =+IFERROR(IF(VLOOKUP('Calcolo d'!$B6,Library!$B$2:$H$57,6,FALSE)=0,"",VLOOKUP('Calcolo d'!$B6,Library!$B$2:$H$57,6,FALSE)),"") ->  | G6: =+IF(H6="","",'Conventional System '!C16) ->  | H6: =+IFERROR(C6*'Conventional System '!$F16*('Conventional System '!$H16+1),"") ->  | J6: =+IFERROR(D6*'Conventional System '!$F16*('Conventional System '!$H16+1),"") ->  | K6: =+IFERROR(E6*'Conventional System '!$F16*('Conventional System '!$H16+1),"") ->  | M6: =+IFERROR(F6*'Conventional System '!$F16*('Conventional System '!$H16+1),"") -> 
B7: =+IF('Conventional System '!C17=0,"",'Conventional System '!C17) -> <Pump> | C7: =+IFERROR(IF(VLOOKUP('Calcolo d'!$B7,Library!$B$2:$H$57,2,FALSE)=0,"",VLOOKUP('Calcolo d'!$B7,Library!$B$2:$H$57,2,FALSE)),"") ->  | D7: =+IFERROR(IF(VLOOKUP('Calcolo d'!$B7,Library!$B$2:$H$57,3,FALSE)=0,"",VLOOKUP('Calcolo d'!$B7,Library!$B$2:$H$57,3,FALSE)),"") ->  | E7: =+IFERROR(IF(VLOOKUP('Calcolo d'!$B7,Library!$B$2:$H$57,5,FALSE)=0,"",VLOOKUP('Calcolo d'!$B7,Library!$B$2:$H$57,5,FALSE)),"") ->  | F7: =+IFERROR(IF(VLOOKUP('Calcolo d'!$B7,Library!$B$2:$H$57,6,FALSE)=0,"",VLOOKUP('Calcolo d'!$B7,Library!$B$2:$H$57,6,FALSE)),"") ->  | G7: =+IF(H7="","",'Conventional System '!C17) ->  | H7: =+IFERROR(C7*'Conventional System '!$F17*('Conventional System '!$H17+1),"") ->  | J7: =+IFERROR(D7*'Conventional System '!$F17*('Conventional System '!$H17+1),"") ->  | K7: =+IFERROR(E7*'Conventional System '!$F17*('Conventional System '!$H17+1),"") ->  | M7: =+IFERROR(F7*'Conventional System '!$F17*('Conventional System '!$H17+1),"") -> 
B8: =+IF('Conventional System '!C18=0,"",'Conventional System '!C18) ->  | C8: =+IFERROR(IF(VLOOKUP('Calcolo d'!$B8,Library!$B$2:$H$57,2,FALSE)=0,"",VLOOKUP('Calcolo d'!$B8,Library!$B$2:$H$57,2,FALSE)),"") ->  | D8: =+IFERROR(IF(VLOOKUP('Calcolo d'!$B8,Library!$B$2:$H$57,3,FALSE)=0,"",VLOOKUP('Calcolo d'!$B8,Library!$B$2:$H$57,3,FALSE)),"") ->  | E8: =+IFERROR(IF(VLOOKUP('Calcolo d'!$B8,Library!$B$2:$H$57,5,FALSE)=0,"",VLOOKUP('Calcolo d'!$B8,Library!$B$2:$H$57,5,FALSE)),"") ->  | F8: =+IFERROR(IF(VLOOKUP('Calcolo d'!$B8,Library!$B$2:$H$57,6,FALSE)=0,"",VLOOKUP('Calcolo d'!$B8,Library!$B$2:$H$57,6,FALSE)),"") ->  | G8: =+IF(H8="","",'Conventional System '!C18) ->  | H8: =+IFERROR(C8*'Conventional System '!$F18*('Conventional System '!$H18+1),"") ->  | J8: =+IFERROR(D8*'Conventional System '!$F18*('Conventional System '!$H18+1),"") ->  | K8: =+IFERROR(E8*'Conventional System '!$F18*('Conventional System '!$H18+1),"") ->  | M8: =+IFERROR(F8*'Conventional System '!$F18*('Conventional System '!$H18+1),"") -> 
B9: =+IF('Conventional System '!C19=0,"",'Conventional System '!C19) ->  | C9: =+IFERROR(IF(VLOOKUP('Calcolo d'!$B9,Library!$B$2:$H$57,2,FALSE)=0,"",VLOOKUP('Calcolo d'!$B9,Library!$B$2:$H$57,2,FALSE)),"") ->  | D9: =+IFERROR(IF(VLOOKUP('Calcolo d'!$B9,Library!$B$2:$H$57,3,FALSE)=0,"",VLOOKUP('Calcolo d'!$B9,Library!$B$2:$H$57,3,FALSE)),"") ->  | E9: =+IFERROR(IF(VLOOKUP('Calcolo d'!$B9,Library!$B$2:$H$57,5,FALSE)=0,"",VLOOKUP('Calcolo d'!$B9,Library!$B$2:$H$57,5,FALSE)),"") ->  | F9: =+IFERROR(IF(VLOOKUP('Calcolo d'!$B9,Library!$B$2:$H$57,6,FALSE)=0,"",VLOOKUP('Calcolo d'!$B9,Library!$B$2:$H$57,6,FALSE)),"") ->  | G9: =+IF(H9="","",'Conventional System '!C19) ->  | H9: =+IFERROR(C9*'Conventional System '!$F19*('Conventional System '!$H19+1),"") ->  | J9: =+IFERROR(D9*'Conventional System '!$F$13,"") ->  | K9: =+IFERROR(E9*'Conventional System '!$F19*('Conventional System '!$H19+1),"") ->  | M9: =+IFERROR(F9*'Conventional System '!$F19*('Conventional System '!$H19+1),"") -> 
B10: =+IF('Conventional System '!C20=0,"",'Conventional System '!C20) ->  | C10: =+IFERROR(IF(VLOOKUP('Calcolo d'!$B10,Library!$B$2:$H$57,2,FALSE)=0,"",VLOOKUP('Calcolo d'!$B10,Library!$B$2:$H$57,2,FALSE)),"") ->  | D10: =+IFERROR(IF(VLOOKUP('Calcolo d'!$B10,Library!$B$2:$H$57,3,FALSE)=0,"",VLOOKUP('Calcolo d'!$B10,Library!$B$2:$H$57,3,FALSE)),"") ->  | E10: =+IFERROR(IF(VLOOKUP('Calcolo d'!$B10,Library!$B$2:$H$57,5,FALSE)=0,"",VLOOKUP('Calcolo d'!$B10,Library!$B$2:$H$57,5,FALSE)),"") ->  | F10: =+IFERROR(IF(VLOOKUP('Calcolo d'!$B10,Library!$B$2:$H$57,6,FALSE)=0,"",VLOOKUP('Calcolo d'!$B10,Library!$B$2:$H$57,6,FALSE)),"") ->  | G10: =+IF(H10="","",'Conventional System '!C20) ->  | H10: =+IFERROR(C10*'Conventional System '!$F20('Conventional System '!$H20+1),"") ->  | J10: =+IFERROR(D10*'Conventional System '!$F$13,"") ->  | K10: =+IFERROR(E10*'Conventional System '!$F$13,"") ->  | M10: =+IFERROR(F10*'Conventional System '!$F20*('Conventional System '!$H20+1),"") -> 
B11: =+IF('Conventional System '!C21=0,"",'Conventional System '!C21) ->  | C11: COMPONENTS OF THE CONVENTIONAL SYSTEM WITH PV | E11: =+IFERROR(IF(VLOOKUP('Calcolo d'!$B11,Library!$B$2:$H$57,5,FALSE)=0,"",VLOOKUP('Calcolo d'!$B11,Library!$B$2:$H$57,5,FALSE)),"") ->  | F11: =+IFERROR(IF(VLOOKUP('Calcolo d'!$B11,Library!$B$2:$H$57,6,FALSE)=0,"",VLOOKUP('Calcolo d'!$B11,Library!$B$2:$H$57,6,FALSE)),"") ->  | G11: =+IF(H11="","",'Conventional System '!C21) ->  | H11: =+IFERROR(C11*'Conventional System '!$F$13,"") ->  | J11: =+IFERROR(D11*'Conventional System '!$F$13,"") -> 0 | K11: =+IFERROR(E11*'Conventional System '!$F$13,"") ->  | M11: =+IFERROR(F11*'Conventional System '!$F21*('Conventional System '!$H21+1),"") -> 
B12: =+IF('Conventional System '!C22=0,"",'Conventional System '!C22) ->  | C12: =+IFERROR(IF(VLOOKUP('Calcolo d'!$B12,Library!$B$2:$H$57,2,FALSE)=0,"",VLOOKUP('Calcolo d'!$B12,Library!$B$2:$H$57,2,FALSE)),"") ->  | D12: =+IFERROR(IF(VLOOKUP('Calcolo d'!$B12,Library!$B$2:$H$57,3,FALSE)=0,"",VLOOKUP('Calcolo d'!$B12,Library!$B$2:$H$57,3,FALSE)),"") ->  | E12: =+IFERROR(IF(VLOOKUP('Calcolo d'!$B12,Library!$B$2:$H$57,5,FALSE)=0,"",VLOOKUP('Calcolo d'!$B12,Library!$B$2:$H$57,5,FALSE)),"") ->  | F12: =+IFERROR(IF(VLOOKUP('Calcolo d'!$B12,Library!$B$2:$H$57,6,FALSE)=0,"",VLOOKUP('Calcolo d'!$B12,Library!$B$2:$H$57,6,FALSE)),"") ->  | G12: =+IF(H12="","",'Conventional System '!C22) ->  | H12: =+IFERROR(C12*'Conventional System '!$F$13,"") ->  | J12: =+IFERROR(D12*'Conventional System '!$F$13,"") ->  | K12: =+IFERROR(E12*'Conventional System '!$F$13,"") ->  | M12: =+IFERROR(F12*'Conventional System '!$F22*('Conventional System '!$H22+1),"") -> 
B13: =+IF('Conventional System '!C23=0,"",'Conventional System '!C23) ->  | C13: =+IFERROR(IF(VLOOKUP('Calcolo d'!$B13,Library!$B$2:$H$57,2,FALSE)=0,"",VLOOKUP('Calcolo d'!$B13,Library!$B$2:$H$57,2,FALSE)),"") ->  | D13: =+IFERROR(IF(VLOOKUP('Calcolo d'!$B13,Library!$B$2:$H$57,3,FALSE)=0,"",VLOOKUP('Calcolo d'!$B13,Library!$B$2:$H$57,3,FALSE)),"") ->  | E13: =+IFERROR(IF(VLOOKUP('Calcolo d'!$B13,Library!$B$2:$H$57,5,FALSE)=0,"",VLOOKUP('Calcolo d'!$B13,Library!$B$2:$H$57,5,FALSE)),"") ->  | F13: =+IFERROR(IF(VLOOKUP('Calcolo d'!$B13,Library!$B$2:$H$57,6,FALSE)=0,"",VLOOKUP('Calcolo d'!$B13,Library!$B$2:$H$57,6,FALSE)),"") ->  | G13: =+IF(H13="","",'Conventional System '!C23) ->  | H13: =+IFERROR(C13*'Conventional System '!$F$13,"") ->  | J13: =+IFERROR(D13*'Conventional System '!$F$13,"") ->  | K13: =+IFERROR(E13*'Conventional System '!$F$13,"") ->  | M13: =+IFERROR(F13*'Conventional System '!$F$13,"") -> 
B14: =+IF('Conventional System '!C24=0,"",'Conventional System '!C24) ->  | C14: =+IFERROR(IF(VLOOKUP('Calcolo d'!$B14,Library!$B$2:$H$57,2,FALSE)=0,"",VLOOKUP('Calcolo d'!$B14,Library!$B$2:$H$57,2,FALSE)),"") ->  | D14: =+IFERROR(IF(VLOOKUP('Calcolo d'!$B14,Library!$B$2:$H$57,3,FALSE)=0,"",VLOOKUP('Calcolo d'!$B14,Library!$B$2:$H$57,3,FALSE)),"") ->  | E14: =+IFERROR(IF(VLOOKUP('Calcolo d'!$B14,Library!$B$2:$H$57,5,FALSE)=0,"",VLOOKUP('Calcolo d'!$B14,Library!$B$2:$H$57,5,FALSE)),"") ->  | F14: =+IFERROR(IF(VLOOKUP('Calcolo d'!$B14,Library!$B$2:$H$57,6,FALSE)=0,"",VLOOKUP('Calcolo d'!$B14,Library!$B$2:$H$57,6,FALSE)),"") ->  | G14: =+IF(H14="","",'Conventional System '!C24) ->  | H14: =+IFERROR(C14*'Conventional System '!$F$13,"") ->  | J14: =+IFERROR(D14*'Conventional System '!$F$13,"") ->  | K14: =+IFERROR(E14*'Conventional System '!$F$13,"") ->  | M14: =+IFERROR(F14*'Conventional System '!$F$13,"") -> 
B15: =+IF('Conventional System '!C25=0,"",'Conventional System '!C25) ->  | C15: =+IFERROR(IF(VLOOKUP('Calcolo d'!$B15,Library!$B$2:$H$57,2,FALSE)=0,"",VLOOKUP('Calcolo d'!$B15,Library!$B$2:$H$57,2,FALSE)),"") ->  | D15: =+IFERROR(IF(VLOOKUP('Calcolo d'!$B15,Library!$B$2:$H$57,3,FALSE)=0,"",VLOOKUP('Calcolo d'!$B15,Library!$B$2:$H$57,3,FALSE)),"") ->  | E15: =+IFERROR(IF(VLOOKUP('Calcolo d'!$B15,Library!$B$2:$H$57,5,FALSE)=0,"",VLOOKUP('Calcolo d'!$B15,Library!$B$2:$H$57,5,FALSE)),"") ->  | F15: =+IFERROR(IF(VLOOKUP('Calcolo d'!$B15,Library!$B$2:$H$57,6,FALSE)=0,"",VLOOKUP('Calcolo d'!$B15,Library!$B$2:$H$57,6,FALSE)),"") ->  | G15: =+IF(H15="","",'Conventional System '!C25) ->  | H15: =+IFERROR(C15*'Conventional System '!$F$13,"") ->  | J15: =+IFERROR(D15*'Conventional System '!$F$13,"") ->  | K15: =+IFERROR(E15*'Conventional System '!$F$13,"") ->  | M15: =+IFERROR(F15*'Conventional System '!$F$13,"") -> 
B16: =+IF('Conventional System '!C26=0,"",'Conventional System '!C26) ->  | C16: =+IFERROR(IF(VLOOKUP('Calcolo d'!$B16,Library!$B$2:$H$57,2,FALSE)=0,"",VLOOKUP('Calcolo d'!$B16,Library!$B$2:$H$57,2,FALSE)),"") ->  | D16: =+IFERROR(IF(VLOOKUP('Calcolo d'!$B16,Library!$B$2:$H$57,3,FALSE)=0,"",VLOOKUP('Calcolo d'!$B16,Library!$B$2:$H$57,3,FALSE)),"") ->  | E16: =+IFERROR(IF(VLOOKUP('Calcolo d'!$B16,Library!$B$2:$H$57,5,FALSE)=0,"",VLOOKUP('Calcolo d'!$B16,Library!$B$2:$H$57,5,FALSE)),"") ->  | F16: =+IFERROR(IF(VLOOKUP('Calcolo d'!$B16,Library!$B$2:$H$57,6,FALSE)=0,"",VLOOKUP('Calcolo d'!$B16,Library!$B$2:$H$57,6,FALSE)),"") ->  | G16: =+IF(H16="","",'Conventional System '!C26) ->  | H16: =+IFERROR(C16*'Conventional System '!$F$13,"") ->  | J16: =+IFERROR(D16*'Conventional System '!$F$13,"") ->  | K16: =+IFERROR(E16*'Conventional System '!$F$13,"") ->  | M16: =+IFERROR(F16*'Conventional System '!$F$13,"") -> 
B17: =+IF('Conventional System '!C27=0,"",'Conventional System '!C27) ->  | C17: =+IFERROR(IF(VLOOKUP('Calcolo d'!$B17,Library!$B$2:$H$57,2,FALSE)=0,"",VLOOKUP('Calcolo d'!$B17,Library!$B$2:$H$57,2,FALSE)),"") ->  | D17: =+IFERROR(IF(VLOOKUP('Calcolo d'!$B17,Library!$B$2:$H$57,3,FALSE)=0,"",VLOOKUP('Calcolo d'!$B17,Library!$B$2:$H$57,3,FALSE)),"") ->  | E17: =+IFERROR(IF(VLOOKUP('Calcolo d'!$B17,Library!$B$2:$H$57,5,FALSE)=0,"",VLOOKUP('Calcolo d'!$B17,Library!$B$2:$H$57,5,FALSE)),"") ->  | F17: =+IFERROR(IF(VLOOKUP('Calcolo d'!$B17,Library!$B$2:$H$57,6,FALSE)=0,"",VLOOKUP('Calcolo d'!$B17,Library!$B$2:$H$57,6,FALSE)),"") ->  | G17: =+IF(H17="","",'Conventional System '!C27) ->  | H17: =+IFERROR(C17*'Conventional System '!$F$13,"") ->  | J17: =+IFERROR(D17*'Conventional System '!$F$13,"") ->  | K17: =+IFERROR(E17*'Conventional System '!$F$13,"") ->  | M17: =+IFERROR(F17*'Conventional System '!$F$13,"") -> 
B18: =+IF('Conventional System '!C28=0,"",'Conventional System '!C28) ->  | C18: =+IFERROR(IF(VLOOKUP('Calcolo d'!$B18,Library!$B$2:$H$57,2,FALSE)=0,"",VLOOKUP('Calcolo d'!$B18,Library!$B$2:$H$57,2,FALSE)),"") ->  | D18: =+IFERROR(IF(VLOOKUP('Calcolo d'!$B18,Library!$B$2:$H$57,3,FALSE)=0,"",VLOOKUP('Calcolo d'!$B18,Library!$B$2:$H$57,3,FALSE)),"") ->  | E18: =+IFERROR(IF(VLOOKUP('Calcolo d'!$B18,Library!$B$2:$H$57,5,FALSE)=0,"",VLOOKUP('Calcolo d'!$B18,Library!$B$2:$H$57,5,FALSE)),"") ->  | F18: =+IFERROR(IF(VLOOKUP('Calcolo d'!$B18,Library!$B$2:$H$57,6,FALSE)=0,"",VLOOKUP('Calcolo d'!$B18,Library!$B$2:$H$57,6,FALSE)),"") ->  | G18: =+IF(H18="","",'Conventional System '!C28) ->  | H18: =+IFERROR(C18*'Conventional System '!$F$13,"") ->  | J18: =+IFERROR(D18*'Conventional System '!$F$13,"") ->  | K18: =+IFERROR(E18*'Conventional System '!$F$13,"") ->  | M18: =+IFERROR(F18*'Conventional System '!$F$13,"") -> 
B19: =+IF('Conventional System '!C29=0,"",'Conventional System '!C29) ->  | C19: =+IFERROR(IF(VLOOKUP('Calcolo d'!$B19,Library!$B$2:$H$57,2,FALSE)=0,"",VLOOKUP('Calcolo d'!$B19,Library!$B$2:$H$57,2,FALSE)),"") ->  | D19: =+IFERROR(IF(VLOOKUP('Calcolo d'!$B19,Library!$B$2:$H$57,3,FALSE)=0,"",VLOOKUP('Calcolo d'!$B19,Library!$B$2:$H$57,3,FALSE)),"") ->  | E19: =+IFERROR(IF(VLOOKUP('Calcolo d'!$B19,Library!$B$2:$H$57,5,FALSE)=0,"",VLOOKUP('Calcolo d'!$B19,Library!$B$2:$H$57,5,FALSE)),"") ->  | F19: =+IFERROR(IF(VLOOKUP('Calcolo d'!$B19,Library!$B$2:$H$57,6,FALSE)=0,"",VLOOKUP('Calcolo d'!$B19,Library!$B$2:$H$57,6,FALSE)),"") ->  | G19: =+IF(H19="","",'Conventional System '!C29) ->  | H19: =+IFERROR(C19*'Conventional System '!$F$13,"") ->  | J19: =+IFERROR(D19*'Conventional System '!$F$13,"") ->  | K19: =+IFERROR(E19*'Conventional System '!$F$13,"") ->  | M19: =+IFERROR(F19*'Conventional System '!$F$13,"") -> 
B20: =+'Conventional System '!C30 -> ENERGY SOURCES | C20: Global Energy Requirement (Ger) | E20: Global Warming Potential (Gwp) | F20: numbers years | H20: =+IFERROR(C20*'Conventional System '!$F$13,"") ->  | K20: =+IFERROR(E20*'Conventional System '!$F$13,"") ->  | M20: =+IFERROR(F20*'Conventional System '!$F$13,"") -> 
C21: =+IFERROR(IF(VLOOKUP('Calcolo d'!$B21,Library!$B$2:$H$57,2,FALSE)=0,"",VLOOKUP('Calcolo d'!$B21,Library!$B$2:$H$57,2,FALSE)),"") ->  | D21: =+IFERROR(IF(VLOOKUP('Calcolo d'!$B21,Library!$B$2:$H$57,3,FALSE)=0,"",VLOOKUP('Calcolo d'!$B21,Library!$B$2:$H$57,3,FALSE)),"") ->  | E21: =+IFERROR(IF(VLOOKUP('Calcolo d'!$B21,Library!$B$2:$H$57,5,FALSE)=0,"",VLOOKUP('Calcolo d'!$B21,Library!$B$2:$H$57,5,FALSE)),"") ->  | F21: =+'Conventional System '!F37 -> 0 | G21: =+IF(H21="","",'Conventional System '!C31) ->  | H21: =+IFERROR(C21*'Conventional System '!$F$13,"") ->  | J21: =+IFERROR(D21*'Conventional System '!$F$13,"") ->  | K21: =+IFERROR(E21*'Conventional System '!$F$13,"") ->  | M21: =+IFERROR(#REF!*'Conventional System '!$F$13,"") ->  | O21: =+PROPER(A19) ->  | P21: =+PROPER(B19) -> 
B22: =+'Conventional System '!C32 -> <Electricity> | C22: =+IFERROR(IF(VLOOKUP('Calcolo d'!$B22,Library!$B$58:$H$118,2,FALSE)=0,"",VLOOKUP('Calcolo d'!$B22,Library!$B$58:$H$118,2,FALSE)),"") ->  | E22: =+IFERROR(IF(VLOOKUP('Calcolo d'!$B22,Library!$B$58:$H$118,5,FALSE)=0,"",VLOOKUP('Calcolo d'!$B22,Library!$B$58:$H$118,5,FALSE)),"") ->  | G22: =+IF(I22="","",'Conventional System '!C32) ->  | I22: =+IFERROR(C22*'Conventional System '!$F$32*'Conventional System '!$F$37,"") ->  | L22: =+IFERROR(E22*'Conventional System '!$F$32*'Conventional System '!$F$37,"") -> 
B23: =+'Conventional System '!C33 -> <Natural gas> | C23: =+IFERROR(IF(VLOOKUP('Calcolo d'!$B23,Library!$B$58:$H$118,2,FALSE)=0,"",VLOOKUP('Calcolo d'!$B23,Library!$B$58:$H$118,2,FALSE)),"") ->  | E23: =+IFERROR(IF(VLOOKUP('Calcolo d'!$B23,Library!$B$58:$H$118,5,FALSE)=0,"",VLOOKUP('Calcolo d'!$B23,Library!$B$58:$H$118,5,FALSE)),"") ->  | G23: =+IF(I23="","",'Conventional System '!C33) ->  | I23: =+IFERROR(C23*'Conventional System '!$F$33*'Conventional System '!$F$37,"") ->  | L23: =+IFERROR(E23*'Conventional System '!$F$33*'Conventional System '!$F$37,"") -> 
B24: =+'Conventional System '!C34 -> 0 | C24: =+IFERROR(IF(VLOOKUP('Calcolo d'!$B24,Library!$B$2:$H$57,2,FALSE)=0,"",VLOOKUP('Calcolo d'!$B24,Library!$B$2:$H$57,2,FALSE)),"") ->  | E24: =+IFERROR(IF(VLOOKUP('Calcolo d'!$B24,Library!$B$2:$H$57,5,FALSE)=0,"",VLOOKUP('Calcolo d'!$B24,Library!$B$2:$H$57,5,FALSE)),"") -> 

Sheet Impacts_SHC system (hidden)
O12: General Information
C14: COMPONENTS OF THE SHC SYSTEM | D14: GLOBAL ENERGY REQUIREMENT (GER) (MJ) | H14: GLOBAL WARMING POTENTIAL (GWP) (kg CO2eq)
D15: Manufacturing | E15: Operation | F15: End-of-Life | G15: Total | H15: Manufacturing | I15: Operation | J15: End-of-Life | K15: Total
C16: =+'Calcolo a'!B3 -> <Ammonia> | D16: =+IF('Calcolo a'!H3="","",'Calcolo a'!H3) ->  | E16: =+IF('Calcolo a'!I3="","",'Calcolo a'!I3) ->  | F16: =+IF('Calcolo a'!J3="","",'Calcolo a'!J3) ->  | G16: =+IF(SUM(D16:F16)=0,"",SUM(D16:F16)) ->  | H16: =+IF('Calcolo a'!K3="","",'Calcolo a'!K3) ->  | I16: =+IF('Calcolo a'!L3="","",'Calcolo a'!L3) ->  | J16: =+IF('Calcolo a'!M3="","",'Calcolo a'!M3) ->  | K16: =+IF(SUM(H16:J16)=0,"",SUM(H16:J16)) -> 
C17: =+'Calcolo a'!B4 -> <Auxiliary Conventional Chiller> | D17: =+IF('Calcolo a'!H4="","",'Calcolo a'!H4) ->  | E17: =+IF('Calcolo a'!I4="","",'Calcolo a'!I4) ->  | F17: =+IF('Calcolo a'!J4="","",'Calcolo a'!J4) ->  | G17: =+IF(SUM(D17:F17)=0,"",SUM(D17:F17)) ->  | H17: =+IF('Calcolo a'!K4="","",'Calcolo a'!K4) ->  | I17: =+IF('Calcolo a'!L4="","",'Calcolo a'!L4) ->  | J17: =+IF('Calcolo a'!M4="","",'Calcolo a'!M4) ->  | K17: =+IF(SUM(H17:J17)=0,"",SUM(H17:J17)) -> 
C18: =+'Calcolo a'!B5 -> <Auxiliary Gas Boiler> | D18: =+IF('Calcolo a'!H5="","",'Calcolo a'!H5) ->  | E18: =+IF('Calcolo a'!I5="","",'Calcolo a'!I5) ->  | F18: =+IF('Calcolo a'!J5="","",'Calcolo a'!J5) ->  | H18: =+IF('Calcolo a'!K5="","",'Calcolo a'!K5) ->  | I18: =+IF('Calcolo a'!L5="","",'Calcolo a'!L5) ->  | J18: =+IF('Calcolo a'!M5="","",'Calcolo a'!M5) -> 
C19: =+'Calcolo a'!B6 -> <Chiller (ad/ab-sorption)> | D19: =+IF('Calcolo a'!H6="","",'Calcolo a'!H6) ->  | E19: =+IF('Calcolo a'!I6="","",'Calcolo a'!I6) ->  | F19: =+IF('Calcolo a'!J6="","",'Calcolo a'!J6) ->  | H19: =+IF('Calcolo a'!K6="","",'Calcolo a'!K6) ->  | I19: =+IF('Calcolo a'!L6="","",'Calcolo a'!L6) ->  | J19: =+IF('Calcolo a'!M6="","",'Calcolo a'!M6) -> 
C20: =+'Calcolo a'!B7 -> <Cooling tower> | D20: =+IF('Calcolo a'!H7="","",'Calcolo a'!H7) ->  | E20: =+IF('Calcolo a'!I7="","",'Calcolo a'!I7) ->  | F20: =+IF('Calcolo a'!J7="","",'Calcolo a'!J7) ->  | H20: =+IF('Calcolo a'!K7="","",'Calcolo a'!K7) ->  | I20: =+IF('Calcolo a'!L7="","",'Calcolo a'!L7) ->  | J20: =+IF('Calcolo a'!M7="","",'Calcolo a'!M7) -> 
C21: =+'Calcolo a'!B8 -> <Glycol> | D21: =+IF('Calcolo a'!H8="","",'Calcolo a'!H8) ->  | E21: =+IF('Calcolo a'!I8="","",'Calcolo a'!I8) ->  | F21: =+IF('Calcolo a'!J8="","",'Calcolo a'!J8) ->  | H21: =+IF('Calcolo a'!K8="","",'Calcolo a'!K8) ->  | I21: =+IF('Calcolo a'!L8="","",'Calcolo a'!L8) ->  | J21: =+IF('Calcolo a'!M8="","",'Calcolo a'!M8) -> 
C22: =+'Calcolo a'!B9 -> <Heat rejection system> | D22: =+IF('Calcolo a'!H9="","",'Calcolo a'!H9) ->  | E22: =+IF('Calcolo a'!I9="","",'Calcolo a'!I9) ->  | F22: =+IF('Calcolo a'!J9="","",'Calcolo a'!J9) ->  | H22: =+IF('Calcolo a'!K9="","",'Calcolo a'!K9) ->  | I22: =+IF('Calcolo a'!L9="","",'Calcolo a'!L9) ->  | J22: =+IF('Calcolo a'!M9="","",'Calcolo a'!M9) -> 
C23: =+'Calcolo a'!B10 -> <Heat storage> | D23: =+IF('Calcolo a'!H10="","",'Calcolo a'!H10) ->  | E23: =+IF('Calcolo a'!I10="","",'Calcolo a'!I10) ->  | F23: =+IF('Calcolo a'!J10="","",'Calcolo a'!J10) ->  | H23: =+IF('Calcolo a'!K10="","",'Calcolo a'!K10) ->  | I23: =+IF('Calcolo a'!L10="","",'Calcolo a'!L10) ->  | J23: =+IF('Calcolo a'!M10="","",'Calcolo a'!M10) -> 
C24: =+'Calcolo a'!B11 -> <Heat-pump> | D24: =+IF('Calcolo a'!H11="","",'Calcolo a'!H11) ->  | E24: =+IF('Calcolo a'!I11="","",'Calcolo a'!I11) ->  | F24: =+IF('Calcolo a'!J11="","",'Calcolo a'!J11) ->  | H24: =+IF('Calcolo a'!K11="","",'Calcolo a'!K11) ->  | I24: =+IF('Calcolo a'!L11="","",'Calcolo a'!L11) ->  | J24: =+IF('Calcolo a'!M11="","",'Calcolo a'!M11) -> 
C25: =+'Calcolo a'!B12 -> <Pipes> | D25: =+IF('Calcolo a'!H12="","",'Calcolo a'!H12) ->  | E25: =+IF('Calcolo a'!I12="","",'Calcolo a'!I12) ->  | F25: =+IF('Calcolo a'!J12="","",'Calcolo a'!J12) ->  | G25: =+IF(SUM(D25:F25)=0,"",SUM(D25:F25)) ->  | H25: =+IF('Calcolo a'!K12="","",'Calcolo a'!K12) ->  | I25: =+IF('Calcolo a'!L12="","",'Calcolo a'!L12) ->  | J25: =+IF('Calcolo a'!M12="","",'Calcolo a'!M12) -> 
C26: =+'Calcolo a'!B13 -> <Pump> | D26: =+IF('Calcolo a'!H13="","",'Calcolo a'!H13) ->  | E26: =+IF('Calcolo a'!I13="","",'Calcolo a'!I13) ->  | F26: =+IF('Calcolo a'!J13="","",'Calcolo a'!J13) ->  | H26: =+IF('Calcolo a'!K13="","",'Calcolo a'!K13) ->  | I26: =+IF('Calcolo a'!L13="","",'Calcolo a'!L13) ->  | J26: =+IF('Calcolo a'!M13="","",'Calcolo a'!M13) -> 
C27: =+'Calcolo a'!B14 -> <Solar thermal collectors> | D27: =+IF('Calcolo a'!H14="","",'Calcolo a'!H14) ->  | E27: =+IF('Calcolo a'!I14="","",'Calcolo a'!I14) ->  | F27: =+IF('Calcolo a'!J14="","",'Calcolo a'!J14) ->  | H27: =+IF('Calcolo a'!K14="","",'Calcolo a'!K14) ->  | I27: =+IF('Calcolo a'!L14="","",'Calcolo a'!L14) ->  | J27: =+IF('Calcolo a'!M14="","",'Calcolo a'!M14) -> 
C28: =+'Calcolo a'!B15 -> <Water> | D28: =+IF('Calcolo a'!H15="","",'Calcolo a'!H15) ->  | E28: =+IF('Calcolo a'!I15="","",'Calcolo a'!I15) ->  | F28: =+IF('Calcolo a'!J15="","",'Calcolo a'!J15) ->  | H28: =+IF('Calcolo a'!K15="","",'Calcolo a'!K15) ->  | I28: =+IF('Calcolo a'!L15="","",'Calcolo a'!L15) ->  | J28: =+IF('Calcolo a'!M15="","",'Calcolo a'!M15) ->  | AB28: Notes
C29: =+'Calcolo a'!B16 ->  | D29: =+IF('Calcolo a'!H16="","",'Calcolo a'!H16) ->  | E29: =+IF('Calcolo a'!I16="","",'Calcolo a'!I16) ->  | F29: =+IF('Calcolo a'!J16="","",'Calcolo a'!J16) ->  | H29: =+IF('Calcolo a'!K16="","",'Calcolo a'!K16) ->  | I29: =+IF('Calcolo a'!L16="","",'Calcolo a'!L16) ->  | J29: =+IF('Calcolo a'!M16="","",'Calcolo a'!M16) -> 
C30: =+'Calcolo a'!B17 ->  | D30: =+IF('Calcolo a'!H17="","",'Calcolo a'!H17) ->  | E30: =+IF('Calcolo a'!I17="","",'Calcolo a'!I17) ->  | F30: =+IF('Calcolo a'!J17="","",'Calcolo a'!J17) ->  | H30: =+IF('Calcolo a'!K17="","",'Calcolo a'!K17) ->  | I30: =+IF('Calcolo a'!L17="","",'Calcolo a'!L17) ->  | J30: =+IF('Calcolo a'!M17="","",'Calcolo a'!M17) -> 
C31: =+'Calcolo a'!B18 ->  | D31: =+IF('Calcolo a'!H18="","",'Calcolo a'!H18) ->  | E31: =+IF('Calcolo a'!I18="","",'Calcolo a'!I18) ->  | F31: =+IF('Calcolo a'!J18="","",'Calcolo a'!J18) ->  | H31: =+IF('Calcolo a'!K18="","",'Calcolo a'!K18) ->  | I31: =+IF('Calcolo a'!L18="","",'Calcolo a'!L18) ->  | J31: =+IF('Calcolo a'!M18="","",'Calcolo a'!M18) -> 
C32: =+'Calcolo a'!B19 ->  | D32: =+IF('Calcolo a'!H19="","",'Calcolo a'!H19) ->  | E32: =+IF('Calcolo a'!I19="","",'Calcolo a'!I19) ->  | F32: =+IF('Calcolo a'!J19="","",'Calcolo a'!J19) ->  | H32: =+IF('Calcolo a'!K19="","",'Calcolo a'!K19) ->  | I32: =+IF('Calcolo a'!L19="","",'Calcolo a'!L19) ->  | J32: =+IF('Calcolo a'!M19="","",'Calcolo a'!M19) -> 
D33: =+IF('Calcolo a'!H20="","",'Calcolo a'!H20) ->  | E33: =+IF('Calcolo a'!I20="","",'Calcolo a'!I20) ->  | F33: =+IF('Calcolo a'!J20="","",'Calcolo a'!J20) ->  | H33: =+IF('Calcolo a'!K20="","",'Calcolo a'!K20) ->  | I33: =+IF('Calcolo a'!L20="","",'Calcolo a'!L20) ->  | J33: =+IF('Calcolo a'!M20="","",'Calcolo a'!M20) -> 
D34: =+IF('Calcolo a'!H21="","",'Calcolo a'!H21) ->  | E34: =+IF('Calcolo a'!I21="","",'Calcolo a'!I21) ->  | F34: =+IF('Calcolo a'!J21="","",'Calcolo a'!J21) ->  | H34: =+IF('Calcolo a'!K21="","",'Calcolo a'!K21) ->  | I34: =+IF('Calcolo a'!L21="","",'Calcolo a'!L21) ->  | J34: =+IF('Calcolo a'!M21="","",'Calcolo a'!M21) -> 
C35: =+'Calcolo a'!B22 -> <Electricity> | D35: =+IF('Calcolo a'!H22="","",'Calcolo a'!H22) ->  | E35: =+IF('Calcolo a'!I22="","",'Calcolo a'!I22) ->  | F35: =+IF('Calcolo a'!J22="","",'Calcolo a'!J22) ->  | H35: =+IF('Calcolo a'!K22="","",'Calcolo a'!K22) ->  | I35: =+IF('Calcolo a'!L22="","",'Calcolo a'!L22) ->  | J35: =+IF('Calcolo a'!M22="","",'Calcolo a'!M22) -> 
C36: =+'Calcolo a'!B23 -> <Natural gas> | D36: =+IF('Calcolo a'!H23="","",'Calcolo a'!H23) ->  | E36: =+IF('Calcolo a'!I23="","",'Calcolo a'!I23) ->  | F36: =+IF('Calcolo a'!J23="","",'Calcolo a'!J23) ->  | H36: =+IF('Calcolo a'!K23="","",'Calcolo a'!K23) ->  | I36: =+IF('Calcolo a'!L23="","",'Calcolo a'!L23) ->  | J36: =+IF('Calcolo a'!M23="","",'Calcolo a'!M23) ->  | O36: LCA Results
C37: Total | D37: =+SUM(D16:D36) -> 0 | E37: 0 | F37: 0 | G37: 0 | H37: 0 | I37: 0 | J37: 0 | K37: 0
O47: Input pages

Sheet Impacts__SHC system_PV (hidden)
O12: General Information | AB12: Notes
C14: COMPONENTS OF THE SHC SYSTEM WITH PV | D14: GLOBAL ENERGY REQUIREMENT (GER) (MJ) | H14: GLOBAL WARMING POTENTIAL (GWP) (kg CO2eq)
D15: Manufacturing | E15: Operation | F15: End-of-Life | G15: Total | H15: Manufacturing | I15: Operation | J15: End-of-Life | K15: Total
C16: =+'Calcolo b'!B3 -> <Ammonia> | D16: =+IF('Calcolo b'!H3="","",'Calcolo b'!H3) ->  | E16: =+IF('Calcolo b'!I3="","",'Calcolo b'!I3) ->  | F16: =+IF('Calcolo b'!J3="","",'Calcolo b'!J3) ->  | G16: =+IF(SUM(D16:F16)=0,"",SUM(D16:F16)) ->  | H16: =+IF('Calcolo b'!K3="","",'Calcolo b'!K3) ->  | I16: =+IF('Calcolo b'!L3="","",'Calcolo b'!L3) ->  | J16: =+IF('Calcolo b'!M3="","",'Calcolo b'!M3) ->  | K16: =+IF(SUM(H16:J16)=0,"",SUM(H16:J16)) -> 
C17: =+'Calcolo b'!B4 -> <Auxiliary Conventional Chiller> | D17: =+IF('Calcolo b'!H4="","",'Calcolo b'!H4) ->  | E17: =+IF('Calcolo b'!I4="","",'Calcolo b'!I4) ->  | F17: =+IF('Calcolo b'!J4="","",'Calcolo b'!J4) ->  | G17: =+IF(SUM(D17:F17)=0,"",SUM(D17:F17)) ->  | H17: =+IF('Calcolo b'!K4="","",'Calcolo b'!K4) ->  | I17: =+IF('Calcolo b'!L4="","",'Calcolo b'!L4) ->  | J17: =+IF('Calcolo b'!M4="","",'Calcolo b'!M4) ->  | K17: =+IF(SUM(H17:J17)=0,"",SUM(H17:J17)) -> 
C18: =+'Calcolo b'!B5 -> <Auxiliary Gas Boiler> | D18: =+IF('Calcolo b'!H5="","",'Calcolo b'!H5) ->  | E18: =+IF('Calcolo b'!I5="","",'Calcolo b'!I5) ->  | F18: =+IF('Calcolo b'!J5="","",'Calcolo b'!J5) ->  | H18: =+IF('Calcolo b'!K5="","",'Calcolo b'!K5) ->  | I18: =+IF('Calcolo b'!L5="","",'Calcolo b'!L5) ->  | J18: =+IF('Calcolo b'!M5="","",'Calcolo b'!M5) -> 
C19: =+'Calcolo b'!B6 -> <Battery> | D19: =+IF('Calcolo b'!H6="","",'Calcolo b'!H6) ->  | E19: =+IF('Calcolo b'!I6="","",'Calcolo b'!I6) ->  | F19: =+IF('Calcolo b'!J6="","",'Calcolo b'!J6) ->  | H19: =+IF('Calcolo b'!K6="","",'Calcolo b'!K6) ->  | I19: =+IF('Calcolo b'!L6="","",'Calcolo b'!L6) ->  | J19: =+IF('Calcolo b'!M6="","",'Calcolo b'!M6) -> 
C20: =+'Calcolo b'!B7 -> <Chiller (ad/ab-sorption)> | D20: =+IF('Calcolo b'!H7="","",'Calcolo b'!H7) ->  | E20: =+IF('Calcolo b'!I7="","",'Calcolo b'!I7) ->  | F20: =+IF('Calcolo b'!J7="","",'Calcolo b'!J7) ->  | H20: =+IF('Calcolo b'!K7="","",'Calcolo b'!K7) ->  | I20: =+IF('Calcolo b'!L7="","",'Calcolo b'!L7) ->  | J20: =+IF('Calcolo b'!M7="","",'Calcolo b'!M7) -> 
C21: =+'Calcolo b'!B8 -> <Cooling tower> | D21: =+IF('Calcolo b'!H8="","",'Calcolo b'!H8) ->  | E21: =+IF('Calcolo b'!I8="","",'Calcolo b'!I8) ->  | F21: =+IF('Calcolo b'!J8="","",'Calcolo b'!J8) ->  | H21: =+IF('Calcolo b'!K8="","",'Calcolo b'!K8) ->  | I21: =+IF('Calcolo b'!L8="","",'Calcolo b'!L8) ->  | J21: =+IF('Calcolo b'!M8="","",'Calcolo b'!M8) -> 
C22: =+'Calcolo b'!B9 -> <Electric installation> | D22: =+IF('Calcolo b'!H9="","",'Calcolo b'!H9) ->  | E22: =+IF('Calcolo b'!I9="","",'Calcolo b'!I9) ->  | F22: =+IF('Calcolo b'!J9="","",'Calcolo b'!J9) ->  | H22: =+IF('Calcolo b'!K9="","",'Calcolo b'!K9) ->  | I22: =+IF('Calcolo b'!L9="","",'Calcolo b'!L9) ->  | J22: =+IF('Calcolo b'!M9="","",'Calcolo b'!M9) -> 
C23: =+'Calcolo b'!B10 -> <Glycol> | D23: =+IF('Calcolo b'!H10="","",'Calcolo b'!H10) ->  | E23: =+IF('Calcolo b'!I10="","",'Calcolo b'!I10) ->  | F23: =+IF('Calcolo b'!J10="","",'Calcolo b'!J10) ->  | H23: =+IF('Calcolo b'!K10="","",'Calcolo b'!K10) ->  | I23: =+IF('Calcolo b'!L10="","",'Calcolo b'!L10) ->  | J23: =+IF('Calcolo b'!M10="","",'Calcolo b'!M10) -> 
C24: =+'Calcolo b'!B11 -> <Heat rejection system> | D24: =+IF('Calcolo b'!H11="","",'Calcolo b'!H11) ->  | E24: =+IF('Calcolo b'!I11="","",'Calcolo b'!I11) ->  | F24: =+IF('Calcolo b'!J11="","",'Calcolo b'!J11) ->  | H24: =+IF('Calcolo b'!K11="","",'Calcolo b'!K11) ->  | I24: =+IF('Calcolo b'!L11="","",'Calcolo b'!L11) ->  | J24: =+IF('Calcolo b'!M11="","",'Calcolo b'!M11) -> 
C25: =+'Calcolo b'!B12 -> <Heat storage> | D25: =+IF('Calcolo b'!H12="","",'Calcolo b'!H12) ->  | E25: =+IF('Calcolo b'!I12="","",'Calcolo b'!I12) ->  | F25: =+IF('Calcolo b'!J12="","",'Calcolo b'!J12) ->  | H25: =+IF('Calcolo b'!K12="","",'Calcolo b'!K12) ->  | I25: =+IF('Calcolo b'!L12="","",'Calcolo b'!L12) ->  | J25: =+IF('Calcolo b'!M12="","",'Calcolo b'!M12) -> 
C26: =+'Calcolo b'!B13 -> <Heat-pump> | D26: =+IF('Calcolo b'!H13="","",'Calcolo b'!H13) ->  | E26: =+IF('Calcolo b'!I13="","",'Calcolo b'!I13) ->  | F26: =+IF('Calcolo b'!J13="","",'Calcolo b'!J13) ->  | H26: =+IF('Calcolo b'!K13="","",'Calcolo b'!K13) ->  | I26: =+IF('Calcolo b'!L13="","",'Calcolo b'!L13) ->  | J26: =+IF('Calcolo b'!M13="","",'Calcolo b'!M13) -> 
C27: =+'Calcolo b'!B14 -> <Inverter > | D27: =+IF('Calcolo b'!H14="","",'Calcolo b'!H14) ->  | E27: =+IF('Calcolo b'!I14="","",'Calcolo b'!I14) ->  | F27: =+IF('Calcolo b'!J14="","",'Calcolo b'!J14) ->  | H27: =+IF('Calcolo b'!K14="","",'Calcolo b'!K14) ->  | I27: =+IF('Calcolo b'!L14="","",'Calcolo b'!L14) ->  | J27: =+IF('Calcolo b'!M14="","",'Calcolo b'!M14) -> 
C28: =+'Calcolo b'!B15 -> <Photovoltaic panel> | D28: =+IF('Calcolo b'!H15="","",'Calcolo b'!H15) ->  | E28: =+IF('Calcolo b'!I15="","",'Calcolo b'!I15) ->  | F28: =+IF('Calcolo b'!J15="","",'Calcolo b'!J15) ->  | H28: =+IF('Calcolo b'!K15="","",'Calcolo b'!K15) ->  | I28: =+IF('Calcolo b'!L15="","",'Calcolo b'!L15) ->  | J28: =+IF('Calcolo b'!M15="","",'Calcolo b'!M15) -> 
C29: =+'Calcolo b'!B16 -> <Pipes> | D29: =+IF('Calcolo b'!H16="","",'Calcolo b'!H16) ->  | E29: =+IF('Calcolo b'!I16="","",'Calcolo b'!I16) ->  | F29: =+IF('Calcolo b'!J16="","",'Calcolo b'!J16) ->  | H29: =+IF('Calcolo b'!K16="","",'Calcolo b'!K16) ->  | I29: =+IF('Calcolo b'!L16="","",'Calcolo b'!L16) ->  | J29: =+IF('Calcolo b'!M16="","",'Calcolo b'!M16) -> 
C30: =+'Calcolo b'!B17 -> <Pump> | D30: =+IF('Calcolo b'!H17="","",'Calcolo b'!H17) ->  | E30: =+IF('Calcolo b'!I17="","",'Calcolo b'!I17) ->  | F30: =+IF('Calcolo b'!J17="","",'Calcolo b'!J17) ->  | H30: =+IF('Calcolo b'!K17="","",'Calcolo b'!K17) ->  | I30: =+IF('Calcolo b'!L17="","",'Calcolo b'!L17) ->  | J30: =+IF('Calcolo b'!M17="","",'Calcolo b'!M17) -> 
C31: =+'Calcolo b'!B18 -> <Solar thermal collectors> | D31: =+IF('Calcolo b'!H18="","",'Calcolo b'!H18) ->  | E31: =+IF('Calcolo b'!I18="","",'Calcolo b'!I18) ->  | F31: =+IF('Calcolo b'!J18="","",'Calcolo b'!J18) ->  | H31: =+IF('Calcolo b'!K18="","",'Calcolo b'!K18) ->  | I31: =+IF('Calcolo b'!L18="","",'Calcolo b'!L18) ->  | J31: =+IF('Calcolo b'!M18="","",'Calcolo b'!M18) -> 
C32: =+'Calcolo b'!B19 -> <Water> | D32: =+IF('Calcolo b'!H19="","",'Calcolo b'!H19) ->  | E32: =+IF('Calcolo b'!I19="","",'Calcolo b'!I19) ->  | F32: =+IF('Calcolo b'!J19="","",'Calcolo b'!J19) ->  | H32: =+IF('Calcolo b'!K19="","",'Calcolo b'!K19) ->  | I32: =+IF('Calcolo b'!L19="","",'Calcolo b'!L19) ->  | J32: =+IF('Calcolo b'!M19="","",'Calcolo b'!M19) -> 
D33: =+IF('Calcolo b'!H20="","",'Calcolo b'!H20) ->  | E33: =+IF('Calcolo b'!I20="","",'Calcolo b'!I20) ->  | F33: =+IF('Calcolo b'!J20="","",'Calcolo b'!J20) ->  | H33: =+IF('Calcolo b'!K20="","",'Calcolo b'!K20) ->  | I33: =+IF('Calcolo b'!L20="","",'Calcolo b'!L20) ->  | J33: =+IF('Calcolo b'!M20="","",'Calcolo b'!M20) -> 
D34: =+IF('Calcolo b'!H21="","",'Calcolo b'!H21) ->  | E34: =+IF('Calcolo b'!I21="","",'Calcolo b'!I21) ->  | F34: =+IF('Calcolo b'!J21="","",'Calcolo b'!J21) ->  | H34: =+IF('Calcolo b'!K21="","",'Calcolo b'!K21) ->  | I34: =+IF('Calcolo b'!L21="","",'Calcolo b'!L21) ->  | J34: =+IF('Calcolo b'!M21="","",'Calcolo b'!M21) -> 
C35: =+'Calcolo b'!B22 -> <Electricity> | D35: =+IF('Calcolo b'!H22="","",'Calcolo b'!H22) ->  | E35: =+IF('Calcolo b'!I22="","",'Calcolo b'!I22) ->  | F35: =+IF('Calcolo b'!J22="","",'Calcolo b'!J22) ->  | H35: =+IF('Calcolo b'!K22="","",'Calcolo b'!K22) ->  | I35: =+IF('Calcolo b'!L22="","",'Calcolo b'!L22) ->  | J35: =+IF('Calcolo b'!M22="","",'Calcolo b'!M22) -> 
C36: =+'Calcolo b'!B23 -> <Natural gas> | D36: =+IF('Calcolo b'!H23="","",'Calcolo b'!H23) ->  | E36: =+IF('Calcolo b'!I23="","",'Calcolo b'!I23) ->  | F36: =+IF('Calcolo b'!J23="","",'Calcolo b'!J23) ->  | H36: =+IF('Calcolo b'!K23="","",'Calcolo b'!K23) ->  | I36: =+IF('Calcolo b'!L23="","",'Calcolo b'!L23) ->  | J36: =+IF('Calcolo b'!M23="","",'Calcolo b'!M23) ->  | O36: LCA Results
C37: Total | D37: =+SUM(D16:D36) -> 0 | E37: 0 | F37: 0 | G37: 0 | H37: 0 | I37: 0 | J37: 0 | K37: 0
O47: Input pages

Sheet Impacts__Conventional_system (hidden)
AB7: Notes
O12: General Information
C14: COMPONENTS OF THE CONVENTIONAL SYSTEM | D14: GLOBAL ENERGY REQUIREMENT (GER) (MJ) | H14: GLOBAL WARMING POTENTIAL (GWP) (kg CO2eq)
D15: Manufacturing | E15: Operation | F15: End-of-Life | G15: Total | H15: Manufacturing | I15: Operation | J15: End-of-Life | K15: Total
C16: =+'Calcolo d'!B3 -> <Chiller (conventional)> | D16: =+IF('Calcolo d'!H3="","",'Calcolo d'!H3) ->  | E16: =+IF('Calcolo d'!I3="","",'Calcolo d'!I3) ->  | F16: =+IF('Calcolo d'!J3="","",'Calcolo d'!J3) ->  | G16: =+IF(SUM(D16:F16)=0,"",SUM(D16:F16)) ->  | H16: =+IF('Calcolo d'!K3="","",'Calcolo d'!K3) ->  | I16: =+IF('Calcolo d'!L3="","",'Calcolo d'!L3) ->  | J16: =+IF('Calcolo d'!M3="","",'Calcolo d'!M3) ->  | K16: =+IF(SUM(H16:J16)=0,"",SUM(H16:J16)) -> 
C17: =+'Calcolo d'!B4 -> <Gas boiler > | D17: =+IF('Calcolo d'!H4="","",'Calcolo d'!H4) ->  | E17: =+IF('Calcolo d'!I4="","",'Calcolo d'!I4) ->  | F17: =+IF('Calcolo d'!J4="","",'Calcolo d'!J4) ->  | G17: =+IF(SUM(D17:F17)=0,"",SUM(D17:F17)) ->  | H17: =+IF('Calcolo d'!K4="","",'Calcolo d'!K4) ->  | I17: =+IF('Calcolo d'!L4="","",'Calcolo d'!L4) ->  | J17: =+IF('Calcolo d'!M4="","",'Calcolo d'!M4) ->  | K17: =+IF(SUM(H17:J17)=0,"",SUM(H17:J17)) -> 
C18: =+'Calcolo d'!B5 -> <Heat-pump> | D18: =+IF('Calcolo d'!H5="","",'Calcolo d'!H5) ->  | E18: =+IF('Calcolo d'!I5="","",'Calcolo d'!I5) ->  | F18: =+IF('Calcolo d'!J5="","",'Calcolo d'!J5) ->  | H18: =+IF('Calcolo d'!K5="","",'Calcolo d'!K5) ->  | I18: =+IF('Calcolo d'!L5="","",'Calcolo d'!L5) ->  | J18: =+IF('Calcolo d'!M5="","",'Calcolo d'!M5) -> 
C19: =+'Calcolo d'!B6 -> <Pipes> | D19: =+IF('Calcolo d'!H6="","",'Calcolo d'!H6) ->  | E19: =+IF('Calcolo d'!I6="","",'Calcolo d'!I6) ->  | F19: =+IF('Calcolo d'!J6="","",'Calcolo d'!J6) ->  | H19: =+IF('Calcolo d'!K6="","",'Calcolo d'!K6) ->  | I19: =+IF('Calcolo d'!L6="","",'Calcolo d'!L6) ->  | J19: =+IF('Calcolo d'!M6="","",'Calcolo d'!M6) -> 
C20: =+'Calcolo d'!B7 -> <Pump> | D20: =+IF('Calcolo d'!H7="","",'Calcolo d'!H7) ->  | E20: =+IF('Calcolo d'!I7="","",'Calcolo d'!I7) ->  | F20: =+IF('Calcolo d'!J7="","",'Calcolo d'!J7) ->  | H20: =+IF('Calcolo d'!K7="","",'Calcolo d'!K7) ->  | I20: =+IF('Calcolo d'!L7="","",'Calcolo d'!L7) ->  | J20: =+IF('Calcolo d'!M7="","",'Calcolo d'!M7) -> 
C21: =+'Calcolo d'!B8 ->  | D21: =+IF('Calcolo d'!H8="","",'Calcolo d'!H8) ->  | E21: =+IF('Calcolo d'!I8="","",'Calcolo d'!I8) ->  | F21: =+IF('Calcolo d'!J8="","",'Calcolo d'!J8) ->  | H21: =+IF('Calcolo d'!K8="","",'Calcolo d'!K8) ->  | I21: =+IF('Calcolo d'!L8="","",'Calcolo d'!L8) ->  | J21: =+IF('Calcolo d'!M8="","",'Calcolo d'!M8) -> 
C22: =+'Calcolo d'!B9 ->  | D22: =+IF('Calcolo d'!H9="","",'Calcolo d'!H9) ->  | E22: =+IF('Calcolo d'!I9="","",'Calcolo d'!I9) ->  | F22: =+IF('Calcolo d'!J9="","",'Calcolo d'!J9) ->  | H22: =+IF('Calcolo d'!K9="","",'Calcolo d'!K9) ->  | I22: =+IF('Calcolo d'!L9="","",'Calcolo d'!L9) ->  | J22: =+IF('Calcolo d'!M9="","",'Calcolo d'!M9) -> 
C23: =+'Calcolo d'!B10 ->  | D23: =+IF('Calcolo d'!H10="","",'Calcolo d'!H10) ->  | E23: =+IF('Calcolo d'!I10="","",'Calcolo d'!I10) ->  | F23: =+IF('Calcolo d'!J10="","",'Calcolo d'!J10) ->  | H23: =+IF('Calcolo d'!K10="","",'Calcolo d'!K10) ->  | I23: =+IF('Calcolo d'!L10="","",'Calcolo d'!L10) ->  | J23: =+IF('Calcolo d'!M10="","",'Calcolo d'!M10) -> 
C24: =+'Calcolo d'!B11 ->  | D24: =+IF('Calcolo d'!H11="","",'Calcolo d'!H11) ->  | E24: =+IF('Calcolo d'!I11="","",'Calcolo d'!I11) ->  | F24: =+IF('Calcolo d'!J11="","",'Calcolo d'!J11) -> 0 | H24: =+IF('Calcolo d'!K11="","",'Calcolo d'!K11) ->  | I24: =+IF('Calcolo d'!L11="","",'Calcolo d'!L11) ->  | J24: =+IF('Calcolo d'!M11="","",'Calcolo d'!M11) -> 
C25: =+'Calcolo d'!B12 ->  | D25: =+IF('Calcolo d'!H12="","",'Calcolo d'!H12) ->  | E25: =+IF('Calcolo d'!I12="","",'Calcolo d'!I12) ->  | F25: =+IF('Calcolo d'!J12="","",'Calcolo d'!J12) ->  | H25: =+IF('Calcolo d'!K12="","",'Calcolo d'!K12) ->  | I25: =+IF('Calcolo d'!L12="","",'Calcolo d'!L12) ->  | J25: =+IF('Calcolo d'!M12="","",'Calcolo d'!M12) -> 
C26: =+'Calcolo d'!B13 ->  | D26: =+IF('Calcolo d'!H13="","",'Calcolo d'!H13) ->  | E26: =+IF('Calcolo d'!I13="","",'Calcolo d'!I13) ->  | F26: =+IF('Calcolo d'!J13="","",'Calcolo d'!J13) ->  | H26: =+IF('Calcolo d'!K13="","",'Calcolo d'!K13) ->  | I26: =+IF('Calcolo d'!L13="","",'Calcolo d'!L13) ->  | J26: =+IF('Calcolo d'!M13="","",'Calcolo d'!M13) -> 
C27: =+'Calcolo d'!B14 ->  | D27: =+IF('Calcolo d'!H14="","",'Calcolo d'!H14) ->  | E27: =+IF('Calcolo d'!I14="","",'Calcolo d'!I14) ->  | F27: =+IF('Calcolo d'!J14="","",'Calcolo d'!J14) ->  | H27: =+IF('Calcolo d'!K14="","",'Calcolo d'!K14) ->  | I27: =+IF('Calcolo d'!L14="","",'Calcolo d'!L14) ->  | J27: =+IF('Calcolo d'!M14="","",'Calcolo d'!M14) -> 
C28: =+'Calcolo d'!B15 ->  | D28: =+IF('Calcolo d'!H15="","",'Calcolo d'!H15) ->  | E28: =+IF('Calcolo d'!I15="","",'Calcolo d'!I15) ->  | F28: =+IF('Calcolo d'!J15="","",'Calcolo d'!J15) ->  | H28: =+IF('Calcolo d'!K15="","",'Calcolo d'!K15) ->  | I28: =+IF('Calcolo d'!L15="","",'Calcolo d'!L15) ->  | J28: =+IF('Calcolo d'!M15="","",'Calcolo d'!M15) -> 
C29: =+'Calcolo d'!B16 ->  | D29: =+IF('Calcolo d'!H16="","",'Calcolo d'!H16) ->  | E29: =+IF('Calcolo d'!I16="","",'Calcolo d'!I16) ->  | F29: =+IF('Calcolo d'!J16="","",'Calcolo d'!J16) ->  | H29: =+IF('Calcolo d'!K16="","",'Calcolo d'!K16) ->  | I29: =+IF('Calcolo d'!L16="","",'Calcolo d'!L16) ->  | J29: =+IF('Calcolo d'!M16="","",'Calcolo d'!M16) -> 
C30: =+'Calcolo d'!B17 ->  | D30: =+IF('Calcolo d'!H17="","",'Calcolo d'!H17) ->  | E30: =+IF('Calcolo d'!I17="","",'Calcolo d'!I17) ->  | F30: =+IF('Calcolo d'!J17="","",'Calcolo d'!J17) ->  | H30: =+IF('Calcolo d'!K17="","",'Calcolo d'!K17) ->  | I30: =+IF('Calcolo d'!L17="","",'Calcolo d'!L17) ->  | J30: =+IF('Calcolo d'!M17="","",'Calcolo d'!M17) -> 
C31: =+'Calcolo d'!B18 ->  | D31: =+IF('Calcolo d'!H18="","",'Calcolo d'!H18) ->  | E31: =+IF('Calcolo d'!I18="","",'Calcolo d'!I18) ->  | F31: =+IF('Calcolo d'!J18="","",'Calcolo d'!J18) ->  | H31: =+IF('Calcolo d'!K18="","",'Calcolo d'!K18) ->  | I31: =+IF('Calcolo d'!L18="","",'Calcolo d'!L18) ->  | J31: =+IF('Calcolo d'!M18="","",'Calcolo d'!M18) -> 
C32: =+'Calcolo d'!B19 ->  | D32: =+IF('Calcolo d'!H19="","",'Calcolo d'!H19) ->  | E32: =+IF('Calcolo d'!I19="","",'Calcolo d'!I19) ->  | F32: =+IF('Calcolo d'!J19="","",'Calcolo d'!J19) ->  | H32: =+IF('Calcolo d'!K19="","",'Calcolo d'!K19) ->  | I32: =+IF('Calcolo d'!L19="","",'Calcolo d'!L19) ->  | J32: =+IF('Calcolo d'!M19="","",'Calcolo d'!M19) -> 
D33: =+IF('Calcolo d'!H20="","",'Calcolo d'!H20) ->  | E33: =+IF('Calcolo d'!I20="","",'Calcolo d'!I20) ->  | F33: =+IF('Calcolo d'!J20="","",'Calcolo d'!J20) ->  | H33: =+IF('Calcolo d'!K20="","",'Calcolo d'!K20) ->  | I33: =+IF('Calcolo d'!L20="","",'Calcolo d'!L20) ->  | J33: =+IF('Calcolo d'!M20="","",'Calcolo d'!M20) -> 
D34: =+IF('Calcolo d'!H21="","",'Calcolo d'!H21) ->  | E34: =+IF('Calcolo d'!I21="","",'Calcolo d'!I21) ->  | F34: =+IF('Calcolo d'!J21="","",'Calcolo d'!J21) ->  | H34: =+IF('Calcolo d'!K21="","",'Calcolo d'!K21) ->  | I34: =+IF('Calcolo d'!L21="","",'Calcolo d'!L21) ->  | J34: =+IF('Calcolo d'!M21="","",'Calcolo d'!M21) -> 
C35: =+'Calcolo d'!B22 -> <Electricity> | D35: =+IF('Calcolo d'!H22="","",'Calcolo d'!H22) ->  | E35: =+IF('Calcolo d'!I22="","",'Calcolo d'!I22) ->  | F35: =+IF('Calcolo d'!J22="","",'Calcolo d'!J22) ->  | H35: =+IF('Calcolo d'!K22="","",'Calcolo d'!K22) ->  | I35: =+IF('Calcolo d'!L22="","",'Calcolo d'!L22) ->  | J35: =+IF('Calcolo d'!M22="","",'Calcolo d'!M22) -> 
C36: =+'Calcolo d'!B23 -> <Natural gas> | D36: =+IF('Calcolo d'!H23="","",'Calcolo d'!H23) ->  | E36: =+IF('Calcolo d'!I23="","",'Calcolo d'!I23) ->  | F36: =+IF('Calcolo d'!J23="","",'Calcolo d'!J23) ->  | H36: =+IF('Calcolo d'!K23="","",'Calcolo d'!K23) ->  | I36: =+IF('Calcolo d'!L23="","",'Calcolo d'!L23) ->  | J36: =+IF('Calcolo d'!M23="","",'Calcolo d'!M23) ->  | O36: LCA Results
C37: Total | D37: =+SUM(D16:D36) -> 0 | E37: 0 | F37: 0 | G37: 0 | H37: 0 | I37: 0 | J37: 0 | K37: 0
O47: Input pages

Sheet Impacts_Conventional_system_PV (hidden)
O12: General Information | AB12: Notes
C14: COMPONENTS OF THE CONVENTIONAL SYSTEM WITH PV | D14: GLOBAL ENERGY REQUIREMENT (GER) (MJ) | H14: GLOBAL WARMING POTENTIAL (GWP) (kg CO2eq)
D15: Manufacturing | E15: Operation | F15: End-of-Life | G15: Total | H15: Manufacturing | I15: Operation | J15: End-of-Life | K15: Total
C16: =+'Calcolo c'!B3 -> <Battery> | D16: =+IF('Calcolo c'!H3="","",'Calcolo c'!H3) ->  | E16: =+IF('Calcolo c'!I3="","",'Calcolo c'!I3) ->  | F16: =+IF('Calcolo c'!J3="","",'Calcolo c'!J3) ->  | G16: =+IF(SUM(D16:F16)=0,"",SUM(D16:F16)) ->  | H16: =+IF('Calcolo c'!K3="","",'Calcolo c'!K3) ->  | I16: =+IF('Calcolo c'!L3="","",'Calcolo c'!L3) ->  | J16: =+IF('Calcolo c'!M3="","",'Calcolo c'!M3) ->  | K16: =+IF(SUM(H16:J16)=0,"",SUM(H16:J16)) -> 
C17: =+'Calcolo c'!B4 -> <Chiller (conventional)> | D17: =+IF('Calcolo c'!H4="","",'Calcolo c'!H4) ->  | E17: =+IF('Calcolo c'!I4="","",'Calcolo c'!I4) ->  | F17: =+IF('Calcolo c'!J4="","",'Calcolo c'!J4) ->  | G17: =+IF(SUM(D17:F17)=0,"",SUM(D17:F17)) ->  | H17: =+IF('Calcolo c'!K4="","",'Calcolo c'!K4) ->  | I17: =+IF('Calcolo c'!L4="","",'Calcolo c'!L4) ->  | J17: =+IF('Calcolo c'!M4="","",'Calcolo c'!M4) ->  | K17: =+IF(SUM(H17:J17)=0,"",SUM(H17:J17)) -> 
C18: =+'Calcolo c'!B5 -> <Electric installation> | D18: =+IF('Calcolo c'!H5="","",'Calcolo c'!H5) ->  | E18: =+IF('Calcolo c'!I5="","",'Calcolo c'!I5) ->  | F18: =+IF('Calcolo c'!J5="","",'Calcolo c'!J5) ->  | H18: =+IF('Calcolo c'!K5="","",'Calcolo c'!K5) ->  | I18: =+IF('Calcolo c'!L5="","",'Calcolo c'!L5) ->  | J18: =+IF('Calcolo c'!M5="","",'Calcolo c'!M5) -> 
C19: =+'Calcolo c'!B6 -> <Gas boiler > | D19: =+IF('Calcolo c'!H6="","",'Calcolo c'!H6) ->  | E19: =+IF('Calcolo c'!I6="","",'Calcolo c'!I6) ->  | F19: =+IF('Calcolo c'!J6="","",'Calcolo c'!J6) ->  | H19: =+IF('Calcolo c'!K6="","",'Calcolo c'!K6) ->  | I19: =+IF('Calcolo c'!L6="","",'Calcolo c'!L6) ->  | J19: =+IF('Calcolo c'!M6="","",'Calcolo c'!M6) -> 
C20: =+'Calcolo c'!B7 -> <Heat-pump> | D20: =+IF('Calcolo c'!H7="","",'Calcolo c'!H7) ->  | E20: =+IF('Calcolo c'!I7="","",'Calcolo c'!I7) ->  | F20: =+IF('Calcolo c'!J7="","",'Calcolo c'!J7) ->  | H20: =+IF('Calcolo c'!K7="","",'Calcolo c'!K7) ->  | I20: =+IF('Calcolo c'!L7="","",'Calcolo c'!L7) ->  | J20: =+IF('Calcolo c'!M7="","",'Calcolo c'!M7) -> 
C21: =+'Calcolo c'!B8 -> <Inverter > | D21: =+IF('Calcolo c'!H8="","",'Calcolo c'!H8) ->  | E21: =+IF('Calcolo c'!I8="","",'Calcolo c'!I8) ->  | F21: =+IF('Calcolo c'!J8="","",'Calcolo c'!J8) ->  | H21: =+IF('Calcolo c'!K8="","",'Calcolo c'!K8) ->  | I21: =+IF('Calcolo c'!L8="","",'Calcolo c'!L8) ->  | J21: =+IF('Calcolo c'!M8="","",'Calcolo c'!M8) -> 
C22: =+'Calcolo c'!B9 -> <Photovoltaic panel> | D22: =+IF('Calcolo c'!H9="","",'Calcolo c'!H9) ->  | E22: =+IF('Calcolo c'!I9="","",'Calcolo c'!I9) ->  | F22: =+IF('Calcolo c'!J9="","",'Calcolo c'!J9) ->  | H22: =+IF('Calcolo c'!K9="","",'Calcolo c'!K9) ->  | I22: =+IF('Calcolo c'!L9="","",'Calcolo c'!L9) ->  | J22: =+IF('Calcolo c'!M9="","",'Calcolo c'!M9) ->  | O22: LCA Results
C23: =+'Calcolo c'!B10 -> <Pipes> | D23: =+IF('Calcolo c'!H10="","",'Calcolo c'!H10) ->  | E23: =+IF('Calcolo c'!I10="","",'Calcolo c'!I10) ->  | F23: =+IF('Calcolo c'!J10="","",'Calcolo c'!J10) ->  | H23: =+IF('Calcolo c'!K10="","",'Calcolo c'!K10) ->  | I23: =+IF('Calcolo c'!L10="","",'Calcolo c'!L10) ->  | J23: =+IF('Calcolo c'!M10="","",'Calcolo c'!M10) -> 
C24: =+'Calcolo c'!B11 -> <Pump> | D24: =+IF('Calcolo c'!H11="","",'Calcolo c'!H11) ->  | E24: =+IF('Calcolo c'!I11="","",'Calcolo c'!I11) ->  | F24: =+IF('Calcolo c'!J11="","",'Calcolo c'!J11) ->  | H24: =+IF('Calcolo c'!K11="","",'Calcolo c'!K11) ->  | I24: =+IF('Calcolo c'!L11="","",'Calcolo c'!L11) ->  | J24: =+IF('Calcolo c'!M11="","",'Calcolo c'!M11) -> 
C25: =+'Calcolo c'!B12 ->  | D25: =+IF('Calcolo c'!H12="","",'Calcolo c'!H12) ->  | E25: =+IF('Calcolo c'!I12="","",'Calcolo c'!I12) ->  | F25: =+IF('Calcolo c'!J12="","",'Calcolo c'!J12) ->  | H25: =+IF('Calcolo c'!K12="","",'Calcolo c'!K12) ->  | I25: =+IF('Calcolo c'!L12="","",'Calcolo c'!L12) ->  | J25: =+IF('Calcolo c'!M12="","",'Calcolo c'!M12) -> 
C26: =+'Calcolo c'!B13 ->  | D26: =+IF('Calcolo c'!H13="","",'Calcolo c'!H13) ->  | E26: =+IF('Calcolo c'!I13="","",'Calcolo c'!I13) ->  | F26: =+IF('Calcolo c'!J13="","",'Calcolo c'!J13) ->  | H26: =+IF('Calcolo c'!K13="","",'Calcolo c'!K13) ->  | I26: =+IF('Calcolo c'!L13="","",'Calcolo c'!L13) ->  | J26: =+IF('Calcolo c'!M13="","",'Calcolo c'!M13) -> 
C27: =+'Calcolo c'!B14 ->  | D27: =+IF('Calcolo c'!H14="","",'Calcolo c'!H14) ->  | E27: =+IF('Calcolo c'!I14="","",'Calcolo c'!I14) ->  | F27: =+IF('Calcolo c'!J14="","",'Calcolo c'!J14) ->  | H27: =+IF('Calcolo c'!K14="","",'Calcolo c'!K14) ->  | I27: =+IF('Calcolo c'!L14="","",'Calcolo c'!L14) ->  | J27: =+IF('Calcolo c'!M14="","",'Calcolo c'!M14) -> 
C28: =+'Calcolo c'!B15 ->  | D28: =+IF('Calcolo c'!H15="","",'Calcolo c'!H15) ->  | E28: =+IF('Calcolo c'!I15="","",'Calcolo c'!I15) ->  | F28: =+IF('Calcolo c'!J15="","",'Calcolo c'!J15) ->  | H28: =+IF('Calcolo c'!K15="","",'Calcolo c'!K15) ->  | I28: =+IF('Calcolo c'!L15="","",'Calcolo c'!L15) ->  | J28: =+IF('Calcolo c'!M15="","",'Calcolo c'!M15) -> 
C29: =+'Calcolo c'!B16 ->  | D29: =+IF('Calcolo c'!H16="","",'Calcolo c'!H16) ->  | E29: =+IF('Calcolo c'!I16="","",'Calcolo c'!I16) ->  | F29: =+IF('Calcolo c'!J16="","",'Calcolo c'!J16) ->  | H29: =+IF('Calcolo c'!K16="","",'Calcolo c'!K16) ->  | I29: =+IF('Calcolo c'!L16="","",'Calcolo c'!L16) ->  | J29: =+IF('Calcolo c'!M16="","",'Calcolo c'!M16) -> 
C30: =+'Calcolo c'!B17 ->  | D30: =+IF('Calcolo c'!H17="","",'Calcolo c'!H17) ->  | E30: =+IF('Calcolo c'!I17="","",'Calcolo c'!I17) ->  | F30: =+IF('Calcolo c'!J17="","",'Calcolo c'!J17) ->  | H30: =+IF('Calcolo c'!K17="","",'Calcolo c'!K17) ->  | I30: =+IF('Calcolo c'!L17="","",'Calcolo c'!L17) ->  | J30: =+IF('Calcolo c'!M17="","",'Calcolo c'!M17) -> 
C31: =+'Calcolo c'!B18 ->  | D31: =+IF('Calcolo c'!H18="","",'Calcolo c'!H18) ->  | E31: =+IF('Calcolo c'!I18="","",'Calcolo c'!I18) ->  | F31: =+IF('Calcolo c'!J18="","",'Calcolo c'!J18) ->  | H31: =+IF('Calcolo c'!K18="","",'Calcolo c'!K18) ->  | I31: =+IF('Calcolo c'!L18="","",'Calcolo c'!L18) ->  | J31: =+IF('Calcolo c'!M18="","",'Calcolo c'!M18) -> 
C32: =+'Calcolo c'!B19 ->  | D32: =+IF('Calcolo c'!H19="","",'Calcolo c'!H19) ->  | E32: =+IF('Calcolo c'!I19="","",'Calcolo c'!I19) ->  | F32: =+IF('Calcolo c'!J19="","",'Calcolo c'!J19) ->  | H32: =+IF('Calcolo c'!K19="","",'Calcolo c'!K19) ->  | I32: =+IF('Calcolo c'!L19="","",'Calcolo c'!L19) ->  | J32: =+IF('Calcolo c'!M19="","",'Calcolo c'!M19) -> 
D33: =+IF('Calcolo c'!H20="","",'Calcolo c'!H20) ->  | E33: =+IF('Calcolo c'!I20="","",'Calcolo c'!I20) ->  | F33: =+IF('Calcolo c'!J20="","",'Calcolo c'!J20) ->  | H33: =+IF('Calcolo c'!K20="","",'Calcolo c'!K20) ->  | I33: =+IF('Calcolo c'!L20="","",'Calcolo c'!L20) ->  | J33: =+IF('Calcolo c'!M20="","",'Calcolo c'!M20) -> 
D34: =+IF('Calcolo c'!H21="","",'Calcolo c'!H21) ->  | E34: =+IF('Calcolo c'!I21="","",'Calcolo c'!I21) ->  | F34: =+IF('Calcolo c'!J21="","",'Calcolo c'!J21) ->  | H34: =+IF('Calcolo c'!K21="","",'Calcolo c'!K21) ->  | I34: =+IF('Calcolo c'!L21="","",'Calcolo c'!L21) ->  | J34: =+IF('Calcolo c'!M21="","",'Calcolo c'!M21) -> 
C35: =+'Calcolo c'!B22 -> <Electricity> | D35: =+IF('Calcolo c'!H22="","",'Calcolo c'!H22) ->  | E35: =+IF('Calcolo c'!I22="","",'Calcolo c'!I22) ->  | F35: =+IF('Calcolo c'!J22="","",'Calcolo c'!J22) ->  | H35: =+IF('Calcolo c'!K22="","",'Calcolo c'!K22) ->  | I35: =+IF('Calcolo c'!L22="","",'Calcolo c'!L22) ->  | J35: =+IF('Calcolo c'!M22="","",'Calcolo c'!M22) -> 
C36: =+'Calcolo c'!B23 -> <Natural gas> | D36: =+IF('Calcolo c'!H23="","",'Calcolo c'!H23) ->  | E36: =+IF('Calcolo c'!I23="","",'Calcolo c'!I23) ->  | F36: =+IF('Calcolo c'!J23="","",'Calcolo c'!J23) ->  | H36: =+IF('Calcolo c'!K23="","",'Calcolo c'!K23) ->  | I36: =+IF('Calcolo c'!L23="","",'Calcolo c'!L23) ->  | J36: =+IF('Calcolo c'!M23="","",'Calcolo c'!M23) -> 
C37: Total | D37: =+SUM(D16:D36) -> 0 | E37: 0 | F37: 0 | G37: 0 | H37: 0 | I37: 0 | J37: 0 | K37: 0
O42: Input pages

Sheet Impacts comparison (hidden)
N10: General Information
C14: SYSTEM | D14: GLOBAL ENERGY REQUIREMENT (GER) (MJ) | H14: GLOBAL WARMING POTENTIAL (GWP) (kg CO2eq)
D15: Manufacturing | E15: Operation | F15: End-of-Life | G15: Total | H15: Manufacturing | I15: Operation | J15: End-of-Life | K15: Total
C16: SHC System | D16: =+'Impacts_SHC system'!D37 -> 0 | E16: =+'Impacts_SHC system'!E37 -> 0 | F16: =+'Impacts_SHC system'!F37 -> 0 | G16: =+IF(SUM(D16:F16)=0,"",SUM(D16:F16)) ->  | H16: =+'Impacts_SHC system'!H37 -> 0 | I16: =+'Impacts_SHC system'!I37 -> 0 | J16: =+'Impacts_SHC system'!J37 -> 0 | K16: =+IF(SUM(H16:J16)=0,"",SUM(H16:J16)) -> 
C17: SHC System with PV | D17: =+'Impacts__SHC system_PV'!D37 -> 0 | E17: =+'Impacts__SHC system_PV'!E37 -> 0 | F17: =+'Impacts__SHC system_PV'!F37 -> 0 | G17: =+IF(SUM(D17:F17)=0,"",SUM(D17:F17)) ->  | H17: =+'Impacts__SHC system_PV'!H37 -> 0 | I17: =+'Impacts__SHC system_PV'!I37 -> 0 | J17: =+'Impacts__SHC system_PV'!J37 -> 0 | K17: =+IF(SUM(H17:J17)=0,"",SUM(H17:J17)) -> 
C18: Conventional System | D18: =+Impacts__Conventional_system!D37 -> 0 | E18: =+Impacts__Conventional_system!E37 -> 0 | F18: =+Impacts__Conventional_system!F37 -> 0 | G18: =+IF(SUM(D18:F18)=0,"",SUM(D18:F18)) ->  | H18: =+Impacts__Conventional_system!H37 -> 0 | I18: =+Impacts__Conventional_system!I37 -> 0 | J18: =+Impacts__Conventional_system!J37 -> 0 | K18: =+IF(SUM(H18:J18)=0,"",SUM(H18:J18)) ->  | N18: LCA Results | U18: Notes
C19: Conventional System with PV | D19: =+Impacts_Conventional_system_PV!D37 -> 0 | E19: =+Impacts_Conventional_system_PV!E37 -> 0 | F19: =+Impacts_Conventional_system_PV!F37 -> 0 | G19: =+IF(SUM(D19:F19)=0,"",SUM(D19:F19)) ->  | H19: =+Impacts_Conventional_system_PV!H37 -> 0 | I19: =+Impacts_Conventional_system_PV!I37 -> 0 | J19: =+Impacts_Conventional_system_PV!J37 -> 0 | K19: =+IF(SUM(H19:J19)=0,"",SUM(H19:J19)) -> 
N29: Input pages
R45: elisa2017

Sheet Payback indices (hidden)
J15: Nomenclature | AB15: Summary of Values
C17: Energy Payback Time | J17: Check for calculations | L17: Close Info | Z17: Close Nomenclatures
C18: Energy Payback Time (E-PT) is defined as the time during which the SHC system (with or without PV) must work to harvest as much primary energy as it requires for its manufacturing and end-of-life. The harvested energy is considered as net of the energy expenditure for the system use.
K20: Manufacturing (M) and End-of-life (EOL) step | M20: Operation (O) step
K21: GERM-EOL[MJ] | L21: GWPM-EOL [kg CO2eq] | M21: GERO [MJ] | N21: GWPO [kg CO2eq] | AL21: years
E22: E-PT=(GERj-th,SHC-system - GER i-th,Conventional-system )/Eyear | J22: =+'Impacts comparison'!C16 -> SHC System | K22: =+SUM('Impacts comparison'!$D16,'Impacts comparison'!$F16) -> 0 | L22: =+SUM('Impacts comparison'!$H16,'Impacts comparison'!$J16) -> 0 | M22: =+IFERROR('Impacts comparison'!$E16,"") -> 0 | N22: =+IFERROR('Impacts comparison'!$I16,"") -> 0 | S22: General Information | AL22: =+'SHC system'!$F$37 -> 0
E23: =+'Impacts comparison'!$C$18 -> Conventional System | G23: =+'Impacts comparison'!$C$19 -> Conventional System with PV | J23: =+'Impacts comparison'!C17 -> SHC System with PV | K23: =+SUM('Impacts comparison'!$D17,'Impacts comparison'!$F17) -> 0 | L23: =+SUM('Impacts comparison'!$H17,'Impacts comparison'!$J17) -> 0 | M23: =+IFERROR('Impacts comparison'!$E17,"") -> 0 | N23: =+IFERROR('Impacts comparison'!$I17,"") -> 0 | AL23: =+'SHC system with PV'!$F$37 -> 0
C24: =+'Impacts comparison'!$C$16 -> SHC System | E24: =+IF(K24=0,"",IFERROR((K22-$K$24)/K31,"")) ->  | G24: =+IF(K25=0,"",IFERROR((K22-$K$25)/M31,"")) ->  | J24: =+'Impacts comparison'!C18 -> Conventional System | K24: =+SUM('Impacts comparison'!$D18,'Impacts comparison'!$F18) -> 0 | L24: =+SUM('Impacts comparison'!$H18,'Impacts comparison'!$J18) -> 0 | M24: =+IFERROR('Impacts comparison'!$E18,"") -> 0 | N24: =+IFERROR('Impacts comparison'!$I18,"") -> 0 | AL24: =+'Conventional System '!$F$37 -> 0
C25: =+'Impacts comparison'!$C$17 -> SHC System with PV | E25: =++IF(K24=0,"",IFERROR((K23-$K$24)/K32,"")) ->  | G25: =+IF(K25=0,"",IFERROR((K23-$K$25)/M32,"")) ->  | J25: =+'Impacts comparison'!C19 -> Conventional System with PV | K25: =+SUM('Impacts comparison'!$D19,'Impacts comparison'!$F19) -> 0 | L25: =+SUM('Impacts comparison'!$H19,'Impacts comparison'!$J19) -> 0 | M25: =+IFERROR('Impacts comparison'!$E19,"") -> 0 | N25: =+IFERROR('Impacts comparison'!$I19,"") -> 0 | AL25: =+'Conventional System with PV'!$F$37 -> 0
J27: Eyear
C28: GWP Payback Time | J28: Eyear is the net yearly primary energy saving due to the use of the SHC system (with or without PV) with respect to the conventional one.
C29: GWP Payback Time (GWP-PT) is defined as the time during which the avoided GWP impact due to the use of the SHC system (with or without PV) is equal to GWP impact caused during its manufacturing and end-of-life. | K29: E year =( GER O,i-th,Conventional-system -GERO,i-th,SHC-system )/Y
K30: =+'Impacts comparison'!$C$18 -> Conventional System | M30: =+'Impacts comparison'!$C$19 -> Conventional System with PV
J31: =+'Impacts comparison'!$C$16 -> SHC System | K31: =++IF(K24=0,"",IFERROR((M24-$M$22)/AL22,"")) ->  | M31: =+IF(K25=0,"",IFERROR((M25-$M$22)/AL22,"")) -> 
J32: =+'Impacts comparison'!$C$17 -> SHC System with PV | K32: =++IF(K24=0,"",IFERROR((M24-$M$23)/AL23,"")) ->  | M32: =+IF(K25=0,"",IFERROR((M25-$M$23)/AL23,"")) ->  | S32: LCA Results
E33: GWP-PT =(GWPj-th,SHC-system - GWP i-th,Conventional-system )/GWPyear
E34: =+'Impacts comparison'!$C$18 -> Conventional System | G34: =+'Impacts comparison'!$C$19 -> Conventional System with PV | J34: GWPyear
C35: =+'Impacts comparison'!$C$16 -> SHC System | E35: =++IF(K24=0,"",IFERROR((L22-$L$24)/K38,"")) ->  | G35: =+IF(K25=0,"",IFERROR((L22-$L$25)/M38,"")) ->  | J35: GWPyear is the net yearly avoided GWP due to the use of the SHC system (with or without PV) with respect to the conventional one.
C36: =+'Impacts comparison'!$C$17 -> SHC System with PV | E36: =++IF(K24=0,"",IFERROR((L23-$L$24)/K39,"")) ->  | G36: =+IF(K25=0,"",IFERROR((L23-$L$25)/M39,"")) ->  | K36: GWP year=( GWP O,i-th,Conventional-system -GWPO,j-th,SHC-system )/Y
K37: =+'Impacts comparison'!$C$18 -> Conventional System | M37: =+'Impacts comparison'!$C$19 -> Conventional System with PV
J38: =+'Impacts comparison'!$C$16 -> SHC System | K38: =++IF(K24=0,"",IFERROR((N24-$N$22)/AL22,"")) ->  | M38: =+IF(K25=0,"",IFERROR((N25-$N$22)/AL22,"")) -> 
C39: Energy Return Ratio | J39: =+'Impacts comparison'!$C$17 -> SHC System with PV | K39: =++IF(K24=0,"",IFERROR((N24-$N$23)/AL23,"")) ->  | M39: =+IF(K25=0,"",IFERROR((N25-$N$23)/AL23,"")) -> 
C40: Energy Return Ratio (ERR) represents how many times the energy saving overcomes the global energy consumption due to the SHC system (with or without PV) .
J41: E Overall
J42: E Overall is net primary energy saving during the overall lifetime of SHC system (with or without PV) with respect to the conventional one.
K43: E Overall,i-th,SHC-system=GER O,i-th,Conventional-system -GERO,i-th,SHC-system | S43: Input pages
E44: ERR =EOverall,j-th,SHC-system /GERi-th,SHC-system | K44: =+'Impacts comparison'!$C$18 -> Conventional System | M44: =+'Impacts comparison'!$C$19 -> Conventional System with PV
E45: =+'Impacts comparison'!$C$18 -> Conventional System | G45: =+'Impacts comparison'!$C$19 -> Conventional System with PV | J45: =+'Impacts comparison'!$C$16 -> SHC System | K45: =++IF(K24=0,"",IFERROR(($M$24-M22),"")) ->  | M45: =+IF(K25=0,"",IFERROR(($M$25-M22),"")) -> 
C46: =+'Impacts comparison'!$C$16 -> SHC System | E46: =++IF(K24=0,"",IFERROR(K45/$K22,"")) ->  | G46: =+IF(K25=0,"",IFERROR(M45/$K22,"")) ->  | J46: =+'Impacts comparison'!$C$17 -> SHC System with PV | K46: =++IF(K24=0,"",IFERROR(($M$24-$M$23),"")) ->  | M46: =+IF(K25=0,"",IFERROR(($M$25-M23),"")) -> 
C47: =+'Impacts comparison'!$C$17 -> SHC System with PV | E47: =++IF(K24=0,"",IFERROR(K46/$K23,"")) ->  | G47: =+IF(K25=0,"",IFERROR(M46/$K23,"")) -> 

Sheet Impacts comparison (2) (hidden)
N10: INFO MENU'
C14: SYSTEM | D14: GLOBAL ENERGY REQUIREMENT (GER) (MJ) | H14: GLOBAL WARMING POTENTIAL (GWP) (kg CO2eq)
D15: Manufacturing | E15: Operation | F15: End-of-Life | G15: Total | H15: Manufacturing | I15: Operation | J15: End-of-Life | K15: Total
C16: SHC System | D16: =+'Impacts_SHC system'!D37 -> 0 | E16: =+'Impacts_SHC system'!E37 -> 0 | F16: =+'Impacts_SHC system'!F37 -> 0 | G16: =+IF(SUM(D16:F16)=0,"",SUM(D16:F16)) ->  | H16: =+'Impacts_SHC system'!H37 -> 0 | I16: =+'Impacts_SHC system'!I37 -> 0 | J16: =+'Impacts_SHC system'!J37 -> 0 | K16: =+IF(SUM(H16:J16)=0,"",SUM(H16:J16)) -> 
C17: SHC System with PV | D17: =+'Impacts__SHC system_PV'!D37 -> 0 | E17: =+'Impacts__SHC system_PV'!E37 -> 0 | F17: =+'Impacts__SHC system_PV'!F37 -> 0 | G17: =+IF(SUM(D17:F17)=0,"",SUM(D17:F17)) ->  | H17: =+'Impacts__SHC system_PV'!H37 -> 0 | I17: =+'Impacts__SHC system_PV'!I37 -> 0 | J17: =+'Impacts__SHC system_PV'!J37 -> 0 | K17: =+IF(SUM(H17:J17)=0,"",SUM(H17:J17)) -> 
C18: Conventional System | D18: =+Impacts__Conventional_system!D37 -> 0 | E18: =+Impacts__Conventional_system!E37 -> 0 | F18: =+Impacts__Conventional_system!F37 -> 0 | G18: =+IF(SUM(D18:F18)=0,"",SUM(D18:F18)) ->  | H18: =+Impacts__Conventional_system!H37 -> 0 | I18: =+Impacts__Conventional_system!I37 -> 0 | J18: =+Impacts__Conventional_system!J37 -> 0 | K18: =+IF(SUM(H18:J18)=0,"",SUM(H18:J18)) ->  | N18: LCA Results
T19: Notes
N29: Input pages

Sheet Impacts comparison (3) (hidden)
N10: INFO MENU'
C14: SYSTEM | D14: GLOBAL ENERGY REQUIREMENT (GER) (MJ) | H14: GLOBAL WARMING POTENTIAL (GWP) (kg CO2eq)
D15: Manufacturing | E15: Operation | F15: End-of-Life | G15: Total | H15: Manufacturing | I15: Operation | J15: End-of-Life | K15: Total
C16: SHC System | D16: =+'Impacts_SHC system'!D37 -> 0 | E16: =+'Impacts_SHC system'!E37 -> 0 | F16: =+'Impacts_SHC system'!F37 -> 0 | G16: =+IF(SUM(D16:F16)=0,"",SUM(D16:F16)) ->  | H16: =+'Impacts_SHC system'!H37 -> 0 | I16: =+'Impacts_SHC system'!I37 -> 0 | J16: =+'Impacts_SHC system'!J37 -> 0 | K16: =+IF(SUM(H16:J16)=0,"",SUM(H16:J16)) -> 
C17: SHC System with PV | D17: =+'Impacts__SHC system_PV'!D37 -> 0 | E17: =+'Impacts__SHC system_PV'!E37 -> 0 | F17: =+'Impacts__SHC system_PV'!F37 -> 0 | G17: =+IF(SUM(D17:F17)=0,"",SUM(D17:F17)) ->  | H17: =+'Impacts__SHC system_PV'!H37 -> 0 | I17: =+'Impacts__SHC system_PV'!I37 -> 0 | J17: =+'Impacts__SHC system_PV'!J37 -> 0 | K17: =+IF(SUM(H17:J17)=0,"",SUM(H17:J17)) -> 
C18: Conventional System with PV | D18: =+Impacts_Conventional_system_PV!D37 -> 0 | E18: =+Impacts_Conventional_system_PV!E37 -> 0 | F18: =+Impacts_Conventional_system_PV!F37 -> 0 | G18: =+IF(SUM(D18:F18)=0,"",SUM(D18:F18)) ->  | H18: =+Impacts_Conventional_system_PV!H37 -> 0 | I18: =+Impacts_Conventional_system_PV!I37 -> 0 | J18: =+Impacts_Conventional_system_PV!J37 -> 0 | K18: =+IF(SUM(H18:J18)=0,"",SUM(H18:J18)) ->  | N18: LCA Results | T18: Notes
N29: Input pages

Sheet Impacts comparison (4) (hidden)
N10: INFO MENU'
C14: SYSTEM | D14: GLOBAL ENERGY REQUIREMENT (GER) (MJ) | H14: GLOBAL WARMING POTENTIAL (GWP) (kg CO2eq)
D15: Manufacturing | E15: Operation | F15: End-of-Life | G15: Total | H15: Manufacturing | I15: Operation | J15: End-of-Life | K15: Total
C16: SHC System | D16: =+'Impacts_SHC system'!D37 -> 0 | E16: =+'Impacts_SHC system'!E37 -> 0 | F16: =+'Impacts_SHC system'!F37 -> 0 | G16: =+IF(SUM(D16:F16)=0,"",SUM(D16:F16)) ->  | H16: =+'Impacts_SHC system'!H37 -> 0 | I16: =+'Impacts_SHC system'!I37 -> 0 | J16: =+'Impacts_SHC system'!J37 -> 0 | K16: =+IF(SUM(H16:J16)=0,"",SUM(H16:J16)) -> 
C17: Conventional System | D17: =+Impacts__Conventional_system!D37 -> 0 | E17: =+Impacts__Conventional_system!E37 -> 0 | F17: =+Impacts__Conventional_system!F37 -> 0 | G17: =+IF(SUM(D17:F17)=0,"",SUM(D17:F17)) ->  | H17: =+Impacts__Conventional_system!H37 -> 0 | I17: =+Impacts__Conventional_system!I37 -> 0 | J17: =+Impacts__Conventional_system!J37 -> 0 | K17: =+IF(SUM(H17:J17)=0,"",SUM(H17:J17)) -> 
C18: Conventional System with PV | D18: =+Impacts_Conventional_system_PV!D37 -> 0 | E18: =+Impacts_Conventional_system_PV!E37 -> 0 | F18: =+Impacts_Conventional_system_PV!F37 -> 0 | G18: =+IF(SUM(D18:F18)=0,"",SUM(D18:F18)) ->  | H18: =+Impacts_Conventional_system_PV!H37 -> 0 | I18: =+Impacts_Conventional_system_PV!I37 -> 0 | J18: =+Impacts_Conventional_system_PV!J37 -> 0 | K18: =+IF(SUM(H18:J18)=0,"",SUM(H18:J18)) ->  | N18: LCA Results | T18: Notes
N29: Input pages

Sheet Impacts comparison (5) (hidden)
N10: INFO MENU'
C14: SYSTEM | D14: GLOBAL ENERGY REQUIREMENT (GER) (MJ) | H14: GLOBAL WARMING POTENTIAL (GWP) (kg CO2eq)
D15: Manufacturing | E15: Operation | F15: End-of-Life | G15: Total | H15: Manufacturing | I15: Operation | J15: End-of-Life | K15: Total
C16: SHC System with PV | D16: =+'Impacts__SHC system_PV'!D37 -> 0 | E16: =+'Impacts__SHC system_PV'!E37 -> 0 | F16: =+'Impacts__SHC system_PV'!F37 -> 0 | G16: =+IF(SUM(D16:F16)=0,"",SUM(D16:F16)) ->  | H16: =+'Impacts__SHC system_PV'!H37 -> 0 | I16: =+'Impacts__SHC system_PV'!I37 -> 0 | J16: =+'Impacts__SHC system_PV'!J37 -> 0 | K16: =+IF(SUM(H16:J16)=0,"",SUM(H16:J16)) -> 
C17: Conventional System | D17: =+Impacts__Conventional_system!D37 -> 0 | E17: =+Impacts__Conventional_system!E37 -> 0 | F17: =+Impacts__Conventional_system!F37 -> 0 | G17: =+IF(SUM(D17:F17)=0,"",SUM(D17:F17)) ->  | H17: =+Impacts__Conventional_system!H37 -> 0 | I17: =+Impacts__Conventional_system!I37 -> 0 | J17: =+Impacts__Conventional_system!J37 -> 0 | K17: =+IF(SUM(H17:J17)=0,"",SUM(H17:J17)) -> 
C18: Conventional System with PV | D18: =+Impacts_Conventional_system_PV!D37 -> 0 | E18: =+Impacts_Conventional_system_PV!E37 -> 0 | F18: =+Impacts_Conventional_system_PV!F37 -> 0 | G18: =+IF(SUM(D18:F18)=0,"",SUM(D18:F18)) ->  | H18: =+Impacts_Conventional_system_PV!H37 -> 0 | I18: =+Impacts_Conventional_system_PV!I37 -> 0 | J18: =+Impacts_Conventional_system_PV!J37 -> 0 | K18: =+IF(SUM(H18:J18)=0,"",SUM(H18:J18)) ->  | N18: LCA Results | T18: Notes
N29: Input pages

Sheet Impacts comparison (6) (hidden)
N10: INFO MENU'
C14: SYSTEM | D14: GLOBAL ENERGY REQUIREMENT (GER) (MJ) | H14: GLOBAL WARMING POTENTIAL (GWP) (kg CO2eq)
D15: Manufacturing | E15: Operation | F15: End-of-Life | G15: Total | H15: Manufacturing | I15: Operation | J15: End-of-Life | K15: Total
C16: SHC System | D16: =+'Impacts_SHC system'!D37 -> 0 | E16: =+'Impacts_SHC system'!E37 -> 0 | F16: =+'Impacts_SHC system'!F37 -> 0 | G16: =+IF(SUM(D16:F16)=0,"",SUM(D16:F16)) ->  | H16: =+'Impacts_SHC system'!H37 -> 0 | I16: =+'Impacts_SHC system'!I37 -> 0 | J16: =+'Impacts_SHC system'!J37 -> 0 | K16: =+IF(SUM(H16:J16)=0,"",SUM(H16:J16)) -> 
C17: SHC System with PV | D17: =+'Impacts__SHC system_PV'!D37 -> 0 | E17: =+'Impacts__SHC system_PV'!E37 -> 0 | F17: =+'Impacts__SHC system_PV'!F37 -> 0 | G17: =+IF(SUM(D17:F17)=0,"",SUM(D17:F17)) ->  | H17: =+'Impacts__SHC system_PV'!H37 -> 0 | I17: =+'Impacts__SHC system_PV'!I37 -> 0 | J17: =+'Impacts__SHC system_PV'!J37 -> 0 | K17: =+IF(SUM(H17:J17)=0,"",SUM(H17:J17)) -> 
N18: LCA Results | T18: Notes
N29: Input pages

Sheet Impacts comparison (7) (hidden)
N10: INFO MENU'
C14: SYSTEM | D14: GLOBAL ENERGY REQUIREMENT (GER) (MJ) | H14: GLOBAL WARMING POTENTIAL (GWP) (kg CO2eq)
D15: Manufacturing | E15: Operation | F15: End-of-Life | G15: Total | H15: Manufacturing | I15: Operation | J15: End-of-Life | K15: Total
C16: Conventional System | D16: =+Impacts__Conventional_system!D37 -> 0 | E16: =+Impacts__Conventional_system!E37 -> 0 | F16: =+Impacts__Conventional_system!F37 -> 0 | G16: =+IF(SUM(D16:F16)=0,"",SUM(D16:F16)) ->  | H16: =+Impacts__Conventional_system!H37 -> 0 | I16: =+Impacts__Conventional_system!I37 -> 0 | J16: =+Impacts__Conventional_system!J37 -> 0 | K16: =+IF(SUM(H16:J16)=0,"",SUM(H16:J16)) -> 
C17: Conventional System with PV | D17: =+Impacts_Conventional_system_PV!D37 -> 0 | E17: =+Impacts_Conventional_system_PV!E37 -> 0 | F17: =+Impacts_Conventional_system_PV!F37 -> 0 | G17: =+IF(SUM(D17:F17)=0,"",SUM(D17:F17)) ->  | H17: =+Impacts_Conventional_system_PV!H37 -> 0 | I17: =+Impacts_Conventional_system_PV!I37 -> 0 | J17: =+Impacts_Conventional_system_PV!J37 -> 0 | K17: =+IF(SUM(H17:J17)=0,"",SUM(H17:J17)) -> 
N18: LCA Results | T18: Notes
N29: Input pages

Sheet Impacts comparison (8) (hidden)
N10: INFO MENU'
C14: SYSTEM | D14: GLOBAL ENERGY REQUIREMENT (GER) (MJ) | H14: GLOBAL WARMING POTENTIAL (GWP) (kg CO2eq)
D15: Manufacturing | E15: Operation | F15: End-of-Life | G15: Total | H15: Manufacturing | I15: Operation | J15: End-of-Life | K15: Total
C16: SHC System | D16: =+'Impacts_SHC system'!D37 -> 0 | E16: =+'Impacts_SHC system'!E37 -> 0 | F16: =+'Impacts_SHC system'!F37 -> 0 | G16: =+IF(SUM(D16:F16)=0,"",SUM(D16:F16)) ->  | H16: =+'Impacts_SHC system'!H37 -> 0 | I16: =+'Impacts_SHC system'!I37 -> 0 | J16: =+'Impacts_SHC system'!J37 -> 0 | K16: =+IF(SUM(H16:J16)=0,"",SUM(H16:J16)) -> 
C17: Conventional System | D17: =+Impacts__Conventional_system!D37 -> 0 | E17: =+Impacts__Conventional_system!E37 -> 0 | F17: =+Impacts__Conventional_system!F37 -> 0 | G17: =+IF(SUM(D17:F17)=0,"",SUM(D17:F17)) ->  | H17: =+Impacts__Conventional_system!H37 -> 0 | I17: =+Impacts__Conventional_system!I37 -> 0 | J17: =+Impacts__Conventional_system!J37 -> 0 | K17: =+IF(SUM(H17:J17)=0,"",SUM(H17:J17)) -> 
N18: LCA Results | T18: Notes
N29: Input pages

Sheet Impacts comparison (9) (hidden)
N10: INFO MENU'
C14: SYSTEM | D14: GLOBAL ENERGY REQUIREMENT (GER) (MJ) | H14: GLOBAL WARMING POTENTIAL (GWP) (kg CO2eq)
D15: Manufacturing | E15: Operation | F15: End-of-Life | G15: Total | H15: Manufacturing | I15: Operation | J15: End-of-Life | K15: Total
C16: SHC System with PV | D16: =+'Impacts__SHC system_PV'!D37 -> 0 | E16: =+'Impacts__SHC system_PV'!E37 -> 0 | F16: =+'Impacts__SHC system_PV'!F37 -> 0 | G16: =+IF(SUM(D16:F16)=0,"",SUM(D16:F16)) ->  | H16: =+'Impacts__SHC system_PV'!H37 -> 0 | I16: =+'Impacts__SHC system_PV'!I37 -> 0 | J16: =+'Impacts__SHC system_PV'!J37 -> 0 | K16: =+IF(SUM(H16:J16)=0,"",SUM(H16:J16)) -> 
C17: Conventional System with PV | D17: =+Impacts_Conventional_system_PV!D37 -> 0 | E17: =+Impacts_Conventional_system_PV!E37 -> 0 | F17: =+Impacts_Conventional_system_PV!F37 -> 0 | G17: =+IF(SUM(D17:F17)=0,"",SUM(D17:F17)) ->  | H17: =+Impacts_Conventional_system_PV!H37 -> 0 | I17: =+Impacts_Conventional_system_PV!I37 -> 0 | J17: =+Impacts_Conventional_system_PV!J37 -> 0 | K17: =+IF(SUM(H17:J17)=0,"",SUM(H17:J17)) -> 
N18: LCA Results | T18: Notes
N29: Input pages

Sheet Impacts comparison (10) (hidden)
N10: INFO MENU'
C14: SYSTEM | D14: GLOBAL ENERGY REQUIREMENT (GER) (MJ) | H14: GLOBAL WARMING POTENTIAL (GWP) (kg CO2eq)
D15: Manufacturing | E15: Operation | F15: End-of-Life | G15: Total | H15: Manufacturing | I15: Operation | J15: End-of-Life | K15: Total
C16: SHC System | D16: =+'Impacts_SHC system'!D37 -> 0 | E16: =+'Impacts_SHC system'!E37 -> 0 | F16: =+'Impacts_SHC system'!F37 -> 0 | G16: =+IF(SUM(D16:F16)=0,"",SUM(D16:F16)) ->  | H16: =+'Impacts_SHC system'!H37 -> 0 | I16: =+'Impacts_SHC system'!I37 -> 0 | J16: =+'Impacts_SHC system'!J37 -> 0 | K16: =+IF(SUM(H16:J16)=0,"",SUM(H16:J16)) -> 
C17: Conventional System with PV | D17: =+Impacts_Conventional_system_PV!D37 -> 0 | E17: =+Impacts_Conventional_system_PV!E37 -> 0 | F17: =+Impacts_Conventional_system_PV!F37 -> 0 | G17: =+IF(SUM(D17:F17)=0,"",SUM(D17:F17)) ->  | H17: =+Impacts_Conventional_system_PV!H37 -> 0 | I17: =+Impacts_Conventional_system_PV!I37 -> 0 | J17: =+Impacts_Conventional_system_PV!J37 -> 0 | K17: =+IF(SUM(H17:J17)=0,"",SUM(H17:J17)) -> 
N18: LCA Results | T18: Notes
N29: Input pages

Sheet Impacts comparison (11) (hidden)
N10: INFO MENU'
C14: SYSTEM | D14: GLOBAL ENERGY REQUIREMENT (GER) (MJ) | H14: GLOBAL WARMING POTENTIAL (GWP) (kg CO2eq)
D15: Manufacturing | E15: Operation | F15: End-of-Life | G15: Total | H15: Manufacturing | I15: Operation | J15: End-of-Life | K15: Total
C16: SHC System with PV | D16: =+'Impacts__SHC system_PV'!D37 -> 0 | E16: =+'Impacts__SHC system_PV'!E37 -> 0 | F16: =+'Impacts__SHC system_PV'!F37 -> 0 | G16: =+IF(SUM(D16:F16)=0,"",SUM(D16:F16)) ->  | H16: =+'Impacts__SHC system_PV'!H37 -> 0 | I16: =+'Impacts__SHC system_PV'!I37 -> 0 | J16: =+'Impacts__SHC system_PV'!J37 -> 0 | K16: =+IF(SUM(H16:J16)=0,"",SUM(H16:J16)) -> 
C17: Conventional System | D17: =+Impacts__Conventional_system!D37 -> 0 | E17: =+Impacts__Conventional_system!E37 -> 0 | F17: =+Impacts__Conventional_system!F37 -> 0 | G17: =+IF(SUM(D17:F17)=0,"",SUM(D17:F17)) ->  | H17: =+Impacts__Conventional_system!H37 -> 0 | I17: =+Impacts__Conventional_system!I37 -> 0 | J17: =+Impacts__Conventional_system!J37 -> 0 | K17: =+IF(SUM(H17:J17)=0,"",SUM(H17:J17)) -> 
N18: LCA Results | T18: Notes
N29: Input pages

Sheet _SSC (hidden)
C1: {"IsHide":false,"HiddenInExcel":false,"SheetId":-1,"Name":"START","Guid":"FWNXHQ","Index":1,"VisibleRange":"","SheetTheme":{"TabColor":"","BodyColor":"","BodyImage":""}} | D1: {"InputDetection":0,"RecalcMode":0,"Layout":0,"LayoutSamePagesHeightEnabled":false,"Theme":{"BgColor":"#FFFFFFFF","BgImage":"","InputBorderStyle":2,"AppliedTheme":""},"SmartphoneSettings":{"ViewportLock":true,"UseOldViewEngine":false,"EnableZoom":false,"EnableSwipe":false,"HideToolbar":false,"InheritBackgroundColor":false,"CheckboxFlavor":1,"ShowBubble":false},"Name":"","Flavor":-1,"Edition":0,"CopyProtect":{"IsEnabled":false,"DomainName":""},"HideSscPoweredlogo":true,"AspnetConfig":{"BrowseUrl":"http://localhost/ssc","FileExtension":0},"NodeSecureLoginEnabled":false,"SmartphoneTheme":1,"Toolbar":{"Position":1,"IsSubmit":true,"IsPrint":true,"IsPrintAll":false,"IsReset":true,"IsUpdate":true},"ConfigureSubmit":{"IsShowCaptcha":false,"IsUseSscWebServer":true,"ReceiverCode":"","IsFreeService":false,"IsAdvanceService":false,"IsSecureEmail":false,"IsDemonstrationService":false,"AfterSuccessfulSubmit":"","AfterFailSubmit":"","AfterCancelWizard":"","IsUseOwnWebServer":false,"OwnWebServerURL":"","OwnWebServerTarget":"","SubmitTarget":0},"IgnoreBgInputCell":false,"ButtonStyle":0,"ResponsiveDesignDisabled":false,"HideLookupRange":false,"BrowserStorageEnabled":true,"RealtimeSyncEnabled":true,"GoogleAnalyticsTrackingId":"","GoogleApiKey":"","ChartSelected":3,"ChartYAxisFixed":false} | E1: {"BrowserAndLocation":{"ConversionPath":"C:\\Users\\Gulotta\\Documents\\SpreadsheetConverter","SelectedBrowsers":[]},"SpreadsheetServer":{"Username":"","Password":"","ServerUrl":""},"ConfigureSubmitDefault":{"Email":"","Free":false,"Advanced":false,"AdvancedSecured":false,"Demo":false},"MessageBubble":{"Close":false,"TopMsg":0},"CustomizeTheme":{"Theme":""},"QrSetting":{"ShowOnConversion":true},"CongratsPage":{"LastOpenedVersion":""},"WordPressPluginSetting":{"IsPluginInstalled":false},"Preferences":{"IsAdvancedSettingModelInitialize":true,"IsCaptchaInitialize":true,"IsNodeSettingInitialize":false,"IsRequiredFieldModalInitialize":true,"IsSubmitDialogModelInitialize":true,"IsToolbarButtonModelInitialize":true,"IsWizardButtonModelInitialize":true,"ReadFromHidden":false,"AdvancedSetting":null,"NodeSetting":{"LoginText":{"LoginButtonText":"Login","PageDescription":"Restricted access only","LoginErrorMessage":"Authentication failed, please check your username and password.","PlaceholderPassword":"password","PlaceholderUsername":"username / email","UserExtraMessage":""}},"Captcha":{"Heading":"Enter the number displayed below.","Message":"This is to verify that you are a human visitor, to prevent automated form submissions.","OkButton":"OK","CancelButton":"Cancel","ErrorMessage":"Your answer is incorrect, please try again."},"RequiredField":{"ErrorMessage":"The fields with the red border are required or invalid.","OkButton":"OK","DDLDefaultRequiredText":"Please Select"},"WizardButton":{"Next":"Next","Previous":"Previous","Cancel":"Cancel","Finish":"Finish"},"ToolbarButton":{"Submit":"Submit","Print":"Print","PrintAll":"Print All","Reset":"Reset","Update":"Update","Back":"Back"},"SubmitDialog":{"SubmitDialogHeading":"Submit Successful.","SubmitDialogDesc":"The form was successfully submitted.","BeforeSubmitDesc":"The form is being submitted.","OfflineHeading":"Save until online","OfflineDesc":"You are currently offline and the submit failed. Do you want to save the submit and send it later when you are online.","OfflineConfirm":"Do you want to save?","OfflineSubmitHeading":"Offline forms submit confirmation","OfflineSubmitDesc":"There are Offline form(s), which are now ready to submit in server.","OfflineSubmitConfirm":"Do you want to submit?","FailOfflineHeading":"Offline Form submit failed","FailOfflineDesc":"Unable to connect to the Internet. Please try submitting the offline forms later in internet connection.","OfflineSubmitWait":"It may take sometime to finish all submits depending on the size of offline forms and internet connection.","OfflineSubmitWaitCounter":"Left","OfflineSubmitError":"Submit error: Please try later."}},"UxPreferences":null}
C2: {"IsHide":true,"HiddenInExcel":true,"SheetId":-1,"Name":"Library (2)","Guid":"OQMD4I","Index":2,"VisibleRange":"","SheetTheme":{"TabColor":"","BodyColor":"","BodyImage":""}}
C3: {"IsHide":true,"HiddenInExcel":true,"SheetId":-1,"Name":"Foglio2","Guid":"55627T","Index":3,"VisibleRange":"","SheetTheme":{"TabColor":"","BodyColor":"","BodyImage":""}}
C4: {"IsHide":false,"HiddenInExcel":false,"SheetId":-1,"Name":"SHC system","Guid":"4TICMZ","Index":4,"VisibleRange":"","SheetTheme":{"TabColor":"","BodyColor":"","BodyImage":""}}
C5: {"IsHide":false,"HiddenInExcel":false,"SheetId":-1,"Name":"SHC system with PV","Guid":"GVCS8U","Index":5,"VisibleRange":"","SheetTheme":{"TabColor":"","BodyColor":"","BodyImage":""}}
C6: {"IsHide":false,"HiddenInExcel":false,"SheetId":-1,"Name":"Conventional System ","Guid":"NYB5C2","Index":6,"VisibleRange":"","SheetTheme":{"TabColor":"","BodyColor":"","BodyImage":""}}
C7: {"IsHide":false,"HiddenInExcel":false,"SheetId":-1,"Name":"Conventional System with PV","Guid":"ABM2F1","Index":7,"VisibleRange":"","SheetTheme":{"TabColor":"","BodyColor":"","BodyImage":""}}
C8: {"IsHide":true,"HiddenInExcel":true,"SheetId":-1,"Name":"Library","Guid":"7KS6D9","Index":8,"VisibleRange":"","SheetTheme":{"TabColor":"","BodyColor":"","BodyImage":""}}
C9: {"IsHide":true,"HiddenInExcel":true,"SheetId":-1,"Name":"Calcolo a","Guid":"AFAZJH","Index":9,"VisibleRange":"","SheetTheme":{"TabColor":"","BodyColor":"","BodyImage":""}}
C10: {"IsHide":true,"HiddenInExcel":true,"SheetId":-1,"Name":"Calcolo b","Guid":"12AOHL","Index":10,"VisibleRange":"","SheetTheme":{"TabColor":"","BodyColor":"","BodyImage":""}}
C11: {"IsHide":true,"HiddenInExcel":true,"SheetId":-1,"Name":"Calcolo c","Guid":"DWHRQ6","Index":11,"VisibleRange":"","SheetTheme":{"TabColor":"","BodyColor":"","BodyImage":""}}
C12: {"IsHide":true,"HiddenInExcel":true,"SheetId":-1,"Name":"Calcolo d","Guid":"7ZT4RV","Index":12,"VisibleRange":"","SheetTheme":{"TabColor":"","BodyColor":"","BodyImage":""}}
C13: {"IsHide":false,"HiddenInExcel":false,"SheetId":-1,"Name":"Output_SHC system","Guid":"61EH52","Index":13,"VisibleRange":"","SheetTheme":{"TabColor":"","BodyColor":"","BodyImage":""}}
C14: {"IsHide":false,"HiddenInExcel":false,"SheetId":-1,"Name":"Output_SHC system_PV","Guid":"7AH3HS","Index":14,"VisibleRange":"","SheetTheme":{"TabColor":"","BodyColor":"","BodyImage":""}}
C15: {"IsHide":true,"HiddenInExcel":true,"SheetId":-1,"Name":"Output_Conventional_sistem","Guid":"JNFT49","Index":15,"VisibleRange":"","SheetTheme":{"TabColor":"","BodyColor":"","BodyImage":""}}
C16: {"IsHide":false,"HiddenInExcel":false,"SheetId":-1,"Name":"Output_Conventional_system_PV","Guid":"SMU1OI","Index":16,"VisibleRange":"","SheetTheme":{"TabColor":"","BodyColor":"","BodyImage":""}}
C17: {"IsHide":true,"HiddenInExcel":true,"SheetId":-1,"Name":"Impacts comparison","Guid":"JGTMYD","Index":17,"VisibleRange":"","SheetTheme":{"TabColor":"","BodyColor":"","BodyImage":""}}
C18: {"IsHide":true,"HiddenInExcel":true,"SheetId":-1,"Name":"Payback indices","Guid":"F6OFTH","Index":18,"VisibleRange":"","SheetTheme":{"TabColor":"","BodyColor":"","BodyImage":""}}
C19: {"IsHide":true,"HiddenInExcel":true,"SheetId":-1,"Name":"Impacts comparison (2)","Guid":"3KX7G6","Index":19,"VisibleRange":"","SheetTheme":{"TabColor":"","BodyColor":"","BodyImage":""}}
C20: {"IsHide":true,"HiddenInExcel":true,"SheetId":-1,"Name":"Impacts comparison (3)","Guid":"4AEO72","Index":20,"VisibleRange":"","SheetTheme":{"TabColor":"","BodyColor":"","BodyImage":""}}
C21: {"IsHide":true,"HiddenInExcel":true,"SheetId":-1,"Name":"Impacts comparison (4)","Guid":"QEVKC4","Index":21,"VisibleRange":"","SheetTheme":{"TabColor":"","BodyColor":"","BodyImage":""}}
C22: {"IsHide":true,"HiddenInExcel":true,"SheetId":-1,"Name":"Impacts comparison (5)","Guid":"05CVXO","Index":22,"VisibleRange":"","SheetTheme":{"TabColor":"","BodyColor":"","BodyImage":""}}
C23: {"IsHide":true,"HiddenInExcel":true,"SheetId":-1,"Name":"Impacts comparison (6)","Guid":"8KB3OB","Index":23,"VisibleRange":"","SheetTheme":{"TabColor":"","BodyColor":"","BodyImage":""}}
C24: {"IsHide":true,"HiddenInExcel":true,"SheetId":-1,"Name":"Impacts comparison (7)","Guid":"44TXQK","Index":24,"VisibleRange":"","SheetTheme":{"TabColor":"","BodyColor":"","BodyImage":""}}
C25: {"IsHide":true,"HiddenInExcel":true,"SheetId":-1,"Name":"Impacts comparison (8)","Guid":"BK6NXE","Index":25,"VisibleRange":"","SheetTheme":{"TabColor":"","BodyColor":"","BodyImage":""}}
C26: {"IsHide":true,"HiddenInExcel":true,"SheetId":-1,"Name":"Impacts comparison (9)","Guid":"3V8QVK","Index":26,"VisibleRange":"","SheetTheme":{"TabColor":"","BodyColor":"","BodyImage":""}}
C27: {"IsHide":true,"HiddenInExcel":true,"SheetId":-1,"Name":"Impacts comparison (10)","Guid":"IUTJEO","Index":27,"VisibleRange":"","SheetTheme":{"TabColor":"","BodyColor":"","BodyImage":""}}
C28: {"IsHide":true,"HiddenInExcel":true,"SheetId":-1,"Name":"Impacts comparison (11)","Guid":"47M8YV","Index":28,"VisibleRange":"","SheetTheme":{"TabColor":"","BodyColor":"","BodyImage":""}}
